{"text_format":"1","workbook":"xlsx","n_sheets":18,"sheets":["HiddenSettings","Table of contents","Settings","GEO composition","IND composition","3-POS-GEO-XSPE","3-POS-IND-XSPE","3-POS-GEO-UIC-IN","3-POS-IND-UIC-IN","3-POS-TOP","3-FLOW-GEO-XSPE","3-FLOW-IND-XSPE","3-FLOW-GEO-MA","3-FLOW-IND-MA","3-FLOW-TOP","3-INC-GEO-XSPE","3-INC-IND-XSPE","3-INC-TOP"],"not_rendered":{"charts":0,"images":1,"macros":1,"external_links":0,"defined_names":25,"comments":0,"pivot_tables":0},"unopened":[],"bounds":{"document_bytes":16777216,"sheet_cells":100000,"rows_first":2000,"rows_last":500,"rows_between":2000,"halvings":0,"cell_chars":16384,"cell_head_chars":4096},"cells_cut":0,"cells_raw":0,"read":"whole","date_system":"1900"}

{"sheet":"HiddenSettings","index":0,"n_rows":39,"n_cols":22,"rows_kept":39,"cut":false,"hidden":true,"merged":[]}
["Do not make any data changes on this sheet (Internal Reserved Use)"]
[]
[null,null,"Countries","Year","CountryIndex","Currency","Units","Currency Select",null,"Statistical Unit","StatUnitIndex","Valuation Method","Valuation index","Economic activity allocation","Eco Act allocation Index","Settings",null,null,"EcoActCode"]
[null,null,null,null,1,null,null,null,null,null,1,null,1,null,1,{"$f":"IF(CountryIndex=1,\"\",INDEX(C4:C56,CountryIndex,1))","v":""},null,null,null,1]
[null,null,"Australia",2000,2,"AUD","Thousands","US dollars",null,"Enterprise",null,"Market value",1,"Direct investment enterprise",1,{"$f":"IF(CurrencyIndex=1,\"USD\",INDEX(F4:F78,CountryIndex,1))","v":0},null,null,null,2,"Direct investment enterprise",2]
[null,null,"Austria",{"$f":"D5+1","v":2001},1,"EUR","Millions","National currency",null,"Local enterprise group",null,"Historic acquisition cost",null,"Direct investor",1,{"$f":"IF(YearIndex=1,\"\",INDEX(D4:D38,YearIndex,1))","v":""},null,null,null,3,"Direct investor",1]
[null,null,"Belgium",{"$f":"D6+1","v":2002},null,"EUR","Billions",null,null,"Unspecified statistical units",null,"Accumulation of FDI equity capital flow",null,null,1,{"$f":"IF(ValuationFlowsIndex=1,\"\",INDEX(L4:L13,ValuationFlowsIndex,1))","v":""}]
[null,null,"Belgium-Luxembourg",2003,null,"EUR",null,null,null,null,null,"Stock market price index applied to accumulated FDI equity capital flow",null,null,null,{"$f":"IF(ValuationPosIndex=1,\"\",INDEX(L4:L13,ValuationPosIndex,1))","v":""}]
[null,null,"Canada",2004,null,"CAD",null,null,null,null,null,"Book value",null,null,null,{"$f":"IF(StatUnitIndex=1,\"\",INDEX(J4:J7,StatUnitIndex,1))","v":""}]
[null,null,"Chile",2005,null,"USD",null,null,null,null,null,"Not allocated/unspecified (including all kinds of valuation methods)",null,null,null,{"$f":"IF(EcoActInflowsIndex=1,\"\",INDEX(N4:N6,EcoActInflowsIndex,1))","v":""},null,null,{"$f":"VLOOKUP(EcoActInflowsIndex,$T$4:$V$6,3)","v":0}]
[null,null,"Czech Republic",2006,null,"CZK",null,null,null,null,null,null,null,null,null,{"$f":"IF(EcoActOutflowsIndex=1,\"\",INDEX(N4:N6,EcoActOutflowsIndex,1))","v":""},null,null,{"$f":"VLOOKUP(EcoActOutflowsIndex,$T$4:$V$6,3)","v":0}]
[null,null,"Denmark",2007,null,"DKK",null,null,null,null,null,null,null,null,null,{"$f":"IF(EcoActInwardIndex=1,\"\",INDEX(N4:N6,EcoActInwardIndex,1))","v":""},null,null,{"$f":"VLOOKUP(EcoActInwardIndex,$T$4:$V$6,3)","v":0}]
[null,null,"Estonia",2008,null,"EUR",null,null,null,null,null,null,null,null,null,{"$f":"IF(EcoActOutwardIndex=1,\"\",INDEX(N4:N6,EcoActOutwardIndex,1))","v":""},null,null,{"$f":"VLOOKUP(EcoActOutwardIndex,$T$4:$V$6,3)","v":0}]
[null,null,"Finland",2009,null,"EUR"]
[null,null,"France",2010,null,"EUR"]
[null,null,"Germany",2011,null,"EUR"]
[null,null,"Greece",2012,null,"EUR"]
[null,null,"Hungary",2013,null,"HUF"]
[null,null,"Iceland",2014,null,"ISK"]
[null,null,"Ireland",2015,null,"EUR"]
[null,null,"Israel",2016,null,"USD"]
[null,null,"Italy",2017,null,"EUR"]
[null,null,"Japan",{"$f":"D22+1","v":2018},null,"JPY"]
[null,null,"Korea",2019,null,"KRW"]
[null,null,"Luxembourg",2020,null,"EUR"]
[null,null,"Mexico",null,null,"MXN"]
[null,null,"Netherlands",null,null,"EUR"]
[null,null,"New Zealand",null,null,"NZD"]
[null,null,"Norway",null,null,"NOK"]
[null,null,"Poland",null,null,"PLN"]
[null,null,"Portugal",null,null,"EUR"]
[null,null,"Slovak Republic",null,null,"EUR"]
[null,null,"Slovenia",null,null,"EUR"]
[null,null,"Spain",null,null,"EUR"]
[null,null,"Sweden",null,null,"SEK"]
[null,null,"Switzerland",null,null,"CHF"]
[null,null,"Turkey",null,null,"TRL"]
[null,null,"United Kingdom",null,null,"GBP"]
[null,null,"United States",null,null,"USD"]

{"sheet":"Table of contents","index":1,"n_rows":46,"n_cols":3,"rows_kept":46,"cut":false,"hidden":false,"merged":[[7,1,7,15]]}
[]
[]
[]
[]
[]
[null,"OECD BENCHMARK DEFINITION OF FOREIGN DIRECT INVESTMENT, 4TH EDITION"]
[null,"ELECTRONIC QUESTIONNAIRE 3: FOREIGN DIRECT INVESTMENT STATISTICS ACCORDING TO THE DIRECTIONAL PRINCIPLE - SUPPLEMENTAL SERIES"]
[null,"DIRECTORATE FOR FINANCIAL AND ENTERPRISES AFFAIRS\nInvestment Division"]
[null,"OECD Contact: emilie.kothe@oecd.org. "]
[]
[null,"QUESTIONNAIRES SETTINGS"]
[null,"Settings"]
[]
[null,"SUPPLEMENTAL QUESTIONNAIRES"]
[null,"Questionnaire 3-POS-GEO-XSPE ","FOREIGN DIRECT INVESTMENT POSITIONS BY GEOGRAPHICAL ALLOCATION – Excluding resident SPEs and looking through non-resident SPEs"]
[null,"Questionnaire 3-POS-IND-XSPE","FOREIGN DIRECT INVESTMENT POSITIONS BY INDUSTRY CLASSIFICATION– Excluding resident SPEs and looking through non-resident SPEs"]
[null,"Questionnaire 3-POS-GEO-UIC-IN ","INWARD FOREIGN DIRECT INVESTMENT POSITIONS BY GEOGRAPHICAL ALLOCATION– According to Ultimate Investing Country"]
[null,"  Questionnaire 3-POS-IND-UIC-IN ","INWARD FOREIGN DIRECT INVESTMENT POSITIONS BY INDUSTRY CLASSIFICATION– According to Ultimate Investing Country (same questionnaire as 2-POS-IND-IN in the case of activity allocation according to direct investment enterprise)"]
[null,"Questionnaire 3-POS-TOP ","FOREIGN DIRECT INVESTMENT POSITIONS CROSS-CLASSIFIED BY GEOGRAPHICAL  ALLOCATION AND TOP-TOP  INDUSTRY CLASSIFICATION"]
[null,"Questionnaire 3-FLOW-GEO-XSPE","FOREIGN DIRECT INVESTMENT FLOWS BY GEOGRAPHICAL ALLOCATION– Excluding resident SPEs and looking through non-resident SPEs"]
[null,"Questionnaire 3-FLOW-IND-XSPE","FOREIGN DIRECT INVESTMENT FLOWS BY INDUSTRY CLASSIFICATION– Excluding resident SPEs and looking through non-resident SPEs"]
[null,"Questionnaire 3-FLOW-GEO-MA ","MERGER AND ACQUISITION TYPE FDI EQUITY FLOWS BY GEOGRAPHICAL ALLOCATION"]
[null,"Questionnaire 3-FLOW-IND-MA ","MERGER AND ACQUISITION TYPE FDI EQUITY FLOWS BY INDUSTRY CLASSIFICATION"]
[null,"Questionnaire 3-FLOW-TOP ","FOREIGN DIRECT INVESTMENT FLOWS CROSS-CLASSIFIED BY GEOGRAPHICAL  ALLOCATION AND TOP-TOP  INDUSTRY CLASSIFICATION"]
[null,"Questionnaire 3-INC-GEO-XSPE","FOREIGN DIRECT INVESTMENT INCOME BY GEOGRAPHICAL ALLOCATION– Excluding resident SPEs and looking through non-resident SPEs"]
[null,"Questionnaire 3-INC-IND-XSPE","FOREIGN DIRECT INVESTMENT INCOME BY INDUSTRY CLASSIFICATION– Excluding resident SPEs and looking through non-resident SPEs"]
[null,"Questionnaire 3-INC-TOP ","FOREIGN DIRECT INVESTMENT INCOME CROSS-CLASSIFIED BY GEOGRAPHICAL  ALLOCATION AND TOP-TOP  INDUSTRY CLASSIFICATION"]
[]
[]
[null,"GEO composition","Includes a description of the geographical aggregates composition"]
[]
[null,"IND composition","Includes a description of the industry sectors in terms of ISIC4 sections and classes"]
[]
[]
[]
[null,"DATA REPORTING TIMELINESS:"]
[null,"At the latest:"]
[]
[null,"FDI transactions (income and financial flows): T+9 after the reference year "]
[]
[]
[null,"FDI positions: T+18 after the reference year (at the latest)"]
[]
[]
[]
[null,"Member countries are invited to report supplemental series of inward FDI positions by Ultimate Investing Country as first priority (Questionnaire 3-POS-GEO-UIC-IN). Information at least on top ten ultimate investors would be most welcome."]

{"sheet":"Settings","index":2,"n_rows":53,"n_cols":11,"rows_kept":53,"cut":false,"hidden":false,"merged":[]}
[]
[null,"FOREIGN DIRECT INVESTMENT STATISTICS ACCORDING TO THE DIRECTIONAL PRINCIPLE - SUPPLEMENTAL SERIES"]
[]
[null,"Reporting year:"]
[]
[null,null,"YEAR :",null,null,null,"CURRENT YEAR :",{"$f":"Year","v":""}]
[]
[null,"Reporting country:"]
[]
[null,null,"COUNTRY :",null,null,null,"COUNTRY:",{"$f":"Country","v":""}]
[]
[null,"Reporting currency:"]
[]
[null,null,"CURRENCY :",null,null,null,"CURRENCY :",{"$f":"Currency","v":0}]
[]
[null,null,"(Data should be reported either in national currency or US dollars)"]
[]
[null,null,"UNITS :","Data should be reported in millions."]
[]
[null,"Statistical Unit"]
[]
[null,null,"STATISTICAL UNIT: ",null,null,null,"STATISTICAL UNIT :",{"$f":"StatUnit","v":""}]
[]
[null,null,"Statistical unit recommended by BMD4: Enterprise"]
[]
[null,"Valuation Method"]
[]
[null,null,"FDI FLOWS:",null,null,null,"Valuation method for FDI flows: ",{"$f":"ValuationFlows","v":""}]
[]
[]
[null,null,"FDI POSITIONS:",null,null,null,"Valuation method for FDI positions: ",{"$f":"ValuationPos","v":""}]
[]
[null,null,"Valuation method recommended by BMD4: Market value (including estimates for unlisted companies)"]
[]
[null,"Economic Activity Allocation"]
[]
[null,null,"INWARD FDI FLOWS:",null,null,null,"Economic activity allocation for inward FDI flows:",{"$f":"EcoActInflows","v":""}]
[]
[null,null,"OUTWARD FDI FLOWS:",null,null,null,"Economic activity allocation for outward FDI flows:",{"$f":"EcoActOutflows","v":""}]
[]
[null,null,"INWARD FDI POSITIONS:",null,null,null,"Economic activity allocation for inward FDI positions:",{"$f":"EcoActInward","v":""}]
[]
[null,null,"OUTWARD FDI POSITIONS:",null,null,null,"Economic activity allocation for outward FDI positions:",{"$f":"EcoActOutward","v":""}]
[]
[null,null,"Economic activity allocation recommended by BMD4: Direct investment enterprise"]
[]
[]
[null,"Please note alternate conventional cell values"]
[]
[null,"NA",": Data not available",null,null,"Blank ",": when there is no transaction/position (0)"]
[]
[null,"Control codes to be indicated in column 'cc' next to the cell value, when applicable"]
[null,"C",": Confidential",null,null,"N",": Not publishable",null,null,"D",": Secondary Confidentiality"]

{"sheet":"GEO composition","index":3,"n_rows":292,"n_cols":3,"rows_kept":292,"cut":false,"hidden":false,"merged":[[290,0,290,2],[291,0,291,2],[2,4,2,14],[272,0,272,1],[273,0,273,1],[275,0,275,1],[277,0,277,1]]}
["OECD-FDI geographic aggregates composition "]
["Codes","Labels","Composition"]
["W0","WORLD*","E1+F1+A1+S1+O1+W190"]
["P8","World Excluding OECD","W0 -P0"]
["W190","World not allocated"]
["E1","EUROPE ","AT + BE + BG + CY + CZ + DE + DK + EE + ES + FI + FR + GB + GR + HR + HU + IE + IT + LT + LU + LV +  MT + NL + PL + PT + RO + SE + SI + SK + CH + IS + LI + NO + AD + AL + BA + BY + FO + GG + GI + IM + JE + XK+MD + MK + RU + SM + TR + UA + VA + ME + RS+ E19"]
["E1X","Europe Excluding OECD countries","From 2010: E1-AT-BE-CH-CZ-DE-DK-EE-ES-FI-FR-GB-GR-HU-IE-IS-IT-LU-NL-NO-PL-PT-SE-SI-SK-TR                                                                                                                                                                                                                       Until end 2009:E1-AT-BE-CH-CZ-DE-DK-ES-FI-FR-GB-GR-HU-IE-IS-IT-LU-NL-NO-PL-PT-SE-SK-TR"]
["E19","Europe not allocated"]
["AL"," Albania"]
["AD"," Andorra"]
["AT"," Austria*"]
["BY"," Belarus"]
["BE"," Belgium*"]
["BA"," Bosnia and Herzegovina"]
["BG"," Bulgaria*"]
["HR"," Croatia"]
["CY"," Cyprus*,1"]
["CZ"," Czech Republic*"]
["DK"," Denmark*"]
["EE"," Estonia*"]
["FO"," Faroe Islands"]
["FI"," Finland*"]
["FR"," France*"]
["DE"," Germany*"]
["GI"," Gibraltar"]
["GR"," Greece*"]
["GG"," Guernsey"]
["VA"," Holy see (Vatican City State)"]
["HU"," Hungary*"]
["IS"," Iceland*"]
["IE"," Ireland*"]
["IM"," Isle of Man"]
["IT"," Italy*"]
["JE"," Jersey"]
["XK","Kosovo"]
["LV"," Latvia*"]
["LI"," Liechtenstein"]
["LT"," Lithuania*"]
["LU"," Luxembourg*"]
["MK"," Macedonia, the Former Yugoslav Republic of "]
["MT"," Malta"]
["MD"," Moldova"]
["ME"," Montenegro"]
["NL"," Netherlands*"]
["NO"," Norway*"]
["PL"," Poland*"]
["PT"," Portugal*"]
["RO"," Romania*"]
["RU"," Russia*"]
["SM"," San Marino"]
["RS"," Serbia"]
["SK"," Slovakia*"]
["SI"," Slovenia*"]
["ES"," Spain*"]
["SE"," Sweden*"]
["CH"," Switzerland* "]
["TR","Turkey*"]
["UA","Ukraine*"]
["GB"," United Kingdom*"]
["F1","AFRICA* ","DZ + EG + LY + MA + TN + AO + BF + BI + BJ + BW + CD + CF + CG + CI + CM + CV + DJ + ER + ET + GA + GH + GM + GN + GQ + GW + IO + KE + KM + LR + LS + MG + ML + MR + MU + MW + MZ + NA + NE + NG + RW + SC + SD + SH + SL + SN + SO + SS + ST + SZ + TD + TG + TZ + UG + ZA + ZM + ZW  + F19   "]
["F19","Africa not allocated"]
["F4"," Northern Africa","DZ+EG+LY+MA+TN"]
["DZ","Algeria*"]
["EG","Egypt*"]
["LY","Libyan Arab Jamahiriya*"]
[" MA","Morocco*"]
["TN","Tunisia*"]
["F2"," Other African countries","AO + BF + BI + BJ + BW + CD + CF + CG + CI + CM + CV + DJ + ER + ET + GA + GH + GM + GN + GQ + GW + IO + KE + KM + LR + LS + MG + ML + MR + MU + MW + MZ + NA + NE + NG + RW + SC + SD + SH + SL + SN + SO + SS + ST + SZ + TD + TG + TZ + UG + ZA + ZM + ZW "]
["AO"," Angola"]
["BJ"," Benin"]
["BW"," Botswana"]
["IO"," British Indian Ocean Territory"]
["BF"," Burkina Faso"]
["BI"," Burundi"]
["CM"," Cameroon"]
["CV"," Cape Verde"]
["CF"," Central African Republic"]
["TD"," Chad"]
["KM"," Comoros"]
["CG"," Congo"]
["CI"," Côte d'Ivoire"]
["CD"," Congo, the Democratic Republic of the "]
["DJ"," Djibouti"]
["GQ"," Equatorial Guinea"]
["ER"," Eritrea"]
["ET"," Ethiopia"]
["GA"," Gabon"]
["GM"," Gambia"]
["GH"," Ghana"]
["GN"," Guinea"]
["GW"," Guinea-Bissau"]
["KE"," Kenya"]
["LS"," Lesotho"]
["LR"," Liberia"]
["MG"," Madagascar"]
["MW"," Malawi"]
["ML"," Mali"]
["MR"," Mauritania"]
["MU"," Mauritius"]
["MZ"," Mozambique"]
["NA"," Namibia"]
["NE"," Niger"]
["NG"," Nigeria*"]
["RW"," Rwanda"]
["SH"," St Helena"]
["ST"," Sao Tome & Principe"]
["SN"," Senegal"]
["SC"," Seychelles"]
["SL"," Sierra Leone"]
["SO"," Somalia"]
["ZA"," South Africa*"]
["SD"," Sudan"]
["SS"," South Sudan"]
["SZ"," Swaziland"]
["TZ"," Tanzania, United Republic of"]
["TG"," Togo"]
["UG"," Uganda"]
["ZM"," Zambia"]
["ZW"," Zimbabwe"]
["A1","AMERICA ","CA + US + GL + AG + AI + AW + BB + BM + BQ + BS + BZ + CR + CU + CW + DM + DO + GD + GT + HN + HT + JM + KN + KY + LC + MS + MX + NI + PA + SV + SX + TC + TT + VC + VG + VI  + AR + BO + BR + CL + CO + EC + FK + GY + PE + PY + SR + UY + VE + A19"]
["A1X","America Excluding OECD countries","From 2010 onwards:A1-CA-CL-MX-US    Until end 2009:A1-CA-MX-US"]
["A19","America not allocated"]
["A2"," Northern America","CA+US+GL"]
["A2X"," Northern America Excluding OECD countries","A2-CA-US"]
["CA","Canada*"]
["GL","Greenland"]
["US","United States*"]
["A5"," Central America and Caribbean countries","AG + AI + AW + BB + BM + BQ + BS + BZ + CR + CU + CW + DM + DO + GD + GT + HN + HT + JM + KN + KY + LC + MS + MX + NI + PA + SV + SX + TC + TT + VC + VG + VI "]
["A5X"," Central America and Caribbean excluding OECD countries","A5-MX"]
["AI"," Anguilla"]
["AG"," Antigua and Barbuda"]
["AW"," Aruba"]
["BS"," Bahamas"]
["BB"," Barbados"]
["BZ"," Belize"]
["BM"," Bermuda"]
["BQ"," Bonaire, St Eustatius and Saba"]
["KY"," Cayman Islands"]
["CR"," Costa Rica*"]
["CU"," Cuba"]
["CW"," Curaçao"]
["DM"," Dominica"]
["DO"," Dominican Republic"]
["SV"," El Salvador"]
["GD"," Grenada"]
["GT"," Guatemala"]
["HT"," Haiti"]
["HN"," Honduras"]
["JM"," Jamaica"]
["MX"," Mexico*"]
["MS"," Montserrat"]
["NI"," Nicaragua"]
["PA"," Panama*"]
["KN"," Saint Kitts and Nevis"]
["LC"," Saint Lucia"]
["VC"," Saint Vincent and the Grenadines"]
["SX"," Sint Maarten"]
["TT"," Trinidad and Tobago"]
["TC"," Turks & Caicos Islands"]
["VG"," Virgin Islands, British "]
["VI"," Virgin Islands, U.S."]
["A7"," South America","AR+BO+BR+CL+CO+EC+FK+GY+PE+PY+SR+UY+VE"]
["A7X"," South America Excluding OECD countries","From 2010: A7-CL "]
["AR","Argentina*"]
["BO","Bolivia"]
["BR","Brazil*"]
["CL","Chile*"]
["CO","Colombia*"]
["EC","Ecuador"]
["FK","Falkland Islands (Malvinas)"]
["GY","Guyana"]
["PY","Paraguay"]
["PE","Peru*"]
["SR","Suriname"]
["UY","Uruguay*"]
["VE","Venezuela*"]
["S1","ASIA ","AM + AZ + GE + IL + JO + LB + PS + SY + AE + BH + IQ + KW + OM + QA + SA + YE + AF + BD + BN + BT + CN + HK + ID + IN + IR + JP + KG + KH + KP + KR + KZ + LA + LK + MM + MN + MO + MV + MY + NP + PK + PH + SG + TH + TJ + TL + TM + TW + UZ + VN +S19   "]
["S1X","Asia Excluding OECD countries*","From 2010: S1-IL-JP-KR      Until end 2009: S1-JP-KR"]
["S19","Asia not allocated*"]
["S3"," Near and Middle East countries*","AM + AZ + GE + IL + JO + LB + PS + SY + AE + BH + IQ + KW + OM + QA + SA + YE "]
["S3X"," NME Excluding OECD countries","From 2010: S3-IL"]
["S35","Gulf Arabian countries","AE+BH+IQ+KW+OM+QA+SA+YE"]
["BH"," Bahrain"]
["IQ"," Iraq"]
["KW"," Kuwait*"]
["OM"," Oman"]
["QA"," Qatar"]
["SA"," Saudi Arabia*"]
["AE"," United Arab Emirates*"]
["YE"," Yemen"]
["S37","Other Near and Middle East","AM+AZ+GE+IL+JO+LB+PS+SY"]
["S37X","Other NME Excluding OECD countries","From 2010: S37-IL "]
["AM"," Armenia"]
["AZ"," Azerbaijan"]
["GE"," Georgia"]
["IL"," Israel*"]
["JO"," Jordan*"]
["LB"," Lebanon"]
["PS"," Palestine, State of"]
["SY"," Syrian Arab Republic"]
["S6"," Other Asian countries ","AF + BD + BN + BT + CN + HK + ID + IN + IR + JP + KG + KH + KP + KR + KZ + LA + LK + MM + MN + MO + MV + MY + NP + PK + PH + SG + TH + TJ + TL + TM + TW + UZ + VN "]
["S6X"," Other Asian countries excluding OECD ","S6-JP-KR"]
["AF"," Afghanistan"]
["BD"," Bangladesh"]
["BT"," Bhutan"]
["BN"," Brunei Darussalam"]
["KH"," Cambodia "]
["CN"," China*"]
["HK"," Hong Kong*"]
["IN"," India*"]
["ID"," Indonesia*"]
["IR"," Iran"]
["JP"," Japan*"]
["KZ"," Kazakhstan"]
["KP"," Korea, Democratic People's Republic of (North Korea)"]
["KR"," Korea, Republic of (South Korea)*"]
["KG"," Kyrgyzstan"]
["LA"," Laos"]
["MO"," Macao"]
["MY"," Malaysia*"]
["MV"," Maldives"]
["MN"," Mongolia"]
["MM"," Myanmar"]
["NP"," Nepal"]
["PK"," Pakistan"]
["PH"," Philippines*"]
["SG"," Singapore*"]
["LK"," Sri Lanka"]
["TW"," Chinese Taipei"]
["TJ"," Tajikistan"]
["TH"," Thailand*"]
["TL"," Timor-Leste"]
["TM"," Turkmenistan"]
["UZ"," Uzbekistan"]
["VN"," Viet Nam*"]
["O1","AUSTRALIA, OCEANIA and POLAR REGIONS","O1=AU + FJ + FM + KI + MH + MP + NC + NR + NZ + PF + PG + PN + PW + SB + TO + TV + VU + WF + WS + CC + CX+HM + NF + AS + GU + UM + CK + NU + TK + AQ + BV + GS + TF+ O19  "]
["O1X0","Oceania and Polar regions Excluding OECD countries","O1-AU-NZ"]
["O19","Oceania and polar regions not allocated"]
["AS","American Samoa"]
["AQ","Antartica"]
["AU","Australia*"]
["BV","Bouvet Island"]
["CX","Christmas Islands"]
["CC","Cocos (Keeling Islands)"]
["CK","Cook Islands"]
["FJ","Fiji"]
["PF","French Polynesia"]
["TF","French Southern and Antarctic Lands"]
["GU","Guam"]
["HM","Heard Island and McDonald Islands"]
["KI","Kiribati"]
["MH","Marshall Islands"]
["FM","Micronesia, Federated States of"]
["NR","Nauru"]
["NC","New Caledonia"]
["NZ","New Zealand*"]
["NU","Niue"]
["NF","Norfolk Island"]
["MP","Northern Mariana Islands"]
["PW","Palau"]
["PG","Papua New Guinea"]
["PN","Pitcairn"]
["WS","Samoa"]
["SB","Solomon Islands"]
["GS","South Georgia and the South Sandwich Islands"]
["TK","Tokelau"]
["TO","Tonga"]
["TV","Tuvalu"]
["UM","US Minor Outlying Islands"]
["VU","Vanuatu"]
["WF","Wallis and Futuna"]
[]
["Economic zones"]
["(A) OECD"]
["P0","OECD*","From 2010: AT+AU+BE+CA+CH+CL+CZ+DE+DK+EE+ES+FI+FR+GB+GR+LU+HU+IE+IL+IS+IT+JP+KR+MX+NL+NO+NZ+PL+PT+SE+SI+SK+TR+US                                                                                                                                                                                                                                                   Until end 2009: AT+AU+BE+CA+CH+CZ+DE+DK+ES+FI+FR+GB+GR+LU+HU+IE+IS+IT+JP+KR+MX+NL+NO+NZ+PL+PT+SE+SK+TR+US"]
["(B) EUROPEAN UNION"]
["B5","EU28*","AT+BE+BG+CY+CZ+DE+DK+EE+ES+FI+FR+GB+GR+HR+HU+IE+IT+LT+LU+LV+MT+NL+PL+PT+RO+SE+SI+SK+4Y+B09  (items 4Y:'All Euopean Community Institutions, Organs and Organisms including ECB and ESM' and item B0: 'EU changing composiion not allocated' are only for European countries, and are not requested separately by the OECD)"]
["(C) OTHER ECONOMIC AND GEOGRAPHIC ZONES"]
["R4","ASEAN (Association of South East Asian Nations)*","BN + ID + KH + LA + MM + MY + PH + SG + TH + VN (10 countries)"]
["R220","G20 countries excl. EU*","R221+R222"]
["R221","G20 OECD countries*","AU+CA+DE+FR+GB+IT+JP+KR+MX+TR+US (11 countries)"]
["R222","G20 Non-OECD ctr.*","AR+BR+CN+IN+ID+RU+SA+ZA (8 countries)"]
["F98","MENA (Middle east and North Africa countries)*","AE+BH+DJ+DZ+EG+IQ+JO+KW+LB+LY+MA+OM+PS+QA+SA+SY+TN+YE (18 countries)"]
["R25","Total Official Development Assistance (ODA) recipients*","TR + RS + BA + ME + MK + AL + UA + BY + MD + DZ + LY + MA + TN + EG + ZA + AO + BW + BI + CM + CV + CF + TD + KM + CG + CD + BJ + ET + GA + GM + GH + GN + GW + GQ + CI + KE + LS + LR + MG + MW + ML + MR + MU + MZ + NE + NG + ZW + RW + ST + SN + SC + ER + SL + SO + DJ + NA + SH + SD + SS + SZ + TZ + TG + UG + BF + ZM + CR + CU + DO + SV + GT + HT + HN + BZ + JM + MX + NI + PA +  AG + DM + GD +  LC + VC + MS + AR + BO + BR + CL + CO + EC + GY + PY + PE + SR + UY + VE + IR + IQ + JO + PS + LB + SY + YE + AM + AZ + GE + KZ + KG + TJ + TM + UZ + AF + BT + MM + LK + IN + MV + NP + PK + BD + KH + CN + ID + KP + LA + MY + MN + PH + TH + TL + VN + CK + FJ + KI + NR + VU + NU + MH + FM + PW + PG + SB + TK + TO + TV + WF + WS (145 countries)"]
["R251","ODA recipients -Europe*","TR + RS + BA + ME + MK + AL + UA + BY + MD (9 countries)"]
["R252","ODA recipients-Africa*","DZ + LY + MA + TN + EG + ZA + AO + BW + BI + CM + CV + CF + TD + KM + CG + CD + BJ + ET + GA + GM + GH + GN + GW + GQ + CI + KE + LS + LR + MG + MW + ML + MR + MU + MZ + NE + NG + ZW + RW + ST + SN + SC + ER + SL + SO + DJ + NA + SH + SD + SS + SZ + TZ + TG + UG + BF + ZM (55 countries)"]
["R253","ODA recipients-America*","CR + CU + DO + SV + GT + HT + HN + BZ + JM + MX + NI + PA + AG + DM + GD +  LC + VC + MS + AR + BO + BR + CL + CO + EC + GY + PY + PE + SR + UY + VE (30 countries)"]
["R254","ODA recipients-Asia*","IR + IQ + JO + PS + LB + SY + YE + AM + AZ + GE + KZ + KG + TJ + TM + UZ + AF + BT + MM + LK + IN + MV + NP + PK + BD + KH + CN + ID + KP + LA + MY + MN + PH + TH + TL + VN (35 countries)"]
["R255","ODA recipients-Oceania*","CK + FJ + KI + NR + VU + NU + MH + FM + PW + PG + SB + TK + TO + TV + WF + WS (16 countries)"]
[]
["*: Priority items to avoid when flagging data for secondary confidentiality. If the secondary confidentiality checking exercise is too burdensome for reporting the full GEO breakdown for FDI instruments and for series of SPEs/excluding resident SPE, the priority items should be reported while the other items can be flagged as non-publishable, unless they play a significant role in total FDI. "]
["1: Footnote by Turkey:\n The information in this document with reference to “Cyprus” relates to the southern part of the Island. There is no single authority representing both Turkish and Greek Cypriot people on the Island. Turkey recognizes the Turkish Republic of Northern Cyprus (TRNC). Until a lasting and equitable solution is found within the context of United Nations, Turkey shall preserve its position concerning the “Cyprus” issue. \n Footnote by all the European Union Member States of the OECD and the European Union:\n The Republic of Cyprus is recognized by all members of the United Nations with the exception of Turkey. The information in this document relates to the area under the effective control of the Government of the Republic of Cyprus.\nFootnote by Turkey:\n The information in this document with reference to “Cyprus” relates to the southern part of the Island. There is no single authority representing both Turkish and Greek Cypriot people on the Island. Turkey recognizes the Turkish Republic of Northern Cyprus (TRNC). Until a lasting and equitable solution is found within the context of United Nations, Turkey shall preserve its position concerning the “Cyprus” issue. \n Footnote by all the European Union Member States of the OECD and the European Union:\n The Republic of Cyprus is recognized by all members of the United Nations with the exception of Turkey. The information in this document relates to the area under the effective control of the Government of the Republic of Cyprus.\n"]

{"sheet":"IND composition","index":4,"n_rows":88,"n_cols":3,"rows_kept":88,"cut":false,"hidden":false,"merged":[]}
["OECD-FDI Industry classification (ISIC4)"]
["Codes","Labels","ISIC4"]
["A","AGRICULTURE, FORESTRY AND FISHING (Section A)","sec A"]
["B","MINING AND QUARRYING (Section B)","sec B"]
["B06_09","Of which:      Extraction of crude petroleum and gas; mining support services","div 06, 09"]
["A_B","TOTAL PRIMARY SECTOR (Sections A and B)","secA + secB"]
["C","MANUFACTURING (Section C)","sec C"]
["C10T12","Food products, beverage and tobacco products","div 10, 11, 12"]
["C13_14","Textiles and wearing apparel","div 13, 14"]
["C16T18","Manufacture of wood, paper, and their products; printing and reproduction of recorded media","div 16, 17, 18"]
["C13T18X15","[TOTAL textiles + wood activities ](C13_14+C16T18)","div 13, 14, 16, 17, 18"]
["C19","Coke and refined petroleum products","div 19"]
["C20","Manufacture of chemicals and chemical products ","div 20"]
["C21","Pharmaceuticals products and preparation ","div 21"]
["C22","Rubber and plastic products","div 22"]
["C19T22","[TOTAL petroleum, chemical, pharmaceuticals, rubber and plastic products] (C19+C20+C21+C22) ","div 19, 20, 21, 22"]
["C24_25","Basic metal and fabricated metal products ","div 24, 25"]
["C26","Computer, electronic and optical products ","div 26"]
["C262"," Of which: Computers and peripheral equipment","group 26.2"]
["C263_264","                   Communication equipment and consumer electronics","groups 26.3 and 26.4"]
["C265_266","                   Instrument and appliances for measuring, testing and navigation; watches and clock; irradiation, electromedical and electrotherapeutic equipment","div 26.5 and 26.6"]
["C28","Machinery and equipment n. e. c","div 28"]
["C24T28X27","[TOTAL metal, computer and machinery] (C24_C25+C26+C28)","div 24, 25, 26, 28"]
["C29","Motor vehicles, trailers and semi-trailers","div 29"]
["C30","Other transport equipments","div 30"]
["C303","Of which:   Manufacture of aircraft and spacecraft","group 30.3"]
["C29_30","[TOTAL vehicles and other transport equipment] (C29+C30)","div 29, 30"]
["C_OTH","Other manufacturing","div 15, 23, 27, 31, 32, 33"]
["D35","ELECTRICITY, GAS, STEAM AND AIR CONDITIONING SUPPLY (Section D)","sec D"]
["E","WATER SUPPLY, SEWERAGE, WASTE MANAGEMENT AND REMEDIATION ACTIVITIES (Section E)","sec E"]
["E36","Water collection, treatment and supply","div 36"]
["E37T39","Sewerage, waste management and remediation activities  ","div 37, 38, 39"]
["F","CONSTRUCTION (Section F)  ","sec F"]
["G","WHOLESALE AND RETAILTRADE; REPAIR OF MOTOR VEHICLES AND MOTOR CYCLES (Section G) ","sec G"]
["G45","Wholesale and retail trade and repair of motor vehicles and motorcycles","div 45"]
["G46","Wholesale trade, except of motor vehicles and motor cycles","div 46"]
["G47","Retail trade, except of motor vehicles and motor cycles ","div 47"]
["H","TRANSPORTATION AND STORAGE (Section H) ","sec H"]
["H49","Land transport and transport via pipelines","div 49, 50, 51, 52"]
["H50","Water transport","div 49"]
["H51","Air transport ","div 50"]
["H52","Warehousing and support activities for transportation ","div 51"]
["HX53","[TOTAL transport and storage] (H49+H50+H51+H52)","div 52"]
["H53","Post and courier activities ","div 53"]
["I","ACCOMODATION AND FOOD SERVICE ACTIVITIES (Section I)","sec I"]
["J","INFORMATION AND COMMUNICATION (Section J)  ","sec J"]
["J59_60","Motion picture, video and TV programme production, sound recording and music publishing activities; programming and broadcasting activities ","div 59, 60"]
["J61","Telecommunications ","div 61"]
["J58_62_63","Other information and communication activities ","div 58, 62, 63"]
["K","FINANCIAL AND INSURANCE ACTIVITIES (Section K)  ","sec K"]
["K64","Financial services activities, except insurance and pension funding ","div 64"]
["K641","Of which:   Monetary intermediation ","group 64,1"]
["K642","Activities of holding companies ","group 64,2"]
["K643","  Trusts, funds and similar financial entities","group 64,3"]
["K65","Insurance, reinsurance and pension funding, except compulsory social security","div 65"]
["K66","Activities auxiliary to financial services and insurance activities","div 66"]
["L","REAL ESTATE ACTIVITIES (Section L) ","sec L"]
["M","PROFESSIONAL, SCIENTIFIC AND TECHNICAL ACTIVITIES (Section M)","sec M"]
["M69","Legal and accounting activities","div 69"]
["M691","     Legal activities","group 69,1"]
["M692","     Accounting, bookkeeping and auditing activities, tax consultancy","group 69,2"]
["M70","Activities of head offices; management and consultancy activities ","div 70"]
["M701","      Activities of head offices","group 70,1"]
["M702","      Management consultancy activities","group 70,2"]
["M71","Architecture and Engineering activities; technical testing and analysis","div 71"]
["M72","Scientific research and development","div 72"]
["M73","Advertising and market research","div 73"]
["M731","     Advertising","group 73,1"]
["M732","     Market research and public opinion polling","group 73,2"]
["M74_75","Other professional, scientific and technical activities","div 74, 75"]
["N","ADMINISTRATIVE AND SUPPORT SERVICE ACTIVITIES (Section N)","sec N"]
["N77","Rental and leasing activities","div 77"]
["N78T82","Other administrative and support services activities","div 78, 79, 80, 81, 82"]
["N79"," Of which: Travel agency, tour operator reservation service and related activities","div 79"]
["P85","EDUCATION (Section P)  ","sec P"]
["Q","HUMAN HEALTH AND SOCIAL WORK ACTIVITIES (Section Q)","sec Q"]
["R","ARTS, ENTERTAINMENT AND RECREATION (Section R)","sec R"]
["R90","Creative, arts and entertainment activities","div 90"]
["R91","Libraries, archives, museums and other cultural activities","div 91"]
["R92_93","Sports activities and amusement and recreation activities; gambling and betting activities","div 92, 93"]
["O_T_U","Public administration; activities of households and of extraterritorial organisations (Sections O,T, U)","sec O, T and U"]
["S","OTHER SERVICE ACTIVITIES (Section S)","sec S"]
["S94","Activities of membership organisations","div 94"]
["S95_96","Repair of computers and personal and household goods, other services","div 95, 96"]
["GTU","TOTAL SERVICES (Sections G to U)","sec G, H, I, J, K, L, M, N O, P, Q, R, S, T, U"]
["NAL","Unallocated"]
["PRV_RE","Priv. purchase & sales of real estate"]
["FDI_T","TOTAL (All FDI activities)","Sec A to U +NAL+PRV_RE"]

{"sheet":"3-POS-GEO-XSPE","index":5,"n_rows":300,"n_cols":38,"rows_kept":300,"cut":false,"hidden":false,"merged":[[2,32,2,37],[3,26,3,27],[3,30,3,31],[3,32,3,33],[3,34,3,35],[3,36,3,37],[2,2,2,7],[2,8,2,13],[2,14,2,19],[2,20,2,25],[2,26,2,31],[0,1,0,28],[3,2,3,3],[3,4,3,5],[3,6,3,7],[3,8,3,9],[3,10,3,11],[3,12,3,13],[3,28,3,29],[3,16,3,17],[3,18,3,19],[3,20,3,21],[3,22,3,23],[3,24,3,25],[3,14,3,15],[1,2,1,19],[1,20,1,37]]}
["                        ","SUPPLEMENTAL QUESTIONNAIRE 3-POS-GEO-XSPE                                                                                                                                                                                                                                                                                                                                                                                                    Foreign Direct Investment Positions excluding resident SPEs and looking through non resident SPEs by geographical allocation (Directional Principle)                                                                                                                                                                                                                                                                                            Total inward and outward FDI position series should be reported with the full geographical breakdown. Items marked with * are to be avoided in priority when flagging data for secondary confidentiality. Also, when secondary confidentiality process becomes too burdensome to report the full geographical breakdown for series of FDI instruments, those priority items are to be reported in priority while other items can be flagged as non publishable.",null,null,null,null,null,null,null,null,null,null,null,null,null,null,null,null,null,null,null,null,null,null,null,null,null,null,null,null,null,null,null,null,null,null,null,"OECD"]
["COUNTRY:",{"$f":"Country","v":""},"INWARD INVESTMENT (DI)",null,null,null,null,null,null,null,null,null,null,null,null,null,null,null,null,null,"OUTWARD INVESTMENT (DO)"]
["YEAR:  ",{"$f":"Year","v":""},"EQUITY (incl. RE) (F5)",null,null,null,null,null,"DEBT INSTRUMENT (FL)",null,null,null,null,null,"TOTAL INWARD INVESTMENT (F)",null,null,null,null,null,"EQUITY (incl. RE) (F5)",null,null,null,null,null,"DEBT INSTRUMENT (FL)",null,null,null,null,null,"TOTAL OUTWARD INVESTMENT (F)"]
["CURRENCY:  ",{"$f":"Currency","v":0},"Liabilities",null,"Assets",null,"Net Inward",null,"Liabilities",null,"Assets",null,"Net Inward",null,"Liabilities",null,"Assets",null,"Net Inward",null,"Assets",null,"Liabilities",null,"Net outward",null,"Assets",null,"Liabilities",null,"Net outward",null,"Assets",null,"Liabilities",null,"Net outward"]
["UNITS:           ","MILLIONS","L",null,"A",null,"NI",null,"L",null,"A",null,"NI",null,"L",null,"A",null,"NI",null,"A",null,"L",null,"NO",null,"A",null,"L",null,"NO",null,"A",null,"L",null,"NO"]
["STATISTICAL UNIT:",{"$f":"StatUnit","v":""},"(1)",null,"(2)",null,"(3)                                                 (1-2)",null,"(4)",null,"(5)",null,"(6)                                        (4-5)",null,"(7)                              (1+4)",null,"(8)                                   (2+5)",null,"(9)                                (3+6)",null,"(10)",null,"(11)",null,"(12)                                      (10-11)",null,"(13)",null,"(14)",null,"(15)                                      (13-14)",null,"(16)                                          (10+13)",null,"(17)                                      (11+14)",null,"(18)                                      (12+15)"]
["VALUATION:",{"$f":"ValuationPos","v":""},null,"cc",null,"cc",null,"cc",null,"cc",null,"cc",null,"cc",null,"cc",null,"cc",null,"cc",null,"cc",null,"cc",null,"cc",null,"cc",null,"cc",null,"cc",null,"cc",null,"cc",null,"cc"]
["W0","WORLD*"]
["P8","World Excluding OECD"]
["W190","World not allocated"]
["E1","EUROPE "]
["E1X","Europe Excluding OECD countries"]
["E19","Europe not allocated"]
["AL"," Albania"]
["AD"," Andorra"]
["AT"," Austria*"]
["BY"," Belarus"]
["BE"," Belgium*"]
["BA"," Bosnia and Herzegovina"]
["BG"," Bulgaria*"]
["HR"," Croatia"]
["CY"," Cyprus*,1"]
["CZ"," Czech Republic*"]
["DK"," Denmark*"]
["EE"," Estonia*"]
["FO"," Faroe Islands"]
["FI"," Finland*"]
["FR"," France*"]
["DE"," Germany*"]
["GI"," Gibraltar"]
["GR"," Greece*"]
["GG"," Guernsey"]
["VA"," Holy see (Vatican City State)"]
["HU"," Hungary*"]
["IS"," Iceland*"]
["IE"," Ireland*"]
["IM"," Isle of Man"]
["IT"," Italy*"]
["JE"," Jersey"]
["XK","Kosovo"]
["LV"," Latvia*"]
["LI"," Liechtenstein"]
["LT"," Lithuania*"]
["LU"," Luxembourg*"]
["MK"," Macedonia, the Former Yugoslav Republic of "]
["MT"," Malta"]
["MD"," Moldova"]
["ME"," Montenegro"]
["NL"," Netherlands*"]
["NO"," Norway*"]
["PL"," Poland*"]
["PT"," Portugal*"]
["RO"," Romania*"]
["RU"," Russia*"]
["SM"," San Marino"]
["RS"," Serbia"]
["SK"," Slovakia*"]
["SI"," Slovenia*"]
["ES"," Spain*"]
["SE"," Sweden*"]
["CH"," Switzerland* "]
["TR","Turkey*"]
["UA","Ukraine*"]
["GB"," United Kingdom*"]
["R1","Belgum-Luxembourg (until end 2002)"]
["CS","Serbia and Montenegro (until end 2006)"]
["F1","AFRICA* "]
["F19","Africa not allocated"]
["F4","   Northern Africa"]
["DZ","Algeria*"]
["EG","Egypt*"]
["LY","Libyan Arab Jamahiriya*"]
["MA","Morocco*"]
["TN","Tunisia*"]
["F2"," Other African countries"]
["AO"," Angola"]
["BJ"," Benin"]
["BW"," Botswana"]
["IO"," British Indian Ocean Territory"]
["BF"," Burkina Faso"]
["BI"," Burundi"]
["CM"," Cameroon"]
["CV"," Cape Verde"]
["CF"," Central African Republic"]
["TD"," Chad"]
["KM"," Comoros"]
["CG"," Congo"]
["CI"," Côte d'Ivoire"]
["CD"," Congo, the Democratic Republic of the "]
["DJ"," Djibouti"]
["GQ"," Equatorial Guinea"]
["ER"," Eritrea"]
["ET"," Ethiopia"]
["GA"," Gabon"]
["GM"," Gambia"]
["GH"," Ghana"]
["GN"," Guinea"]
["GW"," Guinea-Bissau"]
["KE"," Kenya"]
["LS"," Lesotho"]
["LR"," Liberia"]
["MG"," Madagascar"]
["MW"," Malawi"]
["ML"," Mali"]
["MR"," Mauritania"]
["MU"," Mauritius"]
["MZ"," Mozambique"]
["NA"," Namibia"]
["NE"," Niger"]
["NG"," Nigeria*"]
["RW"," Rwanda"]
["SH"," St Helena"]
["ST"," Sao Tome & Principe"]
["SN"," Senegal"]
["SC"," Seychelles"]
["SL"," Sierra Leone"]
["SO"," Somalia"]
["ZA"," South Africa*"]
["SD","Sudan"]
["SS","South Sudan"]
["SZ"," Swaziland"]
["TZ"," Tanzania, United Republic of"]
["TG"," Togo"]
["UG"," Uganda"]
["ZM"," Zambia"]
["ZW","Zimbabwe"]
["A1","AMERICA "]
["A1X","America Excluding OECD countries"]
["A19","America not allocated"]
["A2","   Northern America"]
["A2X","   Northern America Excluding OECD countries"]
["CA","      Canada*"]
["GL","      Greenland"]
["US","      United States*"]
["A5","   Central America and Caribbean countries"]
["A5X","Central and Caribbean countries excl. OECD countries"]
["AI","      Anguilla"]
["AG","      Antigua and Barbuda"]
["AW","      Aruba"]
["BS","      Bahamas"]
["BB","      Barbados"]
["BZ","      Belize"]
["BM","      Bermuda"]
["BQ","      Bonaire, Saint Eustatius and Saba (from 2011 onwards)"]
["KY","      Cayman Islands"]
["CR","      Costa Rica*"]
["CU","      Cuba"]
["CW","      Curaçao (from 2011 onwards)"]
["DM","      Dominica"]
["DO","      Dominican Republic"]
["SV","      El Salvador"]
["GD","      Grenada"]
["GT","      Guatemala"]
["HT","      Haiti"]
["HN","      Honduras"]
["JM","      Jamaica"]
["MX","      Mexico* "]
["MS","      Montserrat"]
["NI","      Nicaragua"]
["PA","      Panama*"]
["KN","      Saint Kitts and Nevis"]
["LC","      Saint Lucia"]
["VC","      Saint Vincent and the Grenadines"]
["SX","      Sint Maarten (from 2011 onwards)"]
["TT","      Trinidad and Tobago"]
["TC","      Turks and Caicos Islands"]
["VG","      Virgin Islands, British"]
["VI","      Virgin Islands, U.S."]
["AN","      Netherlands Antilles (until end 2010)"]
["A7","   South America"]
["A7X","    South America excluding OECD countries"]
["AR","      Argentina*"]
["BO","      Bolivia"]
["BR","      Brazil*"]
["CL","      Chile*"]
["CO","      Colombia*"]
["EC","      Ecuador"]
["FK","      Falkland Islands (Malvinas)"]
["GY","      Guyana"]
["PY","      Paraguay"]
["PE","      Peru*"]
["SR","      Suriname"]
["UY","      Uruguay*"]
["VE","      Venezuela*"]
["S1","ASIA "]
["S1X","Asia Excluding OECD countries"]
["S19","Asia not allocated"]
["S3","   Near and Middle East countries*"]
["S3X","   Near and Middle East excluding OECD"]
["S35","      Gulf Arabian countries"]
["BH","         Bahrain"]
["IQ","         Iraq"]
["KW","         Kuwait*"]
["OM","         Oman"]
["QA","         Qatar"]
["SA","         Saudi Arabia*"]
["AE","         United Arab Emirates*"]
["YE","         Yemen"]
["S37","      Other Near and Middle East countries"]
["S37X","      Other Near and Middle East excluding OECD countries"]
["AM","         Armenia"]
["AZ","         Azerbaijan"]
["GE","         Georgia"]
["IL","         Israel*"]
["JO","         Jordan*"]
["LB","         Lebanon"]
["PS","         Palestinian Territory, Occupied"]
["SY","         Syrian Arab Republic"]
["S6","Other Asian countries"]
["S6X","Other Asian countries excluding OECD countries"]
["AF","      Afghanistan"]
["BD","      Bangladesh"]
["BT","      Bhutan"]
["BN","      Brunei Darussalam"]
["KH","      Cambodia (Kampuchea)"]
["CN","      China*"]
["HK","      Hong Kong, China*"]
["IN","      India*"]
["ID","      Indonesia*"]
["IR","      Iran, Islamic Republic of"]
["JP","      Japan*"]
["KZ","      Kazakhstan"]
["KP","      Korea, Democratic People's Republic of (North Korea)"]
["KR","      Korea, Republic of (South Korea)*"]
["KG","      Kyrgyzstan"]
["LA","      Lao People's Democratic Republic"]
["MO","      Macao"]
["MY","      Malaysia*"]
["MV","      Maldives"]
["MN","      Mongolia"]
["MM","      Myanmar"]
["NP","      Nepal"]
["PK","      Pakistan"]
["PH","      Philippines*"]
["SG","      Singapore*"]
["LK","      Sri Lanka"]
["TW","      Chinese Taipei"]
["TJ","      Tajikistan"]
["TH","      Thailand*"]
["TL","      Timor-Leste"]
["TM","      Turkmenistan"]
["UZ","      Uzbekistan"]
["VN","      Viet Nam*"]
["O1","AUSTRALIA, OCEANIA & POLAR REGIONS"]
["O1X0","Oceania & Polar regions  Excluding OECD countries"]
["O19","Oceania & Polar regions not allocated"]
["AS","American Samoa"]
["AQ","Antarctica"]
["AU","Australia*"]
["BV","Bouvet Island"]
["CX","Christmas Islands"]
["CC","Cocos Islands"]
["CK","Cook Islands"]
["FJ","Fiji"]
["PF","French Polynesia"]
["TF","French Southern Territories"]
["GU","Guam"]
["HM","Heard islands and Mc Donald islands"]
["KI","Kiribati"]
["MH","Marshall Islands"]
["FM","Micronesia, Federated States of"]
["NR","Nauru"]
["NC","New Caledonia"]
["NZ","New Zealand*"]
["NU","Niue"]
["NF","Norfolk Island"]
["MP","Northern Mariana Islands"]
["PW","Palau"]
["PG","Papua New Guinea"]
["PN","Pitcairn"]
["WS","Samoa"]
["SB","Solomon Islands"]
["GS","South Georgia  and the South Sandwich Islands"]
["TK","Tokelau"]
["TO","Tonga"]
["TV","Tuvalu"]
["UM","US Minor Outllying islands"]
["VU","Vanuatu"]
["WF","Wallis and Futuna"]
["ECONOMIC AND MONETARY ZONES"]
["P0","OECD*"]
["B5","EU28* (from 2013)"]
["B4","EU27* (for 2007-2012)"]
["B3","EU25* (for 2004-2006 only)"]
["B2","EU15* (until 2003 only)"]
["R4","ASEAN*"]
["R220","G20 countries*"]
["R221","G20 OECD countries*"]
["R222","G20 Non-OECD ctr.*"]
["F98","MENA (Middle East and North Africa countries)*"]
["R25","Total Official Development Assistance (ODA) recipients*"]
["R251","ODA recipients -Europe*"]
["R252","ODA recipients-Africa*"]
["R253","ODA recipients-America*"]
["R254","ODA recipients-Asia*"]
["R255","ODA recipients-Oceania*"]
["[1] Footnote by Turkey:\n The information in this document with reference to “Cyprus” relates to the southern part of the Island. There is no single authority representing both Turkish and Greek Cypriot people on the Island. Turkey recognizes the Turkish Republic of Northern Cyprus (TRNC). Until a lasting and equitable solution is found within the context of United Nations, Turkey shall preserve its position concerning the “Cyprus” issue. \n Footnote by all the European Union Member States of the OECD and the European Union:\n The Republic of Cyprus is recognized by all members of the United Nations with the exception of Turkey. The information in this document relates to the area under the effective control of the Government of the Republic of Cyprus.\nFootnote by Turkey:\n The information in this document with reference to “Cyprus” relates to the southern part of the Island. There is no single authority representing both Turkish and Greek Cypriot people on the Island. Turkey recognizes the Turkish Republic of Northern Cyprus (TRNC). Until a lasting and equitable solution is found within the context of United Nations, Turkey shall preserve its position concerning the “Cyprus” issue. \n Footnote by all the European Union Member States of the OECD and the European Union:\n The Republic of Cyprus is recognized by all members of the United Nations with the exception of Turkey. The information in this document relates to the area under the effective control of the Government of the Republic of Cyprus.\n"]
[]
["* Priority items to avoid when flagging data for secondary confidentiality. If the secondary confidentiality checking exercise is too burdensome for reporting the full GEO breakdown for FDI instruments and for series of SPEs/excluding resident SPE, the priority items should be reported while the other items can be flagged as non-publishable, unless they play a significant role in total FDI. "]
["Cells highlighted in grey are secondary priority"]

{"sheet":"3-POS-IND-XSPE","index":6,"n_rows":94,"n_cols":38,"rows_kept":94,"cut":false,"hidden":false,"merged":[[2,32,2,37],[0,1,0,20],[1,2,1,19],[1,20,1,37],[2,2,2,7],[2,8,2,13],[2,14,2,19],[2,20,2,25],[2,26,2,31],[5,2,5,3],[5,4,5,5],[3,2,3,3],[3,4,3,5],[3,6,3,7],[3,8,3,9],[3,10,3,11],[3,12,3,13],[3,14,3,15],[3,16,3,17],[3,18,3,19],[3,20,3,21],[3,32,3,33],[3,34,3,35],[3,36,3,37],[3,22,3,23],[3,24,3,25],[3,26,3,27],[3,28,3,29],[3,30,3,31]]}
["                        ","SUPPLEMENTAL QUESTIONNAIRE 3-POS-IND-XSPE                                                                                                                                                                                                                                                                                                                                                                                  Foreign Direct Investment Positions excluding resident SPEs and looking through non resident SPEs by industry classification (ISIC4) (Directional Principle)",null,null,null,null,null,null,null,null,null,null,null,null,null,null,null,null,null,null,null,null,null,null,null,null,null,null,null,null,null,null,null,null,null,null,null,"OECD"]
["COUNTRY:",{"$f":"Country","v":""},"INWARD INVESTMENT (DI)",null,null,null,null,null,null,null,null,null,null,null,null,null,null,null,null,null,"OUTWARD INVESTMENT (DO)"]
["YEAR:  ",{"$f":"Year","v":""},"EQUITY (incl. RE) (F5)",null,null,null,null,null,"DEBT INSTRUMENT (FL)",null,null,null,null,null,"TOTAL INWARD INVESTMENT (F)",null,null,null,null,null,"EQUITY (incl. RE) (F5)",null,null,null,null,null,"DEBT INSTRUMENT (FL)",null,null,null,null,null,"TOTAL OUTWARD INVESTMENT (F)"]
["CURRENCY:  ",{"$f":"Currency","v":0},"Liabilities",null,"Assets",null,"Net Inward",null,"Liabilities",null,"Assets",null,"Net Inward",null,"Liabilities",null,"Assets",null,"Net Inward",null,"Assets",null,"Liabilities",null,"Net outward",null,"Assets",null,"Liabilities",null,"Net outward",null,"Assets",null,"Liabilities",null,"Net outward"]
["UNITS:           ","MILLIONS","L",null,"A",null,"NI",null,"L",null,"A",null,"NI",null,"L",null,"A",null,"NI",null,"A",null,"L",null,"NO",null,"A",null,"L",null,"NO",null,"A",null,"L",null,"NO"]
["STATISTICAL UNIT:",{"$f":"StatUnit","v":""},"(1)",null,"(2)",null,"(3)                                                 (1-2)",null,"(4)",null,"(5)",null,"(6)                                        (4-5)",null,"(7)                                 (1+4)",null,"(8)                                  (2+5)",null,"(9)                               (3+6)",null,"(10)",null,"(11)",null,"(12)                                      (10-11)",null,"(13)",null,"(14)",null,"(15)                                               (13-14)",null,"(16)                                      (10+13)",null,"(17)                                      (11+14)",null,"(18)                                      (12+15)"]
["VALUATION:",{"$f":"ValuationPos","v":""}]
["ACTIVITY ALLOCATION:",{"$f":"CONCATENATE(\"IN: \",EcoActInward,\"    / OUT: \",EcoActOutward)","v":"IN:     / OUT: "},{"$f":"EcoActInwardCode","v":0},"cc",{"$f":"EcoActInwardCode","v":0},"cc",{"$f":"EcoActInwardCode","v":0},"cc",{"$f":"EcoActInwardCode","v":0},"cc",{"$f":"EcoActInwardCode","v":0},"cc",{"$f":"EcoActInwardCode","v":0},"cc",{"$f":"EcoActInwardCode","v":0},"cc",{"$f":"EcoActInwardCode","v":0},"cc",{"$f":"EcoActInwardCode","v":0},"cc",{"$f":"EcoActOutwardCode","v":0},"cc",{"$f":"EcoActOutwardCode","v":0},"cc",{"$f":"EcoActOutwardCode","v":0},"cc",{"$f":"EcoActOutwardCode","v":0},"cc",{"$f":"EcoActOutwardCode","v":0},"cc",{"$f":"EcoActOutwardCode","v":0},"cc",{"$f":"EcoActOutwardCode","v":0},"cc",{"$f":"EcoActOutwardCode","v":0},"cc",{"$f":"EcoActOutwardCode","v":0},"cc"]
["A","AGRICULTURE, FORESTRY AND FISHING (Section A) "]
["B","MINING AND QUARRYING (Section B)"]
["B06_09","Of which:      Extraction of crude petroleum and gas; mining support services"]
["A_B","TOTAL PRIMARY SECTOR (Sections A and B)"]
["C","MANUFACTURING (Section C) "]
["C10T12","Food products, beverage and tobacco products"]
["C13_14","Textiles and wearing apparel"]
["C16T18","Manufacture of wood, paper, and their products; printing and reproduction or recorded media"]
["C13T18X15","[TOTAL textiles + wood activities ](C13_14+C16T18)"]
["C19","Coke and refined petroleum products"]
["C20","Manufacture of chemicals and chemical products"]
["C21","Pharmaceuticals products and preparation"]
["C22","Rubber and plastic products"]
["C19T22","[TOTAL petroleum, chemical, pharmaceuticals, rubber and plastic products] (C19+C20+C21+C22) "]
["C24_25","Basic metal and fabricated metal products"]
["C26","Computer, electronic and optical products"]
["C262"," Of which: Computers and peripheral equipment"]
["C263_264","      Communication equipment and consumer electronics"]
["C265_266","       Instrument and appliances for measuring, testing and navigation; watches and clock; irradiation, electromedical and electrotherapeutic equipment"]
["C28","Machinery and equipment n. e. c"]
["C24T28X27","[TOTAL metal, computer and machinery] (C24_C25+C26+C28)"]
["C29","Motor vehicles, trailers and semi-trailers"]
["C30","Other transport equipments"]
["C303","Of which:   Manufacture of aircraft and spacecraft"]
["C29_30","[TOTAL vehicles and other transport equipment] (C29+C30)"]
["C_OTH","Other manufacturing"]
["D35","ELECTRICITY, GAS, STEAM AND AIR CONDITIONING SUPPLY (Section D)"]
["E","WATER SUPPLY, SEWERAGE, WASTE MANAGEMENT AND REMEDIATION ACTIVITIES (Section E)"]
["E36","Water collection, treatment and supply"]
["E37T39","Sewerage, waste management and remediation activities"]
["F","CONSTRUCTION (Section F)"]
["G","WHOLESALE AND RETAILTRADE; REPAIR OF MOTOR VEHICLES AND MOTOR CYCLES (Section G)"]
["G45","Wholesale and retail trade and repair of motor vehicles and motorcycles"]
["G46","Wholesale trade, except of motor vehicles and motor cycles"]
["G47","Retail trade, except of motor vehicles and motor cycles"]
["H","TRANSPORTATION AND STORAGE (Section H)"]
["H49","Land transport and transport via pipelines"]
["H50","Water transport"]
["H51","Air transport"]
["H52","Warehousing and support activities for transportation"]
["HX53","[TOTAL transport and storage] (H49+H50+H51+H52)"]
["H53","Post and courier activities"]
["I","ACCOMODATION AND FOOD SERVICE ACTIVITIES (Section I)"]
["J","INFORMATION AND COMMUNICATION (Section J) "]
["J59_60","Motion picture, video and TV programme production, sound recording and music publishing activities; programming and broadcasting activities"]
["J61","Telecommunications"]
["J58_62_63","Other information and communication activities"]
["K","FINANCIAL AND INSURANCE ACTIVITIES (Section K) "]
["K64","Financial services activities, except insurance and pension funding"]
["K641","Of which:   Monetary intermediation"]
["K642","                        Activities of holding companies"]
["K643","                       Trusts, funds and similar financial entities"]
["K65","Insurance, reinsurance and pension funding, except compulsory social security"]
["K66","Activities auxiliary to financial services and insurance activities"]
["L","REAL ESTATE ACTIVITIES (Section L) "]
["M","PROFESSIONAL, SCIENTIFIC AND TECHNICAL ACTIVITIES (Section M)"]
["M69","Legal and accounting activities"]
["M691","     Legal activities"]
["M692","     Accounting, bookkeeping and auditing activities, tax consultancy"]
["M70","Activities of head offices; management and consultancy activities "]
["M701","      Activities of head offices"]
["M702","      Management consultancy activities"]
["M71","Architecture and engineering activities, technical testing and analysis"]
["M72","Scientific research and development"]
["M73","Advertising and market research"]
["M731","     Advertising"]
["M732","     Market research and public opinion polling"]
["M74_75","Other professional, scientific and technical activities"]
["N","ADMINISTRATIVE AND SUPPORT SERVICE ACTIVITIES (Section N)"]
["N77","Rental and leasing activities"]
["N78T82","Other administrative and support services activities"]
["N79"," Of which: Travel agency, tour operator reservation service and related activities"]
["P85","EDUCATION (Section P)"]
["Q","HUMAN HEALTH AND SOCIAL WORK ACTIVITIES (Section Q)"]
["R","ARTS, ENTERTAINMENT AND RECREATION (Section R)"]
["R90","Creative, arts and entertainment activities"]
["R91","Libraries, archives, museums and other cultural activities"]
["R92_93","Sports activities and amusement and recreation activities; gambling and betting activities"]
["O_T_U","Public administration; activities of households and of extraterritorial organisations  (Section O, T, U)"]
["S","OTHER SERVICE ACTIVITIES (Section S)"]
["S94","Activities of membership organisations"]
["S95_96","Repair of computers and personal and household goods, other services"]
["GTU","TOTAL SERVICES (Sections G to U)"]
["NAL","Unallocated"]
["PRV_RE","Priv. purchase & sales of real estate"]
["FDI_T","TOTAL"]

{"sheet":"3-POS-GEO-UIC-IN","index":7,"n_rows":300,"n_cols":56,"rows_kept":300,"cut":false,"hidden":false,"merged":[[0,1,0,28],[2,50,2,55],[3,52,3,53],[3,54,3,55],[1,38,1,55],[2,20,2,25],[2,26,2,31],[2,32,2,37],[2,38,2,43],[2,44,2,49],[3,24,3,25],[3,26,3,27],[3,20,3,21],[3,22,3,23],[1,20,1,37],[3,42,3,43],[1,2,1,19],[2,2,2,7],[2,8,2,13],[2,14,2,19],[3,8,3,9],[3,10,3,11],[3,14,3,15],[3,16,3,17],[3,18,3,19],[3,2,3,3],[3,4,3,5],[3,6,3,7],[3,50,3,51],[3,28,3,29],[3,32,3,33],[3,34,3,35],[3,36,3,37],[3,38,3,39],[3,40,3,41],[3,44,3,45],[3,46,3,47]]}
["                        ","SUPPLEMENTAL QUESTIONNAIRE 3-POS-GEO-UIC-IN                                                                                                                                                                                                                                                                                                                                                                                                   Foreign Direct Investment INWARD Positions according to Ultimate Investing Country by geographical allocation (Directional Principle)                                                                                                                                                                                                                                                                                            Total inward FDI position series should be reported with the full geographical breakdown. Items marked with * are to be avoided in priority when flagging data for secondary confidentiality. Also, when secondary confidentiality process becomes too burdensome to report the full geographical breakdown for series of FDI instruments and for series excluding SPEs/of resident SPEs, those priority items are to be reported in priority while other items can be flagged as non publishable. IN THE TRANSITION PERIOD, INFORMATION ON TOP-TEN INVESTORS ONLY IS MOST WELCOME.",null,null,null,null,null,null,null,null,null,null,null,null,null,null,null,null,null,null,null,null,null,null,null,null,null,null,null,null,null,null,null,null,null,null,null,null,null,null,null,null,null,null,null,null,null,null,null,null,null,null,null,null,null,"OECD"]
["COUNTRY:",{"$f":"Country","v":""},"EQUITY & REINVESTED EARNINGS (F5)",null,null,null,null,null,null,null,null,null,null,null,null,null,null,null,null,null,"DEBT INSTRUMENTS (FL)",null,null,null,null,null,null,null,null,null,null,null,null,null,null,null,null,null,"TOTAL FDI INWARD POSITION (F)"]
["YEAR:  ",{"$f":"Year","v":""},"Excl. Res SPEs (ROU)\n",null,null,null,null,null,"Res SPEs (RSP)\n",null,null,null,null,null,"All Entities (ALL)\n",null,null,null,null,null,"Excl. Res SPEs (ROU)\n",null,null,null,null,null,"Res SPEs (RSP)\n",null,null,null,null,null,"All Entities (ALL)\n",null,null,null,null,null,"Excl. Res SPEs (ROU)\n",null,null,null,null,null,"Res SPEs (RSP)\n",null,null,null,null,null,"All Entities (ALL)\n"]
["CURRENCY:  ",{"$f":"Currency","v":0},"Liabilities",null,"Assets",null,"Net Inward",null,"Liabilities",null,"Assets",null,"Net Inward",null,"Liabilities",null,"Assets",null,"Net Inward",null,"Liabilities",null,"Assets",null,"Net Inward",null,"Liabilities",null,"Assets",null,"Net Inward",null,"Liabilities",null,"Assets",null,"Net Inward",null,"Liabilities",null,"Assets",null,"Net Inward",null,"Liabilities",null,"Assets",null,"Net Inward",null,"Liabilities",null,"Assets",null,"Net Inward"]
["UNITS:           ","MILLIONS","L",null,"A",null,"NI",null,"L",null,"A",null,"NI",null,"L",null,"A",null,"NI",null,"L",null,"A",null,"NI",null,"L",null,"A",null,"NI",null,"L",null,"A",null,"NI",null,"L",null,"A",null,"NI",null,"L",null,"A",null,"NI",null,"L",null,"A",null,"NI"]
["STATISTICAL UNIT:",{"$f":"StatUnit","v":""},"(1)",null,"(2)",null,"(3)                                        (1-2)",null,"(4)",null,"(5)",null,"(6)                                        (4-5)",null,"(7)                                (1+4)",null,"(8)                                  (2+5)",null,"(9)                                  (3+6)",null,"(10)",null,"(11)",null,"(12)                                      (10-11)",null,"(13)",null,"(14)",null,"(15)                                      (13-14)",null,"(16)                                      (10+13)",null,"(17)                                      (11+14)",null,"(18)                                      (12+15)",null,"(19)                                      (1+10)",null,"(20)                                     (2+11)",null,"(21)                                      (3+12)",null,"(22)                                     (4+13)",null,"(23)                                     (5+14)",null,"(24)                                     (6+15)",null,"(25)                                     (19+22)",null,"(26)                                     (20+23)",null,"(27)                                     (21+24)"]
["VALUATION:",{"$f":"ValuationPos","v":""},null,"cc",null,"cc",null,"cc",null,"cc",null,"cc",null,"cc",null,"cc",null,"cc",null,"cc",null,"cc",null,"cc",null,"cc",null,"cc",null,"cc",null,"cc",null,"cc",null,"cc",null,"cc",null,"cc",null,"cc",null,"cc",null,"cc",null,"cc",null,"cc",null,"cc",null,"cc",null,"cc"]
["W0","WORLD*"]
["P8","World Excluding OECD"]
["W190","World not allocated"]
["E1","EUROPE "]
["E1X","Europe Excluding OECD countries"]
["E19","Europe not allocated"]
["AL"," Albania"]
["AD"," Andorra"]
["AT"," Austria*"]
["BY"," Belarus"]
["BE"," Belgium*"]
["BA"," Bosnia and Herzegovina"]
["BG"," Bulgaria*"]
["HR"," Croatia"]
["CY"," Cyprus*,1"]
["CZ"," Czech Republic*"]
["DK"," Denmark*"]
["EE"," Estonia*"]
["FO"," Faroe Islands"]
["FI"," Finland*"]
["FR"," France*"]
["DE"," Germany*"]
["GI"," Gibraltar"]
["GR"," Greece*"]
["GG"," Guernsey"]
["VA"," Holy see (Vatican City State)"]
["HU"," Hungary*"]
["IS"," Iceland*"]
["IE"," Ireland*"]
["IM"," Isle of Man"]
["IT"," Italy*"]
["JE"," Jersey"]
["XK","Kosovo"]
["LV"," Latvia*"]
["LI"," Liechtenstein"]
["LT"," Lithuania*"]
["LU"," Luxembourg*"]
["MK"," Macedonia, the Former Yugoslav Republic of "]
["MT"," Malta"]
["MD"," Moldova"]
["ME"," Montenegro"]
["NL"," Netherlands*"]
["NO"," Norway*"]
["PL"," Poland*"]
["PT"," Portugal*"]
["RO"," Romania*"]
["RU"," Russia*"]
["SM"," San Marino"]
["RS"," Serbia"]
["SK"," Slovakia*"]
["SI"," Slovenia*"]
["ES"," Spain*"]
["SE"," Sweden*"]
["CH"," Switzerland* "]
["TR","Turkey*"]
["UA","Ukraine*"]
["GB"," United Kingdom*"]
["R1","Belgum-Luxembourg (until end 2002)"]
["CS","Serbia and Montenegro (until end 2006)"]
["F1","AFRICA* "]
["F19","Africa not allocated"]
["F4","   Northern Africa"]
["DZ","Algeria*"]
["EG","Egypt*"]
["LY","Libyan Arab Jamahiriya*"]
["MA","Morocco*"]
["TN","Tunisia*"]
["F2"," Other African countries"]
["AO"," Angola"]
["BJ"," Benin"]
["BW"," Botswana"]
["IO"," British Indian Ocean Territory"]
["BF"," Burkina Faso"]
["BI"," Burundi"]
["CM"," Cameroon"]
["CV"," Cape Verde"]
["CF"," Central African Republic"]
["TD"," Chad"]
["KM"," Comoros"]
["CG"," Congo"]
["CI"," Côte d'Ivoire"]
["CD"," Congo, the Democratic Republic of the "]
["DJ"," Djibouti"]
["GQ"," Equatorial Guinea"]
["ER"," Eritrea"]
["ET"," Ethiopia"]
["GA"," Gabon"]
["GM"," Gambia"]
["GH"," Ghana"]
["GN"," Guinea"]
["GW"," Guinea-Bissau"]
["KE"," Kenya"]
["LS"," Lesotho"]
["LR"," Liberia"]
["MG"," Madagascar"]
["MW"," Malawi"]
["ML"," Mali"]
["MR"," Mauritania"]
["MU"," Mauritius"]
["MZ"," Mozambique"]
["NA"," Namibia"]
["NE"," Niger"]
["NG"," Nigeria*"]
["RW"," Rwanda"]
["SH"," St Helena"]
["ST"," Sao Tome & Principe"]
["SN"," Senegal"]
["SC"," Seychelles"]
["SL"," Sierra Leone"]
["SO"," Somalia"]
["ZA"," South Africa*"]
["SD","Sudan"]
["SS","South Sudan"]
["SZ"," Swaziland"]
["TZ"," Tanzania, United Republic of"]
["TG"," Togo"]
["UG"," Uganda"]
["ZM"," Zambia"]
["ZW","Zimbabwe"]
["A1","AMERICA "]
["A1X","America Excluding OECD countries"]
["A19","America not allocated"]
["A2","   Northern America"]
["A2X","   Northern America Excluding OECD countries"]
["CA","      Canada*"]
["GL","      Greenland"]
["US","      United States*"]
["A5","   Central America and Caribbean countries"]
["A5X","Central and Caribbean countries excl. OECD countries"]
["AI","      Anguilla"]
["AG","      Antigua and Barbuda"]
["AW","      Aruba"]
["BS","      Bahamas"]
["BB","      Barbados"]
["BZ","      Belize"]
["BM","      Bermuda"]
["BQ","      Bonaire, Saint Eustatius and Saba (from 2011 onwards)"]
["KY","      Cayman Islands"]
["CR","      Costa Rica*"]
["CU","      Cuba"]
["CW","      Curaçao (from 2011 onwards)"]
["DM","      Dominica"]
["DO","      Dominican Republic"]
["SV","      El Salvador"]
["GD","      Grenada"]
["GT","      Guatemala"]
["HT","      Haiti"]
["HN","      Honduras"]
["JM","      Jamaica"]
["MX","      Mexico* "]
["MS","      Montserrat"]
["NI","      Nicaragua"]
["PA","      Panama*"]
["KN","      Saint Kitts and Nevis"]
["LC","      Saint Lucia"]
["VC","      Saint Vincent and the Grenadines"]
["SX","      Sint Maarten (from 2011 onwards)"]
["TT","      Trinidad and Tobago"]
["TC","      Turks and Caicos Islands"]
["VG","      Virgin Islands, British"]
["VI","      Virgin Islands, U.S."]
["AN","      Netherlands Antilles (until end 2010)"]
["A7","   South America"]
["A7X","    South America excluding OECD countries"]
["AR","      Argentina*"]
["BO","      Bolivia"]
["BR","      Brazil*"]
["CL","      Chile*"]
["CO","      Colombia*"]
["EC","      Ecuador"]
["FK","      Falkland Islands (Malvinas)"]
["GY","      Guyana"]
["PY","      Paraguay"]
["PE","      Peru*"]
["SR","      Suriname"]
["UY","      Uruguay*"]
["VE","      Venezuela*"]
["S1","ASIA "]
["S1X","Asia Excluding OECD countries"]
["S19","Asia not allocated"]
["S3","   Near and Middle East countries*"]
["S3X","   Near and Middle East excluding OECD"]
["S35","      Gulf Arabian countries"]
["BH","         Bahrain"]
["IQ","         Iraq"]
["KW","         Kuwait*"]
["OM","         Oman"]
["QA","         Qatar"]
["SA","         Saudi Arabia*"]
["AE","         United Arab Emirates*"]
["YE","         Yemen"]
["S37","      Other Near and Middle East countries"]
["S37X","      Other Near and Middle East excluding OECD countries"]
["AM","         Armenia"]
["AZ","         Azerbaijan"]
["GE","         Georgia"]
["IL","         Israel*"]
["JO","         Jordan*"]
["LB","         Lebanon"]
["PS","         Palestinian Territory, Occupied"]
["SY","         Syrian Arab Republic"]
["S6","Other Asian countries"]
["S6X","Other Asian countries excluding OECD countries"]
["AF","      Afghanistan"]
["BD","      Bangladesh"]
["BT","      Bhutan"]
["BN","      Brunei Darussalam"]
["KH","      Cambodia (Kampuchea)"]
["CN","      China*"]
["HK","      Hong Kong, China*"]
["IN","      India*"]
["ID","      Indonesia*"]
["IR","      Iran, Islamic Republic of"]
["JP","      Japan*"]
["KZ","      Kazakhstan"]
["KP","      Korea, Democratic People's Republic of (North Korea)"]
["KR","      Korea, Republic of (South Korea)*"]
["KG","      Kyrgyzstan"]
["LA","      Lao People's Democratic Republic"]
["MO","      Macao"]
["MY","      Malaysia*"]
["MV","      Maldives"]
["MN","      Mongolia"]
["MM","      Myanmar"]
["NP","      Nepal"]
["PK","      Pakistan"]
["PH","      Philippines*"]
["SG","      Singapore*"]
["LK","      Sri Lanka"]
["TW","      Chinese Taipei"]
["TJ","      Tajikistan"]
["TH","      Thailand*"]
["TL","      Timor-Leste"]
["TM","      Turkmenistan"]
["UZ","      Uzbekistan"]
["VN","      Viet Nam*"]
["O1","AUSTRALIA, OCEANIA & POLAR REGIONS"]
["O1X0","Oceania & Polar regions  Excluding OECD countries"]
["O19","Oceania & Polar regions not allocated"]
["AS","American Samoa"]
["AQ","Antarctica"]
["AU","Australia*"]
["BV","Bouvet Island"]
["CX","Christmas Islands"]
["CC","Cocos Islands"]
["CK","Cook Islands"]
["FJ","Fiji"]
["PF","French Polynesia"]
["TF","French Southern Territories"]
["GU","Guam"]
["HM","Heard islands and Mc Donald islands"]
["KI","Kiribati"]
["MH","Marshall Islands"]
["FM","Micronesia, Federated States of"]
["NR","Nauru"]
["NC","New Caledonia"]
["NZ","New Zealand*"]
["NU","Niue"]
["NF","Norfolk Island"]
["MP","Northern Mariana Islands"]
["PW","Palau"]
["PG","Papua New Guinea"]
["PN","Pitcairn"]
["WS","Samoa"]
["SB","Solomon Islands"]
["GS","South Georgia  and the South Sandwich Islands"]
["TK","Tokelau"]
["TO","Tonga"]
["TV","Tuvalu"]
["UM","US Minor Outllying islands"]
["VU","Vanuatu"]
["WF","Wallis and Futuna"]
["ECONOMIC AND MONETARY ZONES"]
["P0","OECD*"]
["B5","EU28* (from 2013)"]
["B4","EU27* (for 2007-2012)"]
["B3","EU25* (for 2004-2006 only)"]
["B2","EU15* (until 2003 only)"]
["R4","ASEAN*"]
["R220","G20 countries*"]
["R221","G20 OECD countries*"]
["R222","G20 Non-OECD ctr.*"]
["F98","MENA (Middle East and North Africa countries)*"]
["R25","Total Official Development Assistance (ODA) recipients*"]
["R251","ODA recipients -Europe*"]
["R252","ODA recipients-Africa*"]
["R253","ODA recipients-America*"]
["R254","ODA recipients-Asia*"]
["R255","ODA recipients-Oceania*"]
["[1] Footnote by Turkey:\n The information in this document with reference to “Cyprus” relates to the southern part of the Island. There is no single authority representing both Turkish and Greek Cypriot people on the Island. Turkey recognizes the Turkish Republic of Northern Cyprus (TRNC). Until a lasting and equitable solution is found within the context of United Nations, Turkey shall preserve its position concerning the “Cyprus” issue. \n Footnote by all the European Union Member States of the OECD and the European Union:\n The Republic of Cyprus is recognized by all members of the United Nations with the exception of Turkey. The information in this document relates to the area under the effective control of the Government of the Republic of Cyprus.\nFootnote by Turkey:\n The information in this document with reference to “Cyprus” relates to the southern part of the Island. There is no single authority representing both Turkish and Greek Cypriot people on the Island. Turkey recognizes the Turkish Republic of Northern Cyprus (TRNC). Until a lasting and equitable solution is found within the context of United Nations, Turkey shall preserve its position concerning the “Cyprus” issue. \n Footnote by all the European Union Member States of the OECD and the European Union:\n The Republic of Cyprus is recognized by all members of the United Nations with the exception of Turkey. The information in this document relates to the area under the effective control of the Government of the Republic of Cyprus.\n"]
[]
["* Priority items to avoid when flagging data for secondary confidentiality. If the secondary confidentiality checking exercise is too burdensome for reporting the full GEO breakdown for FDI instruments and for series of SPEs/excluding resident SPE, the priority items should be reported while the other items can be flagged as non-publishable, unless they play a significant role in total FDI. "]
["Cells highlighted in grey are secondary priority"]

{"sheet":"3-POS-IND-UIC-IN","index":8,"n_rows":94,"n_cols":56,"rows_kept":94,"cut":false,"hidden":false,"merged":[[0,1,0,19],[6,55,7,55],[6,49,7,49],[6,50,7,50],[6,51,7,51],[6,52,7,52],[6,53,7,53],[6,54,7,54],[6,43,7,43],[6,44,7,44],[6,45,7,45],[6,46,7,46],[6,47,7,47],[6,48,7,48],[6,37,7,37],[6,38,7,38],[6,39,7,39],[6,40,7,40],[6,41,7,41],[6,42,7,42],[6,31,7,31],[6,32,7,32],[6,33,7,33],[6,34,7,34],[6,35,7,35],[6,36,7,36],[6,30,7,30],[6,19,7,19],[6,20,7,20],[6,21,7,21],[6,22,7,22],[6,23,7,23],[6,24,7,24],[6,25,7,25],[6,26,7,26],[6,27,7,27],[6,28,7,28],[6,29,7,29],[6,16,7,16],[6,17,7,17],[6,18,7,18],[6,7,7,7],[6,8,7,8],[6,9,7,9],[6,10,7,10],[6,11,7,11],[6,12,7,12],[6,2,7,2],[6,3,7,3],[6,4,7,4],[6,5,7,5],[6,6,7,6],[5,12,5,13],[6,13,7,13],[6,14,7,14],[6,15,7,15],[2,50,2,55],[3,20,3,21],[3,22,3,23],[3,24,3,25],[3,26,3,27],[3,28,3,29],[3,32,3,33],[3,46,3,47],[3,50,3,51],[3,52,3,53],[3,54,3,55],[3,34,3,35],[1,20,1,37],[1,38,1,55],[2,20,2,25],[2,26,2,31],[2,32,2,37],[2,38,2,43],[2,44,2,49],[1,2,1,19],[2,2,2,7],[2,8,2,13],[2,14,2,19],[3,2,3,3],[3,4,3,5],[3,6,3,7],[3,8,3,9],[3,10,3,11],[3,14,3,15],[3,16,3,17],[3,18,3,19],[3,36,3,37],[3,38,3,39],[3,40,3,41],[3,42,3,43],[3,44,3,45]]}
["                        ","SUPPLEMENTAL QUESTIONNAIRE 3-POS-IND-UIC-IN                                                                                                                                                                                                                                                                                                                                                                          INWARD Direct Investment Positions according to Ultimate investing country by industry classification (ISIC4) (Directional Principle)",null,null,null,null,null,null,null,null,null,null,null,null,null,null,null,null,null,null,null,null,null,null,null,null,null,null,null,null,null,null,null,null,null,null,null,null,null,null,null,null,null,null,null,null,null,null,null,null,null,null,null,null,null,"OECD"]
["COUNTRY:",{"$f":"Country","v":""},"EQUITY & REINVESTED EARNINGS (F5)",null,null,null,null,null,null,null,null,null,null,null,null,null,null,null,null,null,"DEBT INSTRUMENTS (FL)",null,null,null,null,null,null,null,null,null,null,null,null,null,null,null,null,null,"TOTAL FDI OUTWARD POSITION (F)"]
["YEAR:  ",{"$f":"Year","v":""},"Excl. Res SPEs (ROU)\n",null,null,null,null,null,"Res SPEs (RSP)\n",null,null,null,null,null,"All Entities (ALL)\n",null,null,null,null,null,"Excl. Res SPEs (ROU)\n",null,null,null,null,null,"Res SPEs (RSP)\n",null,null,null,null,null,"All Entities (ALL)\n",null,null,null,null,null,"Excl. Res SPEs (ROU)\n",null,null,null,null,null,"Res SPEs (RSP)\n",null,null,null,null,null,"All Entities (ALL)\n"]
["CURRENCY:  ",{"$f":"Currency","v":0},"Liabilities",null,"Assets",null,"Net Inward",null,"Liabilities",null,"Assets",null,"Net Inward",null,"Liabilities",null,"Assets",null,"Net Inward",null,"Liabilities",null,"Assets",null,"Net Inward",null,"Liabilities",null,"Assets",null,"Net Inward",null,"Liabilities",null,"Assets",null,"Net Inward",null,"Liabilities",null,"Assets",null,"Net Inward",null,"Liabilities",null,"Assets",null,"Net Inward",null,"Liabilities",null,"Assets",null,"Net Inward"]
["UNITS:           ","MILLIONS","L",null,"A",null,"NI",null,"L",null,"A",null,"NI",null,"L",null,"A",null,"NI",null,"L",null,"A",null,"NI",null,"L",null,"A",null,"NI",null,"L",null,"A",null,"NI",null,"L",null,"A",null,"NI",null,"L",null,"A",null,"NI",null,"L",null,"A",null,"NI"]
["STATISTICAL UNIT:",{"$f":"StatUnit","v":""},"(1)",null,"(2)",null,"(3)                                                  (1-2)",null,"(4)",null,"(5)",null,"(6)                                                   (4-5)",null,"(7)                                                    (1+4)",null,"(8)                                                    (2+5)",null,"(9)                                                  (3+6)",null,"(10)",null,"(11)",null,"(12)                                                (10-11)",null,"(13)",null,"(14)",null,"(15)                                                (13-14)",null,"(16)                                      (10+13)",null,"(17)                                      (11+14)",null,"(18)                                      (12+15)",null,"(19)                              (1+10)",null,"(20)                                     (2+11)",null,"(21)                                      (3+12)",null,"(22)                                     (4+13)",null,"(23)                                     (5+14)",null,"(24)                                     (6+15)",null,"(25)                                     (19+22)",null,"(26)                                     (20+23)",null,"(27)                                   (21+24)"]
["VALUATION:",{"$f":"ValuationPos","v":""},null,"cc",null,"cc",null,"cc",null,"cc",null,"cc",null,"cc",null,"cc",null,"cc",null,"cc",null,"cc",null,"cc",null,"cc",null,"cc",null,"cc",null,"cc",null,"cc",null,"cc",null,"cc",null,"cc",null,"cc",null,"cc",null,"cc",null,"cc",null,"cc",null,"cc",null,"cc",null,"cc"]
["ACTIVITY ALLOCATION:",{"$f":"EcoActInward","v":""}]
["A","AGRICULTURE, FORESTRY AND FISHING (Section A) "]
["B","MINING AND QUARRYING (Section B)"]
["B06_09","Of which:      Extraction of crude petroleum and gas; mining support services"]
["A_B","TOTAL PRIMARY SECTOR (Sections A and B)"]
["C","MANUFACTURING (Section C) "]
["C10T12","Food products, beverage and tobacco products"]
["C13_14","Textiles and wearing apparel"]
["C16T18","Manufacture of wood, paper, and their products; printing and reproduction or recorded media"]
["C13T18X15","[TOTAL textiles + wood activities ](C13_14+C16T18)"]
["C19","Coke and refined petroleum products"]
["C20","Manufacture of chemicals and chemical products"]
["C21","Pharmaceuticals products and preparation"]
["C22","Rubber and plastic products"]
["C19T22","[TOTAL petroleum, chemical, pharmaceuticals, rubber and plastic products] (C19+C20+C21+C22) "]
["C24_25","Basic metal and fabricated metal products"]
["C26","Computer, electronic and optical products"]
["C262"," Of which: Computers and peripheral equipment"]
["C263_264","      Communication equipment and consumer electronics"]
["C265_266","       Instrument and appliances for measuring, testing and navigation; watches and clock; irradiation, electromedical and electrotherapeutic equipment"]
["C28","Machinery and equipment n. e. c"]
["C24T28X27","[TOTAL metal, computer and machinery] (C24_C25+C26+C28)"]
["C29","Motor vehicles, trailers and semi-trailers"]
["C30","Other transport equipments"]
["C303","Of which:   Manufacture of aircraft and spacecraft"]
["C29_30","[TOTAL vehicles and other transport equipment] (C29+C30)"]
["C_OTH","Other manufacturing"]
["D35","ELECTRICITY, GAS, STEAM AND AIR CONDITIONING SUPPLY (Section D)"]
["E","WATER SUPPLY, SEWERAGE, WASTE MANAGEMENT AND REMEDIATION ACTIVITIES (Section E)"]
["E36","Water collection, treatment and supply"]
["E37T39","Sewerage, waste management and remediation activities"]
["F","CONSTRUCTION (Section F)"]
["G","WHOLESALE AND RETAILTRADE; REPAIR OF MOTOR VEHICLES AND MOTOR CYCLES (Section G)"]
["G45","Wholesale and retail trade and repair of motor vehicles and motorcycles"]
["G46","Wholesale trade, except of motor vehicles and motor cycles"]
["G47","Retail trade, except of motor vehicles and motor cycles"]
["H","TRANSPORTATION AND STORAGE (Section H)"]
["H49","Land transport and transport via pipelines"]
["H50","Water transport"]
["H51","Air transport"]
["H52","Warehousing and support activities for transportation"]
["HX53","[TOTAL transport and storage] (H49+H50+H51+H52)"]
["H53","Post and courier activities"]
["I","ACCOMODATION AND FOOD SERVICE ACTIVITIES (Section I)"]
["J","INFORMATION AND COMMUNICATION (Section J) "]
["J59_60","Motion picture, video and TV programme production, sound recording and music publishing activities; programming and broadcasting activities"]
["J61","Telecommunications"]
["J58_62_63","Other information and communication activities"]
["K","FINANCIAL AND INSURANCE ACTIVITIES (Section K) "]
["K64","Financial services activities, except insurance and pension funding"]
["K641","Of which:   Monetary intermediation"]
["K642","                        Activities of holding companies"]
["K643","                       Trusts, funds and similar financial entities"]
["K65","Insurance, reinsurance and pension funding, except compulsory social security"]
["K66","Activities auxiliary to financial services and insurance activities"]
["L","REAL ESTATE ACTIVITIES (Section L) "]
["M","PROFESSIONAL, SCIENTIFIC AND TECHNICAL ACTIVITIES (Section M)"]
["M69","Legal and accounting activities"]
["M691","     Legal activities"]
["M692","     Accounting, bookkeeping and auditing activities, tax consultancy"]
["M70","Activities of head offices; management and consultancy activities "]
["M701","      Activities of head offices"]
["M702","      Management consultancy activities"]
["M71","Architecture and engineering activities, technical testing and analysis"]
["M72","Scientific research and development"]
["M73","Advertising and market research"]
["M731","     Advertising"]
["M732","     Market research and public opinion polling"]
["M74_75","Other professional, scientific and technical activities"]
["N","ADMINISTRATIVE AND SUPPORT SERVICE ACTIVITIES (Section N)"]
["N77","Rental and leasing activities"]
["N78T82","Other administrative and support services activities"]
["N79"," Of which: Travel agency, tour operator reservation service and related activities"]
["P85","EDUCATION (Section P)"]
["Q","HUMAN HEALTH AND SOCIAL WORK ACTIVITIES (Section Q)"]
["R","ARTS, ENTERTAINMENT AND RECREATION (Section R)"]
["R90","Creative, arts and entertainment activities"]
["R91","Libraries, archives, museums and other cultural activities"]
["R92_93","Sports activities and amusement and recreation activities; gambling and betting activities"]
["O_T_U","Public administration; activities of households and of extraterritorial organisations  (Section O, T, U)"]
["S","OTHER SERVICE ACTIVITIES (Section S)"]
["S94","Activities of membership organisations"]
["S95_96","Repair of computers and personal and household goods, other services"]
["GTU","TOTAL SERVICES (Sections G to U)"]
["NAL","Unallocated"]
["PRV_RE","Priv. purchase & sales of real estate"]
["FDI_T","TOTAL"]

{"sheet":"3-POS-TOP","index":9,"n_rows":296,"n_cols":15,"rows_kept":296,"cut":false,"hidden":false,"merged":[[0,1,0,13],[1,0,1,1],[5,13,5,14],[1,3,1,8],[2,3,2,4],[2,5,2,6],[2,7,2,8],[3,13,4,14],[5,3,5,4],[5,9,5,10],[5,7,5,8],[1,9,1,14],[2,9,2,10],[2,11,2,12],[2,13,2,14],[3,11,4,12],[3,3,4,4],[3,5,4,6],[3,7,4,8],[3,9,4,10]]}
["                        ","SUPPLEMENTAL QUESTIONNAIRE 3-POS-TOP                                                                                                                                                                                                                                                                                                                     Direct Investment Positions cross-classified by partner country and industry classification (ISIC4) (Directional Principle)                    "]
["COUNTRY:",null,{"$f":"Country","v":""},"TOTAL INWARD FDI POSITIONS (DI)",null,null,null,null,null,"TOTAL OUTWARD FDI POSITIONS (DO)"]
["YEAR:  ",null,{"$f":"Year","v":""},"Excl. Res SPEs (ROU)\n",null,"Res SPEs (RSP)\n",null,"All Entities (ALL)",null,"Excl. Res SPEs (ROU)\n",null,"Res SPEs (RSP)\n",null,"All Entities (ALL)"]
["CURRENCY:  ",null,{"$f":"Currency","v":0},"Total inward net (NI)",null,"Total inward net (NI)",null,"Total inward net (NI)",null,"Total outward net (NO)",null,"Total outward net (NO)",null,"Total outward net (NO)"]
["UNITS:           ",null,"MILLIONS"]
["STATISTICAL UNIT:",null,{"$f":"StatUnit","v":""},"(1)",null,"(2)",null,"(3)=(1)+(2)",null,"(4)",null,"(5)",null,"(6)=(4)+(5)"]
["VALUATION:",null,{"$f":"ValuationPos","v":""}]
["LEVEL OF COUNTERPART:",null,"Immediate"]
["ACTIVITY ALLOCATION:",null,{"$f":"CONCATENATE(\"Inward FDI: \",EcoActInward,\"    / Outward FDI: \",EcoActOutward)","v":"Inward FDI:     / Outward FDI: "},{"$f":"EcoActInwardCode","v":0},"cc",{"$f":"EcoActInwardCode","v":0},"cc",{"$f":"EcoActInwardCode","v":0},"cc",{"$f":"EcoActOutwardCode","v":0},"cc",{"$f":"EcoActOutwardCode","v":0},"cc",{"$f":"EcoActOutwardCode","v":0},"cc"]
["Ind_Top","Geo_TOP"]
["A","W0","AGRICULTURE, FORESTRY AND FISHING (Section A) "]
["A","E1","Europe"]
["A","F1","Africa"]
["A","A2","North America"]
["A","A5","Central America and Caribbean countries"]
["A","A7","South America"]
["A","S1","Asia"]
["A","O1","Oceania and Polar Regions"]
["A","R4","ASEAN"]
["A","B5","EU28"]
["A","R220","G20 excl. EU"]
["A","F98","MENA (Middle east and North Africa)"]
["A","P0","OECD"]
["A","R25","Total Official Develoment Assistance (ODA) recipients"]
["A","R251","ODA recipients -Europe"]
["A","R252","ODA recipients-Africa"]
["A","R253","ODA recipients-America"]
["A","R254","ODA recipients-Asia"]
["A","R255","ODA recipients-Oceania"]
["B","W0","MINING AND QUARRYING (Section B)"]
["B","E1","Europe"]
["B","F1","Africa"]
["B","A2","North America"]
["B","A5","Central America and Caribbean countries"]
["B","A7","South America"]
["B","S1","Asia"]
["B","O1","Oceania and Polar Regions"]
["B","R4","ASEAN"]
["B","B5","EU28"]
["B","R220","G20 excl. EU"]
["B","F98","MENA (Middle east and North Africa)"]
["B","P0","OECD"]
["B","R25","Total Official Develoment Assistance (ODA) recipients"]
["B","R251","ODA recipients -Europe"]
["B","R252","ODA recipients-Africa"]
["B","R253","ODA recipients-America"]
["B","R254","ODA recipients-Asia"]
["B","R255","ODA recipients-Oceania"]
["C","W0","MANUFACTURING (Section C)"]
["C","E1","Europe"]
["C","F1","Africa"]
["C","A2","North America"]
["C","A5","Central America and Caribbean countries"]
["C","A7","South America"]
["C","S1","Asia"]
["C","O1","Oceania and Polar Regions"]
["C","R4","ASEAN"]
["C","B5","EU28"]
["C","R220","G20 excl. EU"]
["C","F98","MENA (Middle east and North Africa)"]
["C","P0","OECD"]
["C","R25","Total Official Develoment Assistance (ODA) recipients"]
["C","R251","ODA recipients -Europe"]
["C","R252","ODA recipients-Africa"]
["C","R253","ODA recipients-America"]
["C","R254","ODA recipients-Asia"]
["C","R255","ODA recipients-Oceania"]
["D35","W0","ELECTRICITY, GAS, STEAM AND AIR CONDITIONING SUPPLY (Section D)"]
["D35","E1","Europe"]
["D35","F1","Africa"]
["D35","A2","North America"]
["D35","A5","Central America and Caribbean countries"]
["D35","A7","South America"]
["D35","S1","Asia"]
["D35","O1","Oceania and Polar Regions"]
["D35","R4","ASEAN"]
["D35","B5","EU28"]
["D35","R220","G20 excl. EU"]
["D35","F98","MENA (Middle east and North Africa)"]
["D35","P0","OECD"]
["D35","R25","Total Official Develoment Assistance (ODA) recipients"]
["D35","R251","ODA recipients -Europe"]
["D35","R252","ODA recipients-Africa"]
["D35","R253","ODA recipients-America"]
["D35","R254","ODA recipients-Asia"]
["D35","R255","ODA recipients-Oceania"]
["E","W0","WATER SUPPLY, SEWERAGE, WASTE MANAGEMENT AND REMEDIATION ACTIVITIES (Section E)"]
["E","E1","Europe"]
["E","F1","Africa"]
["E","A2","North America"]
["E","A5","Central America and Caribbean countries"]
["E","A7","South America"]
["E","S1","Asia"]
["E","O1","Oceania and Polar Regions"]
["E","R4","ASEAN"]
["E","B5","EU28"]
["E","R220","G20 excl. EU"]
["E","F98","MENA (Middle east and North Africa)"]
["E","P0","OECD"]
["E","R25","Total Official Develoment Assistance (ODA) recipients"]
["E","R251","ODA recipients -Europe"]
["E","R252","ODA recipients-Africa"]
["E","R253","ODA recipients-America"]
["E","R254","ODA recipients-Asia"]
["E","R255","ODA recipients-Oceania"]
["F","W0","CONSTRUCTION (Section F)"]
["F","E1","Europe"]
["F","F1","Africa"]
["F","A2","North America"]
["F","A5","Central America and Caribbean countries"]
["F","A7","South America"]
["F","S1","Asia"]
["F","O1","Oceania and Polar Regions"]
["F","R4","ASEAN"]
["F","B5","EU28"]
["F","R220","G20 excl. EU"]
["F","F98","MENA (Middle east and North Africa)"]
["F","P0","OECD"]
["F","R25","Total Official Develoment Assistance (ODA) recipients"]
["F","R251","ODA recipients -Europe"]
["F","R252","ODA recipients-Africa"]
["F","R253","ODA recipients-America"]
["F","R254","ODA recipients-Asia"]
["F","R255","ODA recipients-Oceania"]
["G","W0","WHOLESALE AND RETAILTRADE; REPAIR OF MOTOR VEHICLES AND MOTOR CYCLES (Section G)"]
["G","E1","Europe"]
["G","F1","Africa"]
["G","A2","North America"]
["G","A5","Central America and Caribbean countries"]
["G","A7","South America"]
["G","S1","Asia"]
["G","O1","Oceania and Polar Regions"]
["G","R4","ASEAN"]
["G","B5","EU28"]
["G","R220","G20 excl. EU"]
["G","F98","MENA (Middle east and North Africa)"]
["G","P0","OECD"]
["G","R25","Total Official Develoment Assistance (ODA) recipients"]
["G","R251","ODA recipients -Europe"]
["G","R252","ODA recipients-Africa"]
["G","R253","ODA recipients-America"]
["G","R254","ODA recipients-Asia"]
["G","R255","ODA recipients-Oceania"]
["H","W0","TRANSPORTATION AND STORAGE (Section H)"]
["H","E1","Europe"]
["H","F1","Africa"]
["H","A2","North America"]
["H","A5","Central America and Caribbean countries"]
["H","A7","South America"]
["H","S1","Asia"]
["H","O1","Oceania and Polar Regions"]
["H","R4","ASEAN"]
["H","B5","EU28"]
["H","R220","G20 excl. EU"]
["H","F98","MENA (Middle east and North Africa)"]
["H","P0","OECD"]
["H","R25","Total Official Develoment Assistance (ODA) recipients"]
["H","R251","ODA recipients -Europe"]
["H","R252","ODA recipients-Africa"]
["H","R253","ODA recipients-America"]
["H","R254","ODA recipients-Asia"]
["H","R255","ODA recipients-Oceania"]
["I","W0","ACCOMODATION AND FOOD SERVICE ACTIVITIES (Section I)"]
["I","E1","Europe"]
["I","F1","Africa"]
["I","A2","North America"]
["I","A5","Central America and Caribbean countries"]
["I","A7","South America"]
["I","S1","Asia"]
["I","O1","Oceania and Polar Regions"]
["I","R4","ASEAN"]
["I","B5","EU28"]
["I","R220","G20 excl. EU"]
["I","F98","MENA (Middle east and North Africa)"]
["I","P0","OECD"]
["I","R25","Total Official Develoment Assistance (ODA) recipients"]
["I","R251","ODA recipients -Europe"]
["I","R252","ODA recipients-Africa"]
["I","R253","ODA recipients-America"]
["I","R254","ODA recipients-Asia"]
["I","R255","ODA recipients-Oceania"]
["J","W0","INFORMATION AND COMMUNICATION (Section J) "]
["J","E1","Europe"]
["J","F1","Africa"]
["J","A2","North America"]
["J","A5","Central America and Caribbean countries"]
["J","A7","South America"]
["J","S1","Asia"]
["J","O1","Oceania and Polar Regions"]
["J","R4","ASEAN"]
["J","B5","EU28"]
["J","R220","G20 excl. EU"]
["J","F98","MENA (Middle east and North Africa)"]
["J","P0","OECD"]
["J","R25","Total Official Develoment Assistance (ODA) recipients"]
["J","R251","ODA recipients -Europe"]
["J","R252","ODA recipients-Africa"]
["J","R253","ODA recipients-America"]
["J","R254","ODA recipients-Asia"]
["J","R255","ODA recipients-Oceania"]
["K","W0","FINANCIAL AND INSURANCE ACTIVITIES (Section K) "]
["K","E1","Europe"]
["K","F1","Africa"]
["K","A2","North America"]
["K","A5","Central America and Caribbean countries"]
["K","A7","South America"]
["K","S1","Asia"]
["K","O1","Oceania and Polar Regions"]
["K","R4","ASEAN"]
["K","B5","EU28"]
["K","R220","G20 excl. EU"]
["K","F98","MENA (Middle east and North Africa)"]
["K","P0","OECD"]
["K","R25","Total Official Develoment Assistance (ODA) recipients"]
["K","R251","ODA recipients -Europe"]
["K","R252","ODA recipients-Africa"]
["K","R253","ODA recipients-America"]
["K","R254","ODA recipients-Asia"]
["K","R255","ODA recipients-Oceania"]
["M","W0","PROFESSIONAL, SCIENTIFIC AND TECHNICAL ACTIVITIES (Section M)"]
["M","E1","Europe"]
["M","F1","Africa"]
["M","A2","North America"]
["M","A5","Central America and Caribbean countries"]
["M","A7","South America"]
["M","S1","Asia"]
["M","O1","Oceania and Polar Regions"]
["M","R4","ASEAN"]
["M","B5","EU28"]
["M","R220","G20 excl. EU"]
["M","F98","MENA (Middle east and North Africa)"]
["M","P0","OECD"]
["M","R25","Total Official Develoment Assistance (ODA) recipients"]
["M","R251","ODA recipients -Europe"]
["M","R252","ODA recipients-Africa"]
["M","R253","ODA recipients-America"]
["M","R254","ODA recipients-Asia"]
["M","R255","ODA recipients-Oceania"]
["R","W0","ARTS, ENTERTAINMENT AND RECREATION (Section R)"]
["R","E1","Europe"]
["R","F1","Africa"]
["R","A2","North America"]
["R","A5","Central America and Caribbean countries"]
["R","A7","South America"]
["R","S1","Asia"]
["R","O1","Oceania and Polar Regions"]
["R","R4","ASEAN"]
["R","B5","EU28"]
["R","R220","G20 excl. EU"]
["R","F98","MENA (Middle east and North Africa)"]
["R","P0","OECD"]
["R","R25","Total Official Develoment Assistance (ODA) recipients"]
["R","R251","ODA recipients -Europe"]
["R","R252","ODA recipients-Africa"]
["R","R253","ODA recipients-America"]
["R","R254","ODA recipients-Asia"]
["R","R255","ODA recipients-Oceania"]
["GTU","W0","TOTAL SERVICES (Sections G to U)"]
["GTU","E1","Europe"]
["GTU","F1","Africa"]
["GTU","A2","North America"]
["GTU","A5","Central America and Caribbean countries"]
["GTU","A7","South America"]
["GTU","S1","Asia"]
["GTU","O1","Oceania and Polar Regions"]
["GTU","R4","ASEAN"]
["GTU","B5","EU28"]
["GTU","R220","G20 excl. EU"]
["GTU","F98","MENA (Middle east and North Africa)"]
["GTU","P0","OECD"]
["GTU","R25","Total Official Develoment Assistance (ODA) recipients"]
["GTU","R251","ODA recipients -Europe"]
["GTU","R252","ODA recipients-Africa"]
["GTU","R253","ODA recipients-America"]
["GTU","R254","ODA recipients-Asia"]
["GTU","R255","ODA recipients-Oceania"]
["Memo:"]
["FDI_T","W0","TOTAL"]
["FDI_T","E1","Europe"]
["FDI_T","F1","Africa"]
["FDI_T","A2","North America"]
["FDI_T","A5","Central America and Caribbean countries"]
["FDI_T","A7","South America"]
["FDI_T","S1","Asia"]
["FDI_T","O1","Oceania and Polar Regions"]
["FDI_T","R4","ASEAN"]
["FDI_T","B5","EU28"]
["FDI_T","R220","G20 excl. EU"]
["FDI_T","F98","MENA (Middle east and North Africa)"]
["FDI_T","P0","OECD"]
["FDI_T","R25","Total Official Develoment Assistance (ODA) recipients"]
["FDI_T","R251","ODA recipients -Europe"]
["FDI_T","R252","ODA recipients-Africa"]
["FDI_T","R253","ODA recipients-America"]
["FDI_T","R254","ODA recipients-Asia"]
["FDI_T","R255","ODA recipients-Oceania"]

{"sheet":"3-FLOW-GEO-XSPE","index":10,"n_rows":300,"n_cols":42,"rows_kept":300,"cut":false,"hidden":false,"merged":[[2,16,2,21],[2,22,2,27],[2,28,2,29],[2,30,2,35],[2,36,2,41],[0,1,0,28],[3,2,3,3],[3,4,3,5],[3,6,3,7],[3,10,3,11],[3,12,3,13],[3,14,3,15],[3,16,3,17],[3,18,3,19],[3,20,3,21],[3,22,3,23],[1,2,1,21],[1,22,1,41],[2,2,2,7],[2,8,2,9],[2,10,2,15],[3,36,3,37],[3,38,3,39],[3,40,3,41],[3,24,3,25],[3,26,3,27],[3,30,3,31],[3,32,3,33],[3,34,3,35],[3,28,3,29]]}
["                        ","SUPPLEMENTAL QUESTIONNAIRE 3-FLOW-GEO-XSPE                                                                                                                                                                                                                                                                                                                                                                                                    Foreign Direct Investment Flows excluding resident SPEs and looking through non resident SPEs by geographical allocation (Directional Principle)                                                                                                                                                                                                                                                                                            Total inward and outward FDI flows series should be reported with the full geographical breakdown. Items marked with * are to be avoided in priority when flagging data for secondary confidentiality. Also, when secondary confidentiality process becomes too burdensome to report the full geographical breakdown for series of FDI instruments, those priority items are to be reported in priority while other items can be flagged as non publishable.",null,null,null,null,null,null,null,null,null,null,null,null,null,null,null,null,null,null,null,null,null,null,null,null,null,null,null,null,null,null,null,null,null,null,null,null,null,null,null,"OECD"]
["COUNTRY:",{"$f":"Country","v":""},"INFLOWS (DI)",null,null,null,null,null,null,null,null,null,null,null,null,null,null,null,null,null,null,null,"OUTFLOWS (DO)"]
["YEAR:  ",{"$f":"Year","v":""},"EQUITY (F5A)",null,null,null,null,null,"RE (F5B)",null,"Debt (FL)",null,null,null,null,null,"Total FDI inflows (F)",null,null,null,null,null,"EQUITY (F5A)",null,null,null,null,null,"RE (F5B)",null,"Debt (FL)",null,null,null,null,null,"Total FDI outflows (F)"]
["CURRENCY:  ",{"$f":"Currency","v":0},"Liabilities",null,"Assets",null,"Net Inward",null,"Net inward",null,"Liabilities",null,"Assets",null,"Net Inward",null,"Liabilities",null,"Assets",null,"Net Inward",null,"Assets",null,"Liabilities",null,"Net outward",null,"Net Outward",null,"Assets",null,"Liabilities",null,"Net outward",null,"Assets",null,"Liabilities",null,"Net outward"]
["UNITS:           ","MILLIONS","L",null,"A",null,"NI",null,"NI",null,"L",null,"A",null,"NI",null,"L",null,"A",null,"NI",null,"A",null,"L",null,"NO",null,"NO",null,"A",null,"L",null,"NO",null,"A",null,"L",null,"NO"]
["STATISTICAL UNIT:",{"$f":"StatUnit","v":""},"(1)",null,"(2)",null,"(3)                                        (1-2)",null,"(4)",null,"(5)",null,"(6)",null,"(7)                                        (5-6)",null,"(8)                            (1+4+5)",null,"(9)                                  (2+6)",null,"(10)                                      (3+4+7)",null,"(11)",null,"(12)",null,"(13)                                      (11-12)",null,"(14)",null,"(15)                ",null,"(16)                ",null,"(17)                                      (15-16)",null,"(18)                 (11+14+15)",null,"(19)                                       (12+16)",null,"(20)                 (13+14+17)"]
["VALUATION:",{"$f":"ValuationFlows","v":""},null,"cc",null,"cc",null,"cc",null,"cc",null,"cc",null,"cc",null,"cc",null,"cc",null,"cc",null,"cc",null,"cc",null,"cc",null,"cc",null,"cc",null,"cc",null,"cc",null,"cc",null,"cc",null,"cc",null,"cc"]
["W0","WORLD*"]
["P8","World Excluding OECD"]
["W190","World not allocated"]
["E1","EUROPE "]
["E1X","Europe Excluding OECD countries"]
["E19","Europe not allocated"]
["AL"," Albania"]
["AD"," Andorra"]
["AT"," Austria*"]
["BY"," Belarus"]
["BE"," Belgium*"]
["BA"," Bosnia and Herzegovina"]
["BG"," Bulgaria*"]
["HR"," Croatia"]
["CY"," Cyprus*,1"]
["CZ"," Czech Republic*"]
["DK"," Denmark*"]
["EE"," Estonia*"]
["FO"," Faroe Islands"]
["FI"," Finland*"]
["FR"," France*"]
["DE"," Germany*"]
["GI"," Gibraltar"]
["GR"," Greece*"]
["GG"," Guernsey"]
["VA"," Holy see (Vatican City State)"]
["HU"," Hungary*"]
["IS"," Iceland*"]
["IE"," Ireland*"]
["IM"," Isle of Man"]
["IT"," Italy*"]
["JE"," Jersey"]
["XK","Kosovo"]
["LV"," Latvia*"]
["LI"," Liechtenstein"]
["LT"," Lithuania*"]
["LU"," Luxembourg*"]
["MK"," Macedonia, the Former Yugoslav Republic of "]
["MT"," Malta"]
["MD"," Moldova"]
["ME"," Montenegro"]
["NL"," Netherlands*"]
["NO"," Norway*"]
["PL"," Poland*"]
["PT"," Portugal*"]
["RO"," Romania*"]
["RU"," Russia*"]
["SM"," San Marino"]
["RS"," Serbia"]
["SK"," Slovakia*"]
["SI"," Slovenia*"]
["ES"," Spain*"]
["SE"," Sweden*"]
["CH"," Switzerland* "]
["TR","Turkey*"]
["UA","Ukraine*"]
["GB"," United Kingdom*"]
["R1","Belgum-Luxembourg (until end 2002)"]
["CS","Serbia and Montenegro (until end 2006)"]
["F1","AFRICA* "]
["F19","Africa not allocated"]
["F4","   Northern Africa"]
["DZ","Algeria*"]
["EG","Egypt*"]
["LY","Libyan Arab Jamahiriya*"]
["MA","Morocco*"]
["TN","Tunisia*"]
["F2"," Other African countries"]
["AO"," Angola"]
["BJ"," Benin"]
["BW"," Botswana"]
["IO"," British Indian Ocean Territory"]
["BF"," Burkina Faso"]
["BI"," Burundi"]
["CM"," Cameroon"]
["CV"," Cape Verde"]
["CF"," Central African Republic"]
["TD"," Chad"]
["KM"," Comoros"]
["CG"," Congo"]
["CI"," Côte d'Ivoire"]
["CD"," Congo, the Democratic Republic of the "]
["DJ"," Djibouti"]
["GQ"," Equatorial Guinea"]
["ER"," Eritrea"]
["ET"," Ethiopia"]
["GA"," Gabon"]
["GM"," Gambia"]
["GH"," Ghana"]
["GN"," Guinea"]
["GW"," Guinea-Bissau"]
["KE"," Kenya"]
["LS"," Lesotho"]
["LR"," Liberia"]
["MG"," Madagascar"]
["MW"," Malawi"]
["ML"," Mali"]
["MR"," Mauritania"]
["MU"," Mauritius"]
["MZ"," Mozambique"]
["NA"," Namibia"]
["NE"," Niger"]
["NG"," Nigeria*"]
["RW"," Rwanda"]
["SH"," St Helena"]
["ST"," Sao Tome & Principe"]
["SN"," Senegal"]
["SC"," Seychelles"]
["SL"," Sierra Leone"]
["SO"," Somalia"]
["ZA"," South Africa*"]
["SD","Sudan"]
["SS","South Sudan"]
["SZ"," Swaziland"]
["TZ"," Tanzania, United Republic of"]
["TG"," Togo"]
["UG"," Uganda"]
["ZM"," Zambia"]
["ZW","Zimbabwe"]
["A1","AMERICA "]
["A1X","America Excluding OECD countries"]
["A19","America not allocated"]
["A2","   Northern America"]
["A2X","   Northern America Excluding OECD countries"]
["CA","      Canada*"]
["GL","      Greenland"]
["US","      United States*"]
["A5","   Central America and Caribbean countries"]
["A5X","Central and Caribbean countries excl. OECD countries"]
["AI","      Anguilla"]
["AG","      Antigua and Barbuda"]
["AW","      Aruba"]
["BS","      Bahamas"]
["BB","      Barbados"]
["BZ","      Belize"]
["BM","      Bermuda"]
["BQ","      Bonaire, Saint Eustatius and Saba (from 2011 onwards)"]
["KY","      Cayman Islands"]
["CR","      Costa Rica*"]
["CU","      Cuba"]
["CW","      Curaçao (from 2011 onwards)"]
["DM","      Dominica"]
["DO","      Dominican Republic"]
["SV","      El Salvador"]
["GD","      Grenada"]
["GT","      Guatemala"]
["HT","      Haiti"]
["HN","      Honduras"]
["JM","      Jamaica"]
["MX","      Mexico* "]
["MS","      Montserrat"]
["NI","      Nicaragua"]
["PA","      Panama*"]
["KN","      Saint Kitts and Nevis"]
["LC","      Saint Lucia"]
["VC","      Saint Vincent and the Grenadines"]
["SX","      Sint Maarten (from 2011 onwards)"]
["TT","      Trinidad and Tobago"]
["TC","      Turks and Caicos Islands"]
["VG","      Virgin Islands, British"]
["VI","      Virgin Islands, U.S."]
["AN","      Netherlands Antilles (until end 2010)"]
["A7","   South America"]
["A7X","    South America excluding OECD countries"]
["AR","      Argentina*"]
["BO","      Bolivia"]
["BR","      Brazil*"]
["CL","      Chile*"]
["CO","      Colombia*"]
["EC","      Ecuador"]
["FK","      Falkland Islands (Malvinas)"]
["GY","      Guyana"]
["PY","      Paraguay"]
["PE","      Peru*"]
["SR","      Suriname"]
["UY","      Uruguay*"]
["VE","      Venezuela*"]
["S1","ASIA "]
["S1X","Asia Excluding OECD countries"]
["S19","Asia not allocated"]
["S3","   Near and Middle East countries*"]
["S3X","   Near and Middle East excluding OECD"]
["S35","      Gulf Arabian countries"]
["BH","         Bahrain"]
["IQ","         Iraq"]
["KW","         Kuwait*"]
["OM","         Oman"]
["QA","         Qatar"]
["SA","         Saudi Arabia*"]
["AE","         United Arab Emirates*"]
["YE","         Yemen"]
["S37","      Other Near and Middle East countries"]
["S37X","      Other Near and Middle East excluding OECD countries"]
["AM","         Armenia"]
["AZ","         Azerbaijan"]
["GE","         Georgia"]
["IL","         Israel*"]
["JO","         Jordan*"]
["LB","         Lebanon"]
["PS","         Palestinian Territory, Occupied"]
["SY","         Syrian Arab Republic"]
["S6","Other Asian countries"]
["S6X","Other Asian countries excluding OECD countries"]
["AF","      Afghanistan"]
["BD","      Bangladesh"]
["BT","      Bhutan"]
["BN","      Brunei Darussalam"]
["KH","      Cambodia (Kampuchea)"]
["CN","      China*"]
["HK","      Hong Kong, China*"]
["IN","      India*"]
["ID","      Indonesia*"]
["IR","      Iran, Islamic Republic of"]
["JP","      Japan*"]
["KZ","      Kazakhstan"]
["KP","      Korea, Democratic People's Republic of (North Korea)"]
["KR","      Korea, Republic of (South Korea)*"]
["KG","      Kyrgyzstan"]
["LA","      Lao People's Democratic Republic"]
["MO","      Macao"]
["MY","      Malaysia*"]
["MV","      Maldives"]
["MN","      Mongolia"]
["MM","      Myanmar"]
["NP","      Nepal"]
["PK","      Pakistan"]
["PH","      Philippines*"]
["SG","      Singapore*"]
["LK","      Sri Lanka"]
["TW","      Chinese Taipei"]
["TJ","      Tajikistan"]
["TH","      Thailand*"]
["TL","      Timor-Leste"]
["TM","      Turkmenistan"]
["UZ","      Uzbekistan"]
["VN","      Viet Nam*"]
["O1","AUSTRALIA, OCEANIA & POLAR REGIONS"]
["O1X0","Oceania & Polar regions  Excluding OECD countries"]
["O19","Oceania & Polar regions not allocated"]
["AS","American Samoa"]
["AQ","Antarctica"]
["AU","Australia*"]
["BV","Bouvet Island"]
["CX","Christmas Islands"]
["CC","Cocos Islands"]
["CK","Cook Islands"]
["FJ","Fiji"]
["PF","French Polynesia"]
["TF","French Southern Territories"]
["GU","Guam"]
["HM","Heard islands and Mc Donald islands"]
["KI","Kiribati"]
["MH","Marshall Islands"]
["FM","Micronesia, Federated States of"]
["NR","Nauru"]
["NC","New Caledonia"]
["NZ","New Zealand*"]
["NU","Niue"]
["NF","Norfolk Island"]
["MP","Northern Mariana Islands"]
["PW","Palau"]
["PG","Papua New Guinea"]
["PN","Pitcairn"]
["WS","Samoa"]
["SB","Solomon Islands"]
["GS","South Georgia  and the South Sandwich Islands"]
["TK","Tokelau"]
["TO","Tonga"]
["TV","Tuvalu"]
["UM","US Minor Outllying islands"]
["VU","Vanuatu"]
["WF","Wallis and Futuna"]
["ECONOMIC AND MONETARY ZONES"]
["P0","OECD*"]
["B5","EU28* (from 2013)"]
["B4","EU27* (for 2007-2012)"]
["B3","EU25* (for 2004-2006 only)"]
["B2","EU15* (until 2003 only)"]
["R4","ASEAN*"]
["R220","G20 countries*"]
["R221","G20 OECD countries*"]
["R222","G20 Non-OECD ctr.*"]
["F98","MENA (Middle East and North Africa countries)*"]
["R25","Total Official Development Assistance (ODA) recipients*"]
["R251","ODA recipients -Europe*"]
["R252","ODA recipients-Africa*"]
["R253","ODA recipients-America*"]
["R254","ODA recipients-Asia*"]
["R255","ODA recipients-Oceania*"]
["[1] Footnote by Turkey:\n The information in this document with reference to “Cyprus” relates to the southern part of the Island. There is no single authority representing both Turkish and Greek Cypriot people on the Island. Turkey recognizes the Turkish Republic of Northern Cyprus (TRNC). Until a lasting and equitable solution is found within the context of United Nations, Turkey shall preserve its position concerning the “Cyprus” issue. \n Footnote by all the European Union Member States of the OECD and the European Union:\n The Republic of Cyprus is recognized by all members of the United Nations with the exception of Turkey. The information in this document relates to the area under the effective control of the Government of the Republic of Cyprus.\nFootnote by Turkey:\n The information in this document with reference to “Cyprus” relates to the southern part of the Island. There is no single authority representing both Turkish and Greek Cypriot people on the Island. Turkey recognizes the Turkish Republic of Northern Cyprus (TRNC). Until a lasting and equitable solution is found within the context of United Nations, Turkey shall preserve its position concerning the “Cyprus” issue. \n Footnote by all the European Union Member States of the OECD and the European Union:\n The Republic of Cyprus is recognized by all members of the United Nations with the exception of Turkey. The information in this document relates to the area under the effective control of the Government of the Republic of Cyprus.\n"]
[]
["* Priority items to avoid when flagging data for secondary confidentiality. If the secondary confidentiality checking exercise is too burdensome for reporting the full GEO breakdown for FDI instruments and for series of SPEs/excluding resident SPE, the priority items should be reported while the other items can be flagged as non-publishable, unless they play a significant role in total FDI. "]
["Cells highlighted in grey are secondary priority"]

{"sheet":"3-FLOW-IND-XSPE","index":11,"n_rows":94,"n_cols":42,"rows_kept":94,"cut":false,"hidden":false,"merged":[[0,1,0,20],[1,2,1,21],[1,22,1,41],[2,2,2,7],[2,8,2,9],[2,10,2,15],[2,16,2,21],[2,22,2,27],[2,28,2,29],[2,30,2,35],[2,36,2,41],[3,8,3,9],[3,28,3,29],[3,2,3,3],[3,4,3,5],[3,6,3,7],[3,10,3,11],[3,12,3,13],[3,14,3,15],[3,16,3,17],[3,18,3,19],[3,20,3,21],[3,22,3,23],[3,38,3,39],[3,40,3,41],[3,24,3,25],[3,26,3,27],[3,30,3,31],[3,32,3,33],[3,34,3,35],[3,36,3,37]]}
["                        ","SUPPLEMENTAL QUESTIONNAIRE 3-FLOW-IND-XSPE                                                                                                                                                                                                                                                                                                                                                                  Foreign Direct Investment Flows excluding resident SPEs and looking through non resident SPEs by industry classification (ISIC4)(Directional Principle)",null,null,null,null,null,null,null,null,null,null,null,null,null,null,null,null,null,null,null,null,null,null,null,null,null,null,null,null,null,null,null,null,null,null,null,null,null,null,null,"OECD"]
["COUNTRY:",{"$f":"Country","v":""},"INFLOWS (DI)",null,null,null,null,null,null,null,null,null,null,null,null,null,null,null,null,null,null,null,"OUTFLOWS (DO)"]
["YEAR:  ",{"$f":"Year","v":""},"EQUITY (F5A)",null,null,null,null,null,"RE (F5B)",null,"Debt (FL)",null,null,null,null,null,"Total FDI inflows (F)",null,null,null,null,null,"EQUITY (F5A)",null,null,null,null,null,"RE (F5B)",null,"Debt (FL)",null,null,null,null,null,"Total FDI outflows (F)"]
["CURRENCY:  ",{"$f":"Currency","v":0},"Liabilities",null,"Assets",null,"Net Inward",null,"Net inward",null,"Liabilities",null,"Assets",null,"Net Inward",null,"Liabilities",null,"Assets",null,"Net Inward",null,"Assets",null,"Liabilities",null,"Net outward",null,"Net Outward",null,"Assets",null,"Liabilities",null,"Net outward",null,"Assets",null,"Liabilities",null,"Net outward"]
["UNITS:           ","MILLIONS","L",null,"A",null,"NI",null,"NI",null,"L",null,"A",null,"NI",null,"L",null,"A",null,"NI",null,"A",null,"L",null,"NO",null,"NO",null,"A",null,"L",null,"NO",null,"A",null,"L",null,"NO"]
["STATISTICAL UNIT:",{"$f":"StatUnit","v":""},"(1)",null,"(2)",null,"(3)                                        (1-2)",null,"(4)",null,"(5)",null,"(6)",null,"(7)                                        (5-6)",null,"(8)                               (1+4+5)",null,"(9)                              (2+6)",null,"(10)                                      (3+4+7)",null,"(11)",null,"(12)",null,"(13)                                       (11-12)",null,"(14)",null,"(15)                ",null,"(16)                ",null,"(17)                                      (15-16)",null,"(18)                 (11+14+15)",null,"(19)                                      (12+16)",null,"(20)                 (13+14+17)"]
["VALUATION:",{"$f":"ValuationFlows","v":""}]
["ACTIVITY ALLOCATION:",{"$f":"CONCATENATE(\"Inward FDI: \",EcoActInflows,\"    / Outward FDI: \",EcoActOutflows)","v":"Inward FDI:     / Outward FDI: "},{"$f":"EcoActInflowsCode","v":0},"cc",{"$f":"EcoActInflowsCode","v":0},"cc",{"$f":"EcoActInflowsCode","v":0},"cc",{"$f":"EcoActInflowsCode","v":0},"cc",{"$f":"EcoActInflowsCode","v":0},"cc",{"$f":"EcoActInflowsCode","v":0},"cc",{"$f":"EcoActInflowsCode","v":0},"cc",{"$f":"EcoActInflowsCode","v":0},"cc",{"$f":"EcoActInflowsCode","v":0},"cc",{"$f":"EcoActInflowsCode","v":0},"cc",{"$f":"EcoActOutflowsCode","v":0},"cc",{"$f":"EcoActOutflowsCode","v":0},"cc",null,"cc",null,"cc",{"$f":"EcoActOutflowsCode","v":0},"cc",{"$f":"EcoActOutflowsCode","v":0},"cc",{"$f":"EcoActOutflowsCode","v":0},"cc",{"$f":"EcoActOutflowsCode","v":0},"cc",{"$f":"EcoActOutflowsCode","v":0},"cc",{"$f":"EcoActOutflowsCode","v":0},"cc"]
["A","AGRICULTURE, FORESTRY AND FISHING (Section A) "]
["B","MINING AND QUARRYING (Section B)"]
["B06_09","Of which:      Extraction of crude petroleum and gas; mining support services"]
["A_B","TOTAL PRIMARY SECTOR (Sections A and B)"]
["C","MANUFACTURING (Section C) "]
["C10T12","Food products, beverage and tobacco products"]
["C13_14","Textiles and wearing apparel"]
["C16T18","Manufacture of wood, paper, and their products; printing and reproduction or recorded media"]
["C13T18X15","[TOTAL textiles + wood activities ](C13_14+C16T18)"]
["C19","Coke and refined petroleum products"]
["C20","Manufacture of chemicals and chemical products"]
["C21","Pharmaceuticals products and preparation"]
["C22","Rubber and plastic products"]
["C19T22","[TOTAL petroleum, chemical, pharmaceuticals, rubber and plastic products] (C19+C20+C21+C22) "]
["C24_25","Basic metal and fabricated metal products"]
["C26","Computer, electronic and optical products"]
["C262"," Of which: Computers and peripheral equipment"]
["C263_264","      Communication equipment and consumer electronics"]
["C265_266","       Instrument and appliances for measuring, testing and navigation; watches and clock; irradiation, electromedical and electrotherapeutic equipment"]
["C28","Machinery and equipment n. e. c"]
["C24T28X27","[TOTAL metal, computer and machinery] (C24_C25+C26+C28)"]
["C29","Motor vehicles, trailers and semi-trailers"]
["C30","Other transport equipments"]
["C303","Of which:   Manufacture of aircraft and spacecraft"]
["C29_30","[TOTAL vehicles and other transport equipment] (C29+C30)"]
["C_OTH","Other manufacturing"]
["D35","ELECTRICITY, GAS, STEAM AND AIR CONDITIONING SUPPLY (Section D)"]
["E","WATER SUPPLY, SEWERAGE, WASTE MANAGEMENT AND REMEDIATION ACTIVITIES (Section E)"]
["E36","Water collection, treatment and supply"]
["E37T39","Sewerage, waste management and remediation activities"]
["F","CONSTRUCTION (Section F)"]
["G","WHOLESALE AND RETAILTRADE; REPAIR OF MOTOR VEHICLES AND MOTOR CYCLES (Section G)"]
["G45","Wholesale and retail trade and repair of motor vehicles and motorcycles"]
["G46","Wholesale trade, except of motor vehicles and motor cycles"]
["G47","Retail trade, except of motor vehicles and motor cycles"]
["H","TRANSPORTATION AND STORAGE (Section H)"]
["H49","Land transport and transport via pipelines"]
["H50","Water transport"]
["H51","Air transport"]
["H52","Warehousing and support activities for transportation"]
["HX53","[TOTAL transport and storage] (H49+H50+H51+H52)"]
["H53","Post and courier activities"]
["I","ACCOMODATION AND FOOD SERVICE ACTIVITIES (Section I)"]
["J","INFORMATION AND COMMUNICATION (Section J) "]
["J59_60","Motion picture, video and TV programme production, sound recording and music publishing activities; programming and broadcasting activities"]
["J61","Telecommunications"]
["J58_62_63","Other information and communication activities"]
["K","FINANCIAL AND INSURANCE ACTIVITIES (Section K) "]
["K64","Financial services activities, except insurance and pension funding"]
["K641","Of which:   Monetary intermediation"]
["K642","                        Activities of holding companies"]
["K643","                       Trusts, funds and similar financial entities"]
["K65","Insurance, reinsurance and pension funding, except compulsory social security"]
["K66","Activities auxiliary to financial services and insurance activities"]
["L","REAL ESTATE ACTIVITIES (Section L) "]
["M","PROFESSIONAL, SCIENTIFIC AND TECHNICAL ACTIVITIES (Section M)"]
["M69","Legal and accounting activities"]
["M691","     Legal activities"]
["M692","     Accounting, bookkeeping and auditing activities, tax consultancy"]
["M70","Activities of head offices; management and consultancy activities "]
["M701","      Activities of head offices"]
["M702","      Management consultancy activities"]
["M71","Architecture and engineering activities, technical testing and analysis"]
["M72","Scientific research and development"]
["M73","Advertising and market research"]
["M731","     Advertising"]
["M732","     Market research and public opinion polling"]
["M74_75","Other professional, scientific and technical activities"]
["N","ADMINISTRATIVE AND SUPPORT SERVICE ACTIVITIES (Section N)"]
["N77","Rental and leasing activities"]
["N78T82","Other administrative and support services activities"]
["N79"," Of which: Travel agency, tour operator reservation service and related activities"]
["P85","EDUCATION (Section P)"]
["Q","HUMAN HEALTH AND SOCIAL WORK ACTIVITIES (Section Q)"]
["R","ARTS, ENTERTAINMENT AND RECREATION (Section R)"]
["R90","Creative, arts and entertainment activities"]
["R91","Libraries, archives, museums and other cultural activities"]
["R92_93","Sports activities and amusement and recreation activities; gambling and betting activities"]
["O_T_U","Public administration; activities of households and of extraterritorial organisations  (Section O, T, U)"]
["S","OTHER SERVICE ACTIVITIES (Section S)"]
["S94","Activities of membership organisations"]
["S95_96","Repair of computers and personal and household goods, other services"]
["GTU","TOTAL SERVICES (Sections G to U)"]
["NAL","Unallocated"]
["PRV_RE","Priv. purchase & sales of real estate"]
["FDI_T","TOTAL"]

{"sheet":"3-FLOW-GEO-MA","index":12,"n_rows":300,"n_cols":26,"rows_kept":300,"cut":false,"hidden":false,"merged":[[2,14,2,19],[2,20,2,25],[0,1,0,23],[3,18,3,19],[3,24,3,25],[1,2,1,13],[1,14,1,25],[2,2,2,7],[2,8,2,13]]}
["                        ","SUPPLEMENTAL QUESTIONNAIRE 3-FLOW-GEO-MA                                                                                                                                                                                                                                                                                               Foreign Direct Investment MERGER AND ACQUISITION type of Equity Flows by geographical allocation (Directional Principle)                                                                                                                                                                                                                                           Total inward and outward M&A type of Equity inflows and outflows series should be reported with the full geographical breakdown. Items marked with * are to be avoided in priority when flagging data for secondary confidentiality.",null,null,null,null,null,null,null,null,null,null,null,null,null,null,null,null,null,null,null,null,null,null,null,"OECD"]
["COUNTRY:",{"$f":"Country","v":""},"M&A type of EQUITY (F5AM) - INFLOWS (DI)",null,null,null,null,null,null,null,null,null,null,null,"M&A type of EQUITY (F5AM) - OUTFLOWS (DO)"]
["YEAR:  ",{"$f":"Year","v":""},"EQUITY OWNERSHIP +10% (I)",null,null,null,null,null,"ACQUISITION OVER +50% (C)",null,null,null,null,null,"EQUITY OWNERSHIP +10% (I)",null,null,null,null,null,"ACQUISITION OVER +50% (C)"]
["CURRENCY:  ",{"$f":"Currency","v":0},"Investment",null,"Disinvestment",null,"Net inward",null,"Investment",null,"Disinvestment",null,"Net inward",null,"Investment",null,"Disinvestment",null,"Net outward",null,"Investment",null,"Disinvestment",null,"Net outward"]
["UNITS:           ","MILLIONS","LI",null,"LD",null,"NI",null,"LI",null,"LD",null,"NI",null,"AI",null,"AD",null,"NO",null,"AI",null,"AD",null,"NO"]
["STATISTICAL UNIT:",{"$f":"StatUnit","v":""},"(1)",null,"(2)",null,"(3)                                        (1-2)",null,"(4)",null,"(5)",null,"(6)                                        (4-5)",null,"(7)",null,"(8)",null,"(9)                                        (7-8)",null,"(10)",null,"(11)",null,"(12)                                       (10-11)"]
["VALUATION:",{"$f":"ValuationFlows","v":""}]
["LEVEL OF COUNTERPART:","Immediate",null,"cc",null,"cc",null,"cc",null,"cc",null,"cc",null,"cc",null,"cc",null,"cc",null,"cc",null,"cc",null,"cc",null,"cc"]
["W0","WORLD*"]
["P8","World Excluding OECD"]
["W190","World not allocated"]
["E1","EUROPE "]
["E1X","Europe Excluding OECD countries"]
["E19","Europe not allocated"]
["AL"," Albania"]
["AD"," Andorra"]
["AT"," Austria*"]
["BY"," Belarus"]
["BE"," Belgium*"]
["BA"," Bosnia and Herzegovina"]
["BG"," Bulgaria*"]
["HR"," Croatia"]
["CY"," Cyprus*,1"]
["CZ"," Czech Republic*"]
["DK"," Denmark*"]
["EE"," Estonia*"]
["FO"," Faroe Islands"]
["FI"," Finland*"]
["FR"," France*"]
["DE"," Germany*"]
["GI"," Gibraltar"]
["GR"," Greece*"]
["GG"," Guernsey"]
["VA"," Holy see (Vatican City State)"]
["HU"," Hungary*"]
["IS"," Iceland*"]
["IE"," Ireland*"]
["IM"," Isle of Man"]
["IT"," Italy*"]
["JE"," Jersey"]
["XK","Kosovo"]
["LV"," Latvia*"]
["LI"," Liechtenstein"]
["LT"," Lithuania*"]
["LU"," Luxembourg*"]
["MK"," Macedonia, the Former Yugoslav Republic of "]
["MT"," Malta"]
["MD"," Moldova"]
["ME"," Montenegro"]
["NL"," Netherlands*"]
["NO"," Norway*"]
["PL"," Poland*"]
["PT"," Portugal*"]
["RO"," Romania*"]
["RU"," Russia*"]
["SM"," San Marino"]
["RS"," Serbia"]
["SK"," Slovakia*"]
["SI"," Slovenia*"]
["ES"," Spain*"]
["SE"," Sweden*"]
["CH"," Switzerland* "]
["TR","Turkey*"]
["UA","Ukraine*"]
["GB"," United Kingdom*"]
["R1","Belgum-Luxembourg (until end 2002)"]
["CS","Serbia and Montenegro (until end 2006)"]
["F1","AFRICA* "]
["F19","Africa not allocated"]
["F4","   Northern Africa"]
["DZ","Algeria*"]
["EG","Egypt*"]
["LY","Libyan Arab Jamahiriya*"]
["MA","Morocco*"]
["TN","Tunisia*"]
["F2"," Other African countries"]
["AO"," Angola"]
["BJ"," Benin"]
["BW"," Botswana"]
["IO"," British Indian Ocean Territory"]
["BF"," Burkina Faso"]
["BI"," Burundi"]
["CM"," Cameroon"]
["CV"," Cape Verde"]
["CF"," Central African Republic"]
["TD"," Chad"]
["KM"," Comoros"]
["CG"," Congo"]
["CI"," Côte d'Ivoire"]
["CD"," Congo, the Democratic Republic of the "]
["DJ"," Djibouti"]
["GQ"," Equatorial Guinea"]
["ER"," Eritrea"]
["ET"," Ethiopia"]
["GA"," Gabon"]
["GM"," Gambia"]
["GH"," Ghana"]
["GN"," Guinea"]
["GW"," Guinea-Bissau"]
["KE"," Kenya"]
["LS"," Lesotho"]
["LR"," Liberia"]
["MG"," Madagascar"]
["MW"," Malawi"]
["ML"," Mali"]
["MR"," Mauritania"]
["MU"," Mauritius"]
["MZ"," Mozambique"]
["NA"," Namibia"]
["NE"," Niger"]
["NG"," Nigeria*"]
["RW"," Rwanda"]
["SH"," St Helena"]
["ST"," Sao Tome & Principe"]
["SN"," Senegal"]
["SC"," Seychelles"]
["SL"," Sierra Leone"]
["SO"," Somalia"]
["ZA"," South Africa*"]
["SD","Sudan"]
["SS","South Sudan"]
["SZ"," Swaziland"]
["TZ"," Tanzania, United Republic of"]
["TG"," Togo"]
["UG"," Uganda"]
["ZM"," Zambia"]
["ZW","Zimbabwe"]
["A1","AMERICA "]
["A1X","America Excluding OECD countries"]
["A19","America not allocated"]
["A2","   Northern America"]
["A2X","   Northern America Excluding OECD countries"]
["CA","      Canada*"]
["GL","      Greenland"]
["US","      United States*"]
["A5","   Central America and Caribbean countries"]
["A5X","Central and Caribbean countries excl. OECD countries"]
["AI","      Anguilla"]
["AG","      Antigua and Barbuda"]
["AW","      Aruba"]
["BS","      Bahamas"]
["BB","      Barbados"]
["BZ","      Belize"]
["BM","      Bermuda"]
["BQ","      Bonaire, Saint Eustatius and Saba (from 2011 onwards)"]
["KY","      Cayman Islands"]
["CR","      Costa Rica*"]
["CU","      Cuba"]
["CW","      Curaçao (from 2011 onwards)"]
["DM","      Dominica"]
["DO","      Dominican Republic"]
["SV","      El Salvador"]
["GD","      Grenada"]
["GT","      Guatemala"]
["HT","      Haiti"]
["HN","      Honduras"]
["JM","      Jamaica"]
["MX","      Mexico* "]
["MS","      Montserrat"]
["NI","      Nicaragua"]
["PA","      Panama*"]
["KN","      Saint Kitts and Nevis"]
["LC","      Saint Lucia"]
["VC","      Saint Vincent and the Grenadines"]
["SX","      Sint Maarten (from 2011 onwards)"]
["TT","      Trinidad and Tobago"]
["TC","      Turks and Caicos Islands"]
["VG","      Virgin Islands, British"]
["VI","      Virgin Islands, U.S."]
["AN","      Netherlands Antilles (until end 2010)"]
["A7","   South America"]
["A7X","    South America excluding OECD countries"]
["AR","      Argentina*"]
["BO","      Bolivia"]
["BR","      Brazil*"]
["CL","      Chile*"]
["CO","      Colombia*"]
["EC","      Ecuador"]
["FK","      Falkland Islands (Malvinas)"]
["GY","      Guyana"]
["PY","      Paraguay"]
["PE","      Peru*"]
["SR","      Suriname"]
["UY","      Uruguay*"]
["VE","      Venezuela*"]
["S1","ASIA "]
["S1X","Asia Excluding OECD countries"]
["S19","Asia not allocated"]
["S3","   Near and Middle East countries*"]
["S3X","   Near and Middle East excluding OECD"]
["S35","      Gulf Arabian countries"]
["BH","         Bahrain"]
["IQ","         Iraq"]
["KW","         Kuwait*"]
["OM","         Oman"]
["QA","         Qatar"]
["SA","         Saudi Arabia*"]
["AE","         United Arab Emirates*"]
["YE","         Yemen"]
["S37","      Other Near and Middle East countries"]
["S37X","      Other Near and Middle East excluding OECD countries"]
["AM","         Armenia"]
["AZ","         Azerbaijan"]
["GE","         Georgia"]
["IL","         Israel*"]
["JO","         Jordan*"]
["LB","         Lebanon"]
["PS","         Palestinian Territory, Occupied"]
["SY","         Syrian Arab Republic"]
["S6","Other Asian countries"]
["S6X","Other Asian countries excluding OECD countries"]
["AF","      Afghanistan"]
["BD","      Bangladesh"]
["BT","      Bhutan"]
["BN","      Brunei Darussalam"]
["KH","      Cambodia (Kampuchea)"]
["CN","      China*"]
["HK","      Hong Kong, China*"]
["IN","      India*"]
["ID","      Indonesia*"]
["IR","      Iran, Islamic Republic of"]
["JP","      Japan*"]
["KZ","      Kazakhstan"]
["KP","      Korea, Democratic People's Republic of (North Korea)"]
["KR","      Korea, Republic of (South Korea)*"]
["KG","      Kyrgyzstan"]
["LA","      Lao People's Democratic Republic"]
["MO","      Macao"]
["MY","      Malaysia*"]
["MV","      Maldives"]
["MN","      Mongolia"]
["MM","      Myanmar"]
["NP","      Nepal"]
["PK","      Pakistan"]
["PH","      Philippines*"]
["SG","      Singapore*"]
["LK","      Sri Lanka"]
["TW","      Chinese Taipei"]
["TJ","      Tajikistan"]
["TH","      Thailand*"]
["TL","      Timor-Leste"]
["TM","      Turkmenistan"]
["UZ","      Uzbekistan"]
["VN","      Viet Nam*"]
["O1","AUSTRALIA, OCEANIA & POLAR REGIONS"]
["O1X0","Oceania & Polar regions  Excluding OECD countries"]
["O19","Oceania & Polar regions not allocated"]
["AS","American Samoa"]
["AQ","Antarctica"]
["AU","Australia*"]
["BV","Bouvet Island"]
["CX","Christmas Islands"]
["CC","Cocos Islands"]
["CK","Cook Islands"]
["FJ","Fiji"]
["PF","French Polynesia"]
["TF","French Southern Territories"]
["GU","Guam"]
["HM","Heard islands and Mc Donald islands"]
["KI","Kiribati"]
["MH","Marshall Islands"]
["FM","Micronesia, Federated States of"]
["NR","Nauru"]
["NC","New Caledonia"]
["NZ","New Zealand*"]
["NU","Niue"]
["NF","Norfolk Island"]
["MP","Northern Mariana Islands"]
["PW","Palau"]
["PG","Papua New Guinea"]
["PN","Pitcairn"]
["WS","Samoa"]
["SB","Solomon Islands"]
["GS","South Georgia  and the South Sandwich Islands"]
["TK","Tokelau"]
["TO","Tonga"]
["TV","Tuvalu"]
["UM","US Minor Outllying islands"]
["VU","Vanuatu"]
["WF","Wallis and Futuna"]
["ECONOMIC AND MONETARY ZONES"]
["P0","OECD*"]
["B5","EU28* (from 2013)"]
["B4","EU27* (for 2007-2012)"]
["B3","EU25* (for 2004-2006 only)"]
["B2","EU15* (until 2003 only)"]
["R4","ASEAN*"]
["R220","G20 countries*"]
["R221","G20 OECD countries*"]
["R222","G20 Non-OECD ctr.*"]
["F98","MENA (Middle East and North Africa countries)*"]
["R25","Total Official Development Assistance (ODA) recipients*"]
["R251","ODA recipients -Europe*"]
["R252","ODA recipients-Africa*"]
["R253","ODA recipients-America*"]
["R254","ODA recipients-Asia*"]
["R255","ODA recipients-Oceania*"]
["[1] Footnote by Turkey:\n The information in this document with reference to “Cyprus” relates to the southern part of the Island. There is no single authority representing both Turkish and Greek Cypriot people on the Island. Turkey recognizes the Turkish Republic of Northern Cyprus (TRNC). Until a lasting and equitable solution is found within the context of United Nations, Turkey shall preserve its position concerning the “Cyprus” issue. \n Footnote by all the European Union Member States of the OECD and the European Union:\n The Republic of Cyprus is recognized by all members of the United Nations with the exception of Turkey. The information in this document relates to the area under the effective control of the Government of the Republic of Cyprus.\nFootnote by Turkey:\n The information in this document with reference to “Cyprus” relates to the southern part of the Island. There is no single authority representing both Turkish and Greek Cypriot people on the Island. Turkey recognizes the Turkish Republic of Northern Cyprus (TRNC). Until a lasting and equitable solution is found within the context of United Nations, Turkey shall preserve its position concerning the “Cyprus” issue. \n Footnote by all the European Union Member States of the OECD and the European Union:\n The Republic of Cyprus is recognized by all members of the United Nations with the exception of Turkey. The information in this document relates to the area under the effective control of the Government of the Republic of Cyprus.\n"]
["[2] Only for European Union countries"]
["* Priority items to avoid when flagging data for secondary confidentiality. If the secondary confidentiality checking exercise is too burdensome for reporting the full GEO breakdown for FDI instruments and for series of SPEs/excluding resident SPE, the priority items should be reported while the other items can be flagged as non-publishable, unless they play a significant role in total FDI. "]

{"sheet":"3-FLOW-IND-MA","index":13,"n_rows":94,"n_cols":26,"rows_kept":94,"cut":false,"hidden":false,"merged":[[3,18,3,19],[3,24,3,25],[0,1,0,18],[1,2,1,13],[1,14,1,25],[2,2,2,7],[2,8,2,13],[2,14,2,19],[2,20,2,25]]}
["                        ","SUPPLEMENTAL QUESTIONNAIRE 3-FLOW-IND-MA                                                                                                                                                                                                                                                                                                                                     Foreign Direct Investment MERGER AND ACQUISITION type Equity Flows by industry classification (ISIC4)  (Directional Principle)",null,null,null,null,null,null,null,null,null,null,null,null,null,null,null,null,null,null,null,null,null,null,null,"OECD"]
["COUNTRY:",{"$f":"Country","v":""},"M&A type of EQUITY (F5AM) - INFLOWS (DI)",null,null,null,null,null,null,null,null,null,null,null,"M&A type of Equity (F5AM) - OUTFLOWS (DO)"]
["YEAR:  ",{"$f":"Year","v":""},"EQUITY OWNERSHIP +10% (I)",null,null,null,null,null,"ACQUISITION OVER +50% (C)",null,null,null,null,null,"EQUITY OWNERSHIP +10% (I)",null,null,null,null,null,"ACQUISITION OVER +50% (C)"]
["CURRENCY:  ",{"$f":"Currency","v":0},"Investment",null,"Disinvestment",null,"Net inward",null,"Investment",null,"Disinvestment",null,"Net inward",null,"Investment",null,"Disinvestment",null,"Net outward",null,"Investment",null,"Disinvestment",null,"Net outward"]
["UNITS:           ","MILLIONS","LI",null,"LD",null,"NI",null,"LI",null,"LD",null,"NI",null,"AI",null,"AD",null,"NO",null,"AI",null,"AD",null,"NO"]
["STATISTICAL UNIT:",{"$f":"StatUnit","v":""},"(1)",null,"(2)",null,"(3)                                         (1-2)",null,"(4)",null,"(5)",null,"(6)                                        (4-5)",null,"(7)",null,"(8)",null,"(9)                                          (7-8)",null,"(10)",null,"(11)",null,"(12)                                      (10-11)"]
["VALUATION:",{"$f":"ValuationFlows","v":""}]
["ACTIVITY ALLOCATION:",{"$f":"CONCATENATE(\"Inward FDI: \",EcoActInflows,\"    / Outward FDI: \",EcoActOutflows)","v":"Inward FDI:     / Outward FDI: "},{"$f":"EcoActInflowsCode","v":0},"cc",{"$f":"EcoActInflowsCode","v":0},"cc",{"$f":"EcoActInflowsCode","v":0},"cc",{"$f":"EcoActInflowsCode","v":0},"cc",{"$f":"EcoActInflowsCode","v":0},"cc",{"$f":"EcoActInflowsCode","v":0},"cc",{"$f":"EcoActOutflowsCode","v":0},"cc",{"$f":"EcoActOutflowsCode","v":0},"cc",{"$f":"EcoActOutflowsCode","v":0},"cc",{"$f":"EcoActOutflowsCode","v":0},"cc",{"$f":"EcoActOutflowsCode","v":0},"cc",{"$f":"EcoActOutflowsCode","v":0},"cc"]
["A","AGRICULTURE, FORESTRY AND FISHING (Section A) "]
["B","MINING AND QUARRYING (Section B)"]
["B06_09","Of which:      Extraction of crude petroleum and gas; mining support services"]
["A_B","TOTAL PRIMARY SECTOR (Sections A and B)"]
["C","MANUFACTURING (Section C) "]
["C10T12","Food products, beverage and tobacco products"]
["C13_14","Textiles and wearing apparel"]
["C16T18","Manufacture of wood, paper, and their products; printing and reproduction or recorded media"]
["C13T18X15","[TOTAL textiles + wood activities ](C13_14+C16T18)"]
["C19","Coke and refined petroleum products"]
["C20","Manufacture of chemicals and chemical products"]
["C21","Pharmaceuticals products and preparation"]
["C22","Rubber and plastic products"]
["C19T22","[TOTAL petroleum, chemical, pharmaceuticals, rubber and plastic products] (C19+C20+C21+C22) "]
["C24_25","Basic metal and fabricated metal products"]
["C26","Computer, electronic and optical products"]
["C262"," Of which: Computers and peripheral equipment"]
["C263_264","      Communication equipment and consumer electronics"]
["C265_266","       Instrument and appliances for measuring, testing and navigation; watches and clock; irradiation, electromedical and electrotherapeutic equipment"]
["C28","Machinery and equipment n. e. c"]
["C24T28X27","[TOTAL metal, computer and machinery] (C24_C25+C26+C28)"]
["C29","Motor vehicles, trailers and semi-trailers"]
["C30","Other transport equipments"]
["C303","Of which:   Manufacture of aircraft and spacecraft"]
["C29_30","[TOTAL vehicles and other transport equipment] (C29+C30)"]
["C_OTH","Other manufacturing"]
["D35","ELECTRICITY, GAS, STEAM AND AIR CONDITIONING SUPPLY (Section D)"]
["E","WATER SUPPLY, SEWERAGE, WASTE MANAGEMENT AND REMEDIATION ACTIVITIES (Section E)"]
["E36","Water collection, treatment and supply"]
["E37T39","Sewerage, waste management and remediation activities"]
["F","CONSTRUCTION (Section F)"]
["G","WHOLESALE AND RETAILTRADE; REPAIR OF MOTOR VEHICLES AND MOTOR CYCLES (Section G)"]
["G45","Wholesale and retail trade and repair of motor vehicles and motorcycles"]
["G46","Wholesale trade, except of motor vehicles and motor cycles"]
["G47","Retail trade, except of motor vehicles and motor cycles"]
["H","TRANSPORTATION AND STORAGE (Section H)"]
["H49","Land transport and transport via pipelines"]
["H50","Water transport"]
["H51","Air transport"]
["H52","Warehousing and support activities for transportation"]
["HX53","[TOTAL transport and storage] (H49+H50+H51+H52)"]
["H53","Post and courier activities"]
["I","ACCOMODATION AND FOOD SERVICE ACTIVITIES (Section I)"]
["J","INFORMATION AND COMMUNICATION (Section J) "]
["J59_60","Motion picture, video and TV programme production, sound recording and music publishing activities; programming and broadcasting activities"]
["J61","Telecommunications"]
["J58_62_63","Other information and communication activities"]
["K","FINANCIAL AND INSURANCE ACTIVITIES (Section K) "]
["K64","Financial services activities, except insurance and pension funding"]
["K641","Of which:   Monetary intermediation"]
["K642","                        Activities of holding companies"]
["K643","                       Trusts, funds and similar financial entities"]
["K65","Insurance, reinsurance and pension funding, except compulsory social security"]
["K66","Activities auxiliary to financial services and insurance activities"]
["L","REAL ESTATE ACTIVITIES (Section L) "]
["M","PROFESSIONAL, SCIENTIFIC AND TECHNICAL ACTIVITIES (Section M)"]
["M69","Legal and accounting activities"]
["M691","     Legal activities"]
["M692","     Accounting, bookkeeping and auditing activities, tax consultancy"]
["M70","Activities of head offices; management and consultancy activities "]
["M701","      Activities of head offices"]
["M702","      Management consultancy activities"]
["M71","Architecture and engineering activities, technical testing and analysis"]
["M72","Scientific research and development"]
["M73","Advertising and market research"]
["M731","     Advertising"]
["M732","     Market research and public opinion polling"]
["M74_75","Other professional, scientific and technical activities"]
["N","ADMINISTRATIVE AND SUPPORT SERVICE ACTIVITIES (Section N)"]
["N77","Rental and leasing activities"]
["N78T82","Other administrative and support services activities"]
["N79"," Of which: Travel agency, tour operator reservation service and related activities"]
["P85","EDUCATION (Section P)"]
["Q","HUMAN HEALTH AND SOCIAL WORK ACTIVITIES (Section Q)"]
["R","ARTS, ENTERTAINMENT AND RECREATION (Section R)"]
["R90","Creative, arts and entertainment activities"]
["R91","Libraries, archives, museums and other cultural activities"]
["R92_93","Sports activities and amusement and recreation activities; gambling and betting activities"]
["O_T_U","Public administration; activities of households and of extraterritorial organisations  (Section O, T, U)"]
["S","OTHER SERVICE ACTIVITIES (Section S)"]
["S94","Activities of membership organisations"]
["S95_96","Repair of computers and personal and household goods, other services"]
["GTU","TOTAL SERVICES (Sections G to U)"]
["NAL","Unallocated"]
["PRV_RE","Priv. purchase & sales of real estate"]
["FDI_T","TOTAL"]

{"sheet":"3-FLOW-TOP","index":14,"n_rows":296,"n_cols":15,"rows_kept":296,"cut":false,"hidden":false,"merged":[[0,1,0,14],[3,13,4,14],[1,0,1,1],[1,3,1,8],[1,9,1,14],[2,3,2,4],[2,5,2,6],[2,7,2,8],[2,9,2,10],[2,11,2,12],[2,13,2,14],[3,3,4,4],[3,5,4,6],[3,7,4,8],[3,9,4,10],[3,11,4,12],[5,13,5,14],[5,3,5,4],[5,7,5,8],[5,9,5,10]]}
["                        ","SUPPLEMENTAL QUESTIONNAIRE 3-FLOW-TOP                                                                                                                                                                                                                                                                                                           Direct Investment Flows cross-classified by partner country and industry classification (ISIC4) (Directional Principle)"]
["COUNTRY:",null,{"$f":"Country","v":""},"FDI INFLOWS (DI)",null,null,null,null,null,"FDI OUTFLOWS (DO)"]
["YEAR:  ",null,{"$f":"Year","v":""},"Excl. Res SPEs (ROU)\n",null,"Res SPEs (RSP)\n",null,"All Entities (ALL)",null,"Excl. Res SPEs (ROU)\n",null,"Res SPEs (RSP)\n",null,"All Entities (ALL)"]
["CURRENCY:  ",null,{"$f":"Currency","v":0},"Total Net inflows (NI)",null,"Total Net inflows (NI)",null,"Total Net inflows (NI)",null,"Total Net outflows (NO)",null,"Total Net outflows (NO)",null,"Total Net outflows (NO)"]
["UNITS:           ",null,"MILLIONS"]
["STATISTICAL UNIT:",null,{"$f":"StatUnit","v":""},"(1)",null,"(2)",null,"(3)=(1)+(2)",null,"(4)",null,"(5)",null,"(6)=(4)+(5)"]
["VALUATION:",null,{"$f":"ValuationFlows","v":""}]
["LEVEL OF COUNTERPART:",null,"Immediate"]
["ACTIVITY ALLOCATION:",null,{"$f":"CONCATENATE(\"Inward FDI: \",EcoActInflows,\"    / Outward FDI: \",EcoActOutflows)","v":"Inward FDI:     / Outward FDI: "},{"$f":"EcoActInflowsCode","v":0},"cc",{"$f":"EcoActInflowsCode","v":0},"cc",{"$f":"EcoActInflowsCode","v":0},"cc",{"$f":"EcoActOutflowsCode","v":0},"cc",{"$f":"EcoActOutflowsCode","v":0},"cc",{"$f":"EcoActOutflowsCode","v":0},"cc"]
["Ind_Top","Geo_TOP"]
["A","W0","AGRICULTURE, FORESTRY AND FISHING (Section A) "]
["A","E1","Europe"]
["A","F1","Africa"]
["A","A2","North America"]
["A","A5","Central America and Caribbean countries"]
["A","A7","South America"]
["A","S1","Asia"]
["A","O1","Oceania and Polar Regions"]
["A","R4","ASEAN"]
["A","B5","EU28"]
["A","R220","G20 excl. EU"]
["A","F98","MENA (Middle east and North Africa)"]
["A","P0","OECD"]
["A","R25","Total Official Develoment Assistance (ODA) recipients"]
["A","R251","ODA recipients -Europe"]
["A","R252","ODA recipients-Africa"]
["A","R253","ODA recipients-America"]
["A","R254","ODA recipients-Asia"]
["A","R255","ODA recipients-Oceania"]
["B","W0","MINING AND QUARRYING (Section B)"]
["B","E1","Europe"]
["B","F1","Africa"]
["B","A2","North America"]
["B","A5","Central America and Caribbean countries"]
["B","A7","South America"]
["B","S1","Asia"]
["B","O1","Oceania and Polar Regions"]
["B","R4","ASEAN"]
["B","B5","EU28"]
["B","R220","G20 excl. EU"]
["B","F98","MENA (Middle east and North Africa)"]
["B","P0","OECD"]
["B","R25","Total Official Develoment Assistance (ODA) recipients"]
["B","R251","ODA recipients -Europe"]
["B","R252","ODA recipients-Africa"]
["B","R253","ODA recipients-America"]
["B","R254","ODA recipients-Asia"]
["B","R255","ODA recipients-Oceania"]
["C","W0","MANUFACTURING (Section C)"]
["C","E1","Europe"]
["C","F1","Africa"]
["C","A2","North America"]
["C","A5","Central America and Caribbean countries"]
["C","A7","South America"]
["C","S1","Asia"]
["C","O1","Oceania and Polar Regions"]
["C","R4","ASEAN"]
["C","B5","EU28"]
["C","R220","G20 excl. EU"]
["C","F98","MENA (Middle east and North Africa)"]
["C","P0","OECD"]
["C","R25","Total Official Develoment Assistance (ODA) recipients"]
["C","R251","ODA recipients -Europe"]
["C","R252","ODA recipients-Africa"]
["C","R253","ODA recipients-America"]
["C","R254","ODA recipients-Asia"]
["C","R255","ODA recipients-Oceania"]
["D35","W0","ELECTRICITY, GAS, STEAM AND AIR CONDITIONING SUPPLY (Section D)"]
["D35","E1","Europe"]
["D35","F1","Africa"]
["D35","A2","North America"]
["D35","A5","Central America and Caribbean countries"]
["D35","A7","South America"]
["D35","S1","Asia"]
["D35","O1","Oceania and Polar Regions"]
["D35","R4","ASEAN"]
["D35","B5","EU28"]
["D35","R220","G20 excl. EU"]
["D35","F98","MENA (Middle east and North Africa)"]
["D35","P0","OECD"]
["D35","R25","Total Official Develoment Assistance (ODA) recipients"]
["D35","R251","ODA recipients -Europe"]
["D35","R252","ODA recipients-Africa"]
["D35","R253","ODA recipients-America"]
["D35","R254","ODA recipients-Asia"]
["D35","R255","ODA recipients-Oceania"]
["E","W0","WATER SUPPLY, SEWERAGE, WASTE MANAGEMENT AND REMEDIATION ACTIVITIES (Section E)"]
["E","E1","Europe"]
["E","F1","Africa"]
["E","A2","North America"]
["E","A5","Central America and Caribbean countries"]
["E","A7","South America"]
["E","S1","Asia"]
["E","O1","Oceania and Polar Regions"]
["E","R4","ASEAN"]
["E","B5","EU28"]
["E","R220","G20 excl. EU"]
["E","F98","MENA (Middle east and North Africa)"]
["E","P0","OECD"]
["E","R25","Total Official Develoment Assistance (ODA) recipients"]
["E","R251","ODA recipients -Europe"]
["E","R252","ODA recipients-Africa"]
["E","R253","ODA recipients-America"]
["E","R254","ODA recipients-Asia"]
["E","R255","ODA recipients-Oceania"]
["F","W0","CONSTRUCTION (Section F)"]
["F","E1","Europe"]
["F","F1","Africa"]
["F","A2","North America"]
["F","A5","Central America and Caribbean countries"]
["F","A7","South America"]
["F","S1","Asia"]
["F","O1","Oceania and Polar Regions"]
["F","R4","ASEAN"]
["F","B5","EU28"]
["F","R220","G20 excl. EU"]
["F","F98","MENA (Middle east and North Africa)"]
["F","P0","OECD"]
["F","R25","Total Official Develoment Assistance (ODA) recipients"]
["F","R251","ODA recipients -Europe"]
["F","R252","ODA recipients-Africa"]
["F","R253","ODA recipients-America"]
["F","R254","ODA recipients-Asia"]
["F","R255","ODA recipients-Oceania"]
["G","W0","WHOLESALE AND RETAILTRADE; REPAIR OF MOTOR VEHICLES AND MOTOR CYCLES (Section G)"]
["G","E1","Europe"]
["G","F1","Africa"]
["G","A2","North America"]
["G","A5","Central America and Caribbean countries"]
["G","A7","South America"]
["G","S1","Asia"]
["G","O1","Oceania and Polar Regions"]
["G","R4","ASEAN"]
["G","B5","EU28"]
["G","R220","G20 excl. EU"]
["G","F98","MENA (Middle east and North Africa)"]
["G","P0","OECD"]
["G","R25","Total Official Develoment Assistance (ODA) recipients"]
["G","R251","ODA recipients -Europe"]
["G","R252","ODA recipients-Africa"]
["G","R253","ODA recipients-America"]
["G","R254","ODA recipients-Asia"]
["G","R255","ODA recipients-Oceania"]
["H","W0","TRANSPORTATION AND STORAGE (Section H)"]
["H","E1","Europe"]
["H","F1","Africa"]
["H","A2","North America"]
["H","A5","Central America and Caribbean countries"]
["H","A7","South America"]
["H","S1","Asia"]
["H","O1","Oceania and Polar Regions"]
["H","R4","ASEAN"]
["H","B5","EU28"]
["H","R220","G20 excl. EU"]
["H","F98","MENA (Middle east and North Africa)"]
["H","P0","OECD"]
["H","R25","Total Official Develoment Assistance (ODA) recipients"]
["H","R251","ODA recipients -Europe"]
["H","R252","ODA recipients-Africa"]
["H","R253","ODA recipients-America"]
["H","R254","ODA recipients-Asia"]
["H","R255","ODA recipients-Oceania"]
["I","W0","ACCOMODATION AND FOOD SERVICE ACTIVITIES (Section I)"]
["I","E1","Europe"]
["I","F1","Africa"]
["I","A2","North America"]
["I","A5","Central America and Caribbean countries"]
["I","A7","South America"]
["I","S1","Asia"]
["I","O1","Oceania and Polar Regions"]
["I","R4","ASEAN"]
["I","B5","EU28"]
["I","R220","G20 excl. EU"]
["I","F98","MENA (Middle east and North Africa)"]
["I","P0","OECD"]
["I","R25","Total Official Develoment Assistance (ODA) recipients"]
["I","R251","ODA recipients -Europe"]
["I","R252","ODA recipients-Africa"]
["I","R253","ODA recipients-America"]
["I","R254","ODA recipients-Asia"]
["I","R255","ODA recipients-Oceania"]
["J","W0","INFORMATION AND COMMUNICATION (Section J) "]
["J","E1","Europe"]
["J","F1","Africa"]
["J","A2","North America"]
["J","A5","Central America and Caribbean countries"]
["J","A7","South America"]
["J","S1","Asia"]
["J","O1","Oceania and Polar Regions"]
["J","R4","ASEAN"]
["J","B5","EU28"]
["J","R220","G20 excl. EU"]
["J","F98","MENA (Middle east and North Africa)"]
["J","P0","OECD"]
["J","R25","Total Official Develoment Assistance (ODA) recipients"]
["J","R251","ODA recipients -Europe"]
["J","R252","ODA recipients-Africa"]
["J","R253","ODA recipients-America"]
["J","R254","ODA recipients-Asia"]
["J","R255","ODA recipients-Oceania"]
["K","W0","FINANCIAL AND INSURANCE ACTIVITIES (Section K) "]
["K","E1","Europe"]
["K","F1","Africa"]
["K","A2","North America"]
["K","A5","Central America and Caribbean countries"]
["K","A7","South America"]
["K","S1","Asia"]
["K","O1","Oceania and Polar Regions"]
["K","R4","ASEAN"]
["K","B5","EU28"]
["K","R220","G20 excl. EU"]
["K","F98","MENA (Middle east and North Africa)"]
["K","P0","OECD"]
["K","R25","Total Official Develoment Assistance (ODA) recipients"]
["K","R251","ODA recipients -Europe"]
["K","R252","ODA recipients-Africa"]
["K","R253","ODA recipients-America"]
["K","R254","ODA recipients-Asia"]
["K","R255","ODA recipients-Oceania"]
["M","W0","PROFESSIONAL, SCIENTIFIC AND TECHNICAL ACTIVITIES (Section M)"]
["M","E1","Europe"]
["M","F1","Africa"]
["M","A2","North America"]
["M","A5","Central America and Caribbean countries"]
["M","A7","South America"]
["M","S1","Asia"]
["M","O1","Oceania and Polar Regions"]
["M","R4","ASEAN"]
["M","B5","EU28"]
["M","R220","G20 excl. EU"]
["M","F98","MENA (Middle east and North Africa)"]
["M","P0","OECD"]
["M","R25","Total Official Develoment Assistance (ODA) recipients"]
["M","R251","ODA recipients -Europe"]
["M","R252","ODA recipients-Africa"]
["M","R253","ODA recipients-America"]
["M","R254","ODA recipients-Asia"]
["M","R255","ODA recipients-Oceania"]
["R","W0","ARTS, ENTERTAINMENT AND RECREATION (Section R)"]
["R","E1","Europe"]
["R","F1","Africa"]
["R","A2","North America"]
["R","A5","Central America and Caribbean countries"]
["R","A7","South America"]
["R","S1","Asia"]
["R","O1","Oceania and Polar Regions"]
["R","R4","ASEAN"]
["R","B5","EU28"]
["R","R220","G20 excl. EU"]
["R","F98","MENA (Middle east and North Africa)"]
["R","P0","OECD"]
["R","R25","Total Official Develoment Assistance (ODA) recipients"]
["R","R251","ODA recipients -Europe"]
["R","R252","ODA recipients-Africa"]
["R","R253","ODA recipients-America"]
["R","R254","ODA recipients-Asia"]
["R","R255","ODA recipients-Oceania"]
["GTU","W0","TOTAL SERVICES (Sections G to U)"]
["GTU","E1","Europe"]
["GTU","F1","Africa"]
["GTU","A2","North America"]
["GTU","A5","Central America and Caribbean countries"]
["GTU","A7","South America"]
["GTU","S1","Asia"]
["GTU","O1","Oceania and Polar Regions"]
["GTU","R4","ASEAN"]
["GTU","B5","EU28"]
["GTU","R220","G20 excl. EU"]
["GTU","F98","MENA (Middle east and North Africa)"]
["GTU","P0","OECD"]
["GTU","R25","Total Official Develoment Assistance (ODA) recipients"]
["GTU","R251","ODA recipients -Europe"]
["GTU","R252","ODA recipients-Africa"]
["GTU","R253","ODA recipients-America"]
["GTU","R254","ODA recipients-Asia"]
["GTU","R255","ODA recipients-Oceania"]
["Memo:"]
["FDI_T","W0","TOTAL"]
["FDI_T","E1","Europe"]
["FDI_T","F1","Africa"]
["FDI_T","A2","North America"]
["FDI_T","A5","Central America and Caribbean countries"]
["FDI_T","A7","South America"]
["FDI_T","S1","Asia"]
["FDI_T","O1","Oceania and Polar Regions"]
["FDI_T","R4","ASEAN"]
["FDI_T","B5","EU28"]
["FDI_T","R220","G20 excl. EU"]
["FDI_T","F98","MENA (Middle east and North Africa)"]
["FDI_T","P0","OECD"]
["FDI_T","R25","Total Official Develoment Assistance (ODA) recipients"]
["FDI_T","R251","ODA recipients -Europe"]
["FDI_T","R252","ODA recipients-Africa"]
["FDI_T","R253","ODA recipients-America"]
["FDI_T","R254","ODA recipients-Asia"]
["FDI_T","R255","ODA recipients-Oceania"]

{"sheet":"3-INC-GEO-XSPE","index":15,"n_rows":300,"n_cols":22,"rows_kept":300,"cut":false,"hidden":false,"merged":[[3,18,3,19],[3,20,3,21],[3,10,3,11],[3,12,3,13],[0,1,0,28],[1,2,1,13],[2,2,2,5],[2,6,2,9],[2,10,2,13],[2,18,2,21],[3,2,3,3],[3,4,3,5],[3,6,3,7],[3,8,3,9],[2,14,2,17],[3,14,3,15],[3,16,3,17]]}
["                        ","SUPPLEMENTAL QUESTIONNAIRE 3-INC-GEO-XSPE                                                                                                                                                                                                                                                                                                                                                                                                    Foreign Direct Investment Income excluding resident SPEs and looking through non resident SPEs by geographical allocation (Directional Principle)                                                                                                                                                                                                                                                                                            Total income on inward and ouward FDI series should be reported with the full geographical breakdown. Items marked with * are to be avoided in priority when flagging data for secondary confidentiality. Also, when secondary confidentiality process becomes too burdensome to report the full geographical breakdown for series of FDI instruments, those priority items are to be reported in priority while other items can be flagged as non publishable."]
["COUNTRY:",{"$f":"Country","v":""},"INCOME ON EQUITY "]
["YEAR:  ",{"$f":"Year","v":""},"DIVIDENDS (D42S)",null,null,null,"REINVESTED EARNINGS (D43S)",null,null,null,"TOTAL INCOME ON EQUITY (D4S)",null,null,null,"INCOME ON DEBT (D4Q)",null,null,null,"TOTAL FDI INCOME (D4P)"]
["CURRENCY:  ",{"$f":"Currency","v":0},"Income on outward FDI",null,"Income on inward FDI",null,"Income on outward FDI",null,"Income on inward FDI",null,"Income on outward FDI",null,"Income on inward FDI",null,"Income on outward FDI",null,"Income on inward FDI",null,"Income on outward FDI",null,"Income on inward FDI"]
["UNITS:           ","MILLIONS","IO",null,"II",null,"IO",null,"II",null,"IO",null,"II",null,"IO",null,"II",null,"IO",null,"II"]
["STATISTICAL UNIT:",{"$f":"StatUnit","v":""},"(1)",null,"(2)",null,"(4)            ",null,"(5)                 ",null,"(7)                                        (1+4)",null,"(8)                                (2+5)",null,"(10)                 ",null,"(11)                 ",null,"(13)                                      (7+10)",null,"(14)                                 (8+11)"]
["VALUATION:",{"$f":"ValuationFlows","v":""}]
["LEVEL OF COUNTERPART:","Immediate",null,"cc",null,"cc",null,"cc",null,"cc",null,"cc",null,"cc",null,"cc",null,"cc",null,"cc",null,"cc"]
["W0","WORLD*"]
["P8","World Excluding OECD"]
["W190","World not allocated"]
["E1","EUROPE "]
["E1X","Europe Excluding OECD countries"]
["E19","Europe not allocated"]
["AL"," Albania"]
["AD"," Andorra"]
["AT"," Austria*"]
["BY"," Belarus"]
["BE"," Belgium*"]
["BA"," Bosnia and Herzegovina"]
["BG"," Bulgaria*"]
["HR"," Croatia"]
["CY"," Cyprus*,1"]
["CZ"," Czech Republic*"]
["DK"," Denmark*"]
["EE"," Estonia*"]
["FO"," Faroe Islands"]
["FI"," Finland*"]
["FR"," France*"]
["DE"," Germany*"]
["GI"," Gibraltar"]
["GR"," Greece*"]
["GG"," Guernsey"]
["VA"," Holy see (Vatican City State)"]
["HU"," Hungary*"]
["IS"," Iceland*"]
["IE"," Ireland*"]
["IM"," Isle of Man"]
["IT"," Italy*"]
["JE"," Jersey"]
["XK","Kosovo"]
["LV"," Latvia*"]
["LI"," Liechtenstein"]
["LT"," Lithuania*"]
["LU"," Luxembourg*"]
["MK"," Macedonia, the Former Yugoslav Republic of "]
["MT"," Malta"]
["MD"," Moldova"]
["ME"," Montenegro"]
["NL"," Netherlands*"]
["NO"," Norway*"]
["PL"," Poland*"]
["PT"," Portugal*"]
["RO"," Romania*"]
["RU"," Russia*"]
["SM"," San Marino"]
["RS"," Serbia"]
["SK"," Slovakia*"]
["SI"," Slovenia*"]
["ES"," Spain*"]
["SE"," Sweden*"]
["CH"," Switzerland* "]
["TR","Turkey*"]
["UA","Ukraine*"]
["GB"," United Kingdom*"]
["R1","Belgum-Luxembourg (until end 2002)"]
["CS","Serbia and Montenegro (until end 2006)"]
["F1","AFRICA* "]
["F19","Africa not allocated"]
["F4","   Northern Africa"]
["DZ","Algeria*"]
["EG","Egypt*"]
["LY","Libyan Arab Jamahiriya*"]
["MA","Morocco*"]
["TN","Tunisia*"]
["F2"," Other African countries"]
["AO"," Angola"]
["BJ"," Benin"]
["BW"," Botswana"]
["IO"," British Indian Ocean Territory"]
["BF"," Burkina Faso"]
["BI"," Burundi"]
["CM"," Cameroon"]
["CV"," Cape Verde"]
["CF"," Central African Republic"]
["TD"," Chad"]
["KM"," Comoros"]
["CG"," Congo"]
["CI"," Côte d'Ivoire"]
["CD"," Congo, the Democratic Republic of the "]
["DJ"," Djibouti"]
["GQ"," Equatorial Guinea"]
["ER"," Eritrea"]
["ET"," Ethiopia"]
["GA"," Gabon"]
["GM"," Gambia"]
["GH"," Ghana"]
["GN"," Guinea"]
["GW"," Guinea-Bissau"]
["KE"," Kenya"]
["LS"," Lesotho"]
["LR"," Liberia"]
["MG"," Madagascar"]
["MW"," Malawi"]
["ML"," Mali"]
["MR"," Mauritania"]
["MU"," Mauritius"]
["MZ"," Mozambique"]
["NA"," Namibia"]
["NE"," Niger"]
["NG"," Nigeria*"]
["RW"," Rwanda"]
["SH"," St Helena"]
["ST"," Sao Tome & Principe"]
["SN"," Senegal"]
["SC"," Seychelles"]
["SL"," Sierra Leone"]
["SO"," Somalia"]
["ZA"," South Africa*"]
["SD","Sudan"]
["SS","South Sudan"]
["SZ"," Swaziland"]
["TZ"," Tanzania, United Republic of"]
["TG"," Togo"]
["UG"," Uganda"]
["ZM"," Zambia"]
["ZW","Zimbabwe"]
["A1","AMERICA "]
["A1X","America Excluding OECD countries"]
["A19","America not allocated"]
["A2","   Northern America"]
["A2X","   Northern America Excluding OECD countries"]
["CA","      Canada*"]
["GL","      Greenland"]
["US","      United States*"]
["A5","   Central America and Caribbean countries"]
["A5X","Central and Caribbean countries excl. OECD countries"]
["AI","      Anguilla"]
["AG","      Antigua and Barbuda"]
["AW","      Aruba"]
["BS","      Bahamas"]
["BB","      Barbados"]
["BZ","      Belize"]
["BM","      Bermuda"]
["BQ","      Bonaire, Saint Eustatius and Saba (from 2011 onwards)"]
["KY","      Cayman Islands"]
["CR","      Costa Rica*"]
["CU","      Cuba"]
["CW","      Curaçao (from 2011 onwards)"]
["DM","      Dominica"]
["DO","      Dominican Republic"]
["SV","      El Salvador"]
["GD","      Grenada"]
["GT","      Guatemala"]
["HT","      Haiti"]
["HN","      Honduras"]
["JM","      Jamaica"]
["MX","      Mexico* "]
["MS","      Montserrat"]
["NI","      Nicaragua"]
["PA","      Panama*"]
["KN","      Saint Kitts and Nevis"]
["LC","      Saint Lucia"]
["VC","      Saint Vincent and the Grenadines"]
["SX","      Sint Maarten (from 2011 onwards)"]
["TT","      Trinidad and Tobago"]
["TC","      Turks and Caicos Islands"]
["VG","      Virgin Islands, British"]
["VI","      Virgin Islands, U.S."]
["AN","      Netherlands Antilles (until end 2010)"]
["A7","   South America"]
["A7X","    South America excluding OECD countries"]
["AR","      Argentina*"]
["BO","      Bolivia"]
["BR","      Brazil*"]
["CL","      Chile*"]
["CO","      Colombia*"]
["EC","      Ecuador"]
["FK","      Falkland Islands (Malvinas)"]
["GY","      Guyana"]
["PY","      Paraguay"]
["PE","      Peru*"]
["SR","      Suriname"]
["UY","      Uruguay*"]
["VE","      Venezuela*"]
["S1","ASIA "]
["S1X","Asia Excluding OECD countries"]
["S19","Asia not allocated"]
["S3","   Near and Middle East countries*"]
["S3X","   Near and Middle East excluding OECD"]
["S35","      Gulf Arabian countries"]
["BH","         Bahrain"]
["IQ","         Iraq"]
["KW","         Kuwait*"]
["OM","         Oman"]
["QA","         Qatar"]
["SA","         Saudi Arabia*"]
["AE","         United Arab Emirates*"]
["YE","         Yemen"]
["S37","      Other Near and Middle East countries"]
["S37X","      Other Near and Middle East excluding OECD countries"]
["AM","         Armenia"]
["AZ","         Azerbaijan"]
["GE","         Georgia"]
["IL","         Israel*"]
["JO","         Jordan*"]
["LB","         Lebanon"]
["PS","         Palestinian Territory, Occupied"]
["SY","         Syrian Arab Republic"]
["S6","Other Asian countries"]
["S6X","Other Asian countries excluding OECD countries"]
["AF","      Afghanistan"]
["BD","      Bangladesh"]
["BT","      Bhutan"]
["BN","      Brunei Darussalam"]
["KH","      Cambodia (Kampuchea)"]
["CN","      China*"]
["HK","      Hong Kong, China*"]
["IN","      India*"]
["ID","      Indonesia*"]
["IR","      Iran, Islamic Republic of"]
["JP","      Japan*"]
["KZ","      Kazakhstan"]
["KP","      Korea, Democratic People's Republic of (North Korea)"]
["KR","      Korea, Republic of (South Korea)*"]
["KG","      Kyrgyzstan"]
["LA","      Lao People's Democratic Republic"]
["MO","      Macao"]
["MY","      Malaysia*"]
["MV","      Maldives"]
["MN","      Mongolia"]
["MM","      Myanmar"]
["NP","      Nepal"]
["PK","      Pakistan"]
["PH","      Philippines*"]
["SG","      Singapore*"]
["LK","      Sri Lanka"]
["TW","      Chinese Taipei"]
["TJ","      Tajikistan"]
["TH","      Thailand*"]
["TL","      Timor-Leste"]
["TM","      Turkmenistan"]
["UZ","      Uzbekistan"]
["VN","      Viet Nam*"]
["O1","AUSTRALIA, OCEANIA & POLAR REGIONS"]
["O1X0","Oceania & Polar regions  Excluding OECD countries"]
["O19","Oceania & Polar regions not allocated"]
["AS","American Samoa"]
["AQ","Antarctica"]
["AU","Australia*"]
["BV","Bouvet Island"]
["CX","Christmas Islands"]
["CC","Cocos Islands"]
["CK","Cook Islands"]
["FJ","Fiji"]
["PF","French Polynesia"]
["TF","French Southern Territories"]
["GU","Guam"]
["HM","Heard islands and Mc Donald islands"]
["KI","Kiribati"]
["MH","Marshall Islands"]
["FM","Micronesia, Federated States of"]
["NR","Nauru"]
["NC","New Caledonia"]
["NZ","New Zealand*"]
["NU","Niue"]
["NF","Norfolk Island"]
["MP","Northern Mariana Islands"]
["PW","Palau"]
["PG","Papua New Guinea"]
["PN","Pitcairn"]
["WS","Samoa"]
["SB","Solomon Islands"]
["GS","South Georgia  and the South Sandwich Islands"]
["TK","Tokelau"]
["TO","Tonga"]
["TV","Tuvalu"]
["UM","US Minor Outllying islands"]
["VU","Vanuatu"]
["WF","Wallis and Futuna"]
["ECONOMIC AND MONETARY ZONES"]
["P0","OECD*"]
["B5","EU28* (from 2013)"]
["B4","EU27* (for 2007-2012)"]
["B3","EU25* (for 2004-2006 only)"]
["B2","EU15* (until 2003 only)"]
["R4","ASEAN*"]
["R220","G20 countries*"]
["R221","G20 OECD countries*"]
["R222","G20 Non-OECD ctr.*"]
["F98","MENA (Middle East and North Africa countries)*"]
["R25","Total Official Development Assistance (ODA) recipients*"]
["R251","ODA recipients -Europe*"]
["R252","ODA recipients-Africa*"]
["R253","ODA recipients-America*"]
["R254","ODA recipients-Asia*"]
["R255","ODA recipients-Oceania*"]
["[1] Footnote by Turkey:\n The information in this document with reference to “Cyprus” relates to the southern part of the Island. There is no single authority representing both Turkish and Greek Cypriot people on the Island. Turkey recognizes the Turkish Republic of Northern Cyprus (TRNC). Until a lasting and equitable solution is found within the context of United Nations, Turkey shall preserve its position concerning the “Cyprus” issue. \n Footnote by all the European Union Member States of the OECD and the European Union:\n The Republic of Cyprus is recognized by all members of the United Nations with the exception of Turkey. The information in this document relates to the area under the effective control of the Government of the Republic of Cyprus.\nFootnote by Turkey:\n The information in this document with reference to “Cyprus” relates to the southern part of the Island. There is no single authority representing both Turkish and Greek Cypriot people on the Island. Turkey recognizes the Turkish Republic of Northern Cyprus (TRNC). Until a lasting and equitable solution is found within the context of United Nations, Turkey shall preserve its position concerning the “Cyprus” issue. \n Footnote by all the European Union Member States of the OECD and the European Union:\n The Republic of Cyprus is recognized by all members of the United Nations with the exception of Turkey. The information in this document relates to the area under the effective control of the Government of the Republic of Cyprus.\n"]
[]
["* Priority items to avoid when flagging data for secondary confidentiality. If the secondary confidentiality checking exercise is too burdensome for reporting the full GEO breakdown for FDI instruments and for series of SPEs/excluding resident SPE, the priority items should be reported while the other items can be flagged as non-publishable, unless they play a significant role in total FDI. "]

{"sheet":"3-INC-IND-XSPE","index":16,"n_rows":94,"n_cols":22,"rows_kept":94,"cut":false,"hidden":false,"merged":[[3,18,3,19],[3,20,3,21],[3,10,3,11],[3,12,3,13],[0,1,0,20],[1,2,1,13],[2,2,2,5],[2,6,2,9],[2,10,2,13],[2,18,2,21],[3,2,3,3],[3,4,3,5],[3,6,3,7],[3,8,3,9],[2,14,2,17],[3,14,3,15],[3,16,3,17]]}
["                        ","SUPPLEMENTAL QUESTIONNAIRE 3-INC-IND-XSPE                                                                                                                                                                                                                                                                                                                                                                                                                                                                           Foreign Direct Investment INCOME excluding resident SPEs and looking through non resident SPEs by industry classification (ISIC4)   (Directional Principle)"]
["COUNTRY:",{"$f":"Country","v":""},"INCOME ON EQUITY "]
["YEAR:  ",{"$f":"Year","v":""},"DIVIDENDS (D42S)",null,null,null,"REINVESTED EARNINGS (D43S)",null,null,null,"TOTAL INCOME ON EQUITY (D4S)",null,null,null,"INCOME ON DEBT (D4Q)",null,null,null,"TOTAL FDI INCOME (D4P)"]
["CURRENCY:  ",{"$f":"Currency","v":0},"Income on outward FDI",null,"Income on inward FDI",null,"Income on outward FDI",null,"Income on inward FDI",null,"Income on outward FDI",null,"Income on inward FDI",null,"Income on outward FDI",null,"Income on inward FDI",null,"Income on outward FDI",null,"Income on inward FDI"]
["UNITS:           ","MILLIONS","IO",null,"II",null,"IO",null,"II",null,"IO",null,"II",null,"IO",null,"II",null,"IO",null,"II"]
["STATISTICAL UNIT:",{"$f":"StatUnit","v":""},"(1)",null,"(2)",null,"(4)            ",null,"(5)                 ",null,"(7)                               (1+4)",null,"(8)                                 (2+5)",null,"(10)                 ",null,"(11)                 ",null,"(13)                                       (7+10)",null,"(14)                               (8+11)"]
["VALUATION:",{"$f":"ValuationFlows","v":""}]
["ACTIVITY ALLOCATION:",{"$f":"CONCATENATE(\"OUT: \",EcoActOutflows,\"    / IN: \",EcoActInflows)","v":"OUT:     / IN: "},{"$f":"EcoActOutflowsCode","v":0},"cc",{"$f":"EcoActInflowsCode","v":0},"cc",{"$f":"EcoActOutflowsCode","v":0},"cc",{"$f":"EcoActInflowsCode","v":0},"cc",{"$f":"EcoActOutflowsCode","v":0},"cc",{"$f":"EcoActInflowsCode","v":0},"cc",{"$f":"EcoActOutflowsCode","v":0},"cc",{"$f":"EcoActInflowsCode","v":0},"cc",{"$f":"EcoActOutflowsCode","v":0},"cc",{"$f":"EcoActInflowsCode","v":0},"cc"]
["A","AGRICULTURE, FORESTRY AND FISHING (Section A) "]
["B","MINING AND QUARRYING (Section B)"]
["B06_09","Of which:      Extraction of crude petroleum and gas; mining support services"]
["A_B","TOTAL PRIMARY SECTOR (Sections A and B)"]
["C","MANUFACTURING (Section C) "]
["C10T12","Food products, beverage and tobacco products"]
["C13_14","Textiles and wearing apparel"]
["C16T18","Manufacture of wood, paper, and their products; printing and reproduction or recorded media"]
["C13T18X15","[TOTAL textiles + wood activities ](C13_14+C16T18)"]
["C19","Coke and refined petroleum products"]
["C20","Manufacture of chemicals and chemical products"]
["C21","Pharmaceuticals products and preparation"]
["C22","Rubber and plastic products"]
["C19T22","[TOTAL petroleum, chemical, pharmaceuticals, rubber and plastic products] (C19+C20+C21+C22) "]
["C24_25","Basic metal and fabricated metal products"]
["C26","Computer, electronic and optical products"]
["C262"," Of which: Computers and peripheral equipment"]
["C263_264","      Communication equipment and consumer electronics"]
["C265_266","       Instrument and appliances for measuring, testing and navigation; watches and clock; irradiation, electromedical and electrotherapeutic equipment"]
["C28","Machinery and equipment n. e. c"]
["C24T28X27","[TOTAL metal, computer and machinery] (C24_C25+C26+C28)"]
["C29","Motor vehicles, trailers and semi-trailers"]
["C30","Other transport equipments"]
["C303","Of which:   Manufacture of aircraft and spacecraft"]
["C29_30","[TOTAL vehicles and other transport equipment] (C29+C30)"]
["C_OTH","Other manufacturing"]
["D35","ELECTRICITY, GAS, STEAM AND AIR CONDITIONING SUPPLY (Section D)"]
["E","WATER SUPPLY, SEWERAGE, WASTE MANAGEMENT AND REMEDIATION ACTIVITIES (Section E)"]
["E36","Water collection, treatment and supply"]
["E37T39","Sewerage, waste management and remediation activities"]
["F","CONSTRUCTION (Section F)"]
["G","WHOLESALE AND RETAILTRADE; REPAIR OF MOTOR VEHICLES AND MOTOR CYCLES (Section G)"]
["G45","Wholesale and retail trade and repair of motor vehicles and motorcycles"]
["G46","Wholesale trade, except of motor vehicles and motor cycles"]
["G47","Retail trade, except of motor vehicles and motor cycles"]
["H","TRANSPORTATION AND STORAGE (Section H)"]
["H49","Land transport and transport via pipelines"]
["H50","Water transport"]
["H51","Air transport"]
["H52","Warehousing and support activities for transportation"]
["HX53","[TOTAL transport and storage] (H49+H50+H51+H52)"]
["H53","Post and courier activities"]
["I","ACCOMODATION AND FOOD SERVICE ACTIVITIES (Section I)"]
["J","INFORMATION AND COMMUNICATION (Section J) "]
["J59_60","Motion picture, video and TV programme production, sound recording and music publishing activities; programming and broadcasting activities"]
["J61","Telecommunications"]
["J58_62_63","Other information and communication activities"]
["K","FINANCIAL AND INSURANCE ACTIVITIES (Section K) "]
["K64","Financial services activities, except insurance and pension funding"]
["K641","Of which:   Monetary intermediation"]
["K642","                        Activities of holding companies"]
["K643","                       Trusts, funds and similar financial entities"]
["K65","Insurance, reinsurance and pension funding, except compulsory social security"]
["K66","Activities auxiliary to financial services and insurance activities"]
["L","REAL ESTATE ACTIVITIES (Section L) "]
["M","PROFESSIONAL, SCIENTIFIC AND TECHNICAL ACTIVITIES (Section M)"]
["M69","Legal and accounting activities"]
["M691","     Legal activities"]
["M692","     Accounting, bookkeeping and auditing activities, tax consultancy"]
["M70","Activities of head offices; management and consultancy activities "]
["M701","      Activities of head offices"]
["M702","      Management consultancy activities"]
["M71","Architecture and engineering activities, technical testing and analysis"]
["M72","Scientific research and development"]
["M73","Advertising and market research"]
["M731","     Advertising"]
["M732","     Market research and public opinion polling"]
["M74_75","Other professional, scientific and technical activities"]
["N","ADMINISTRATIVE AND SUPPORT SERVICE ACTIVITIES (Section N)"]
["N77","Rental and leasing activities"]
["N78T82","Other administrative and support services activities"]
["N79"," Of which: Travel agency, tour operator reservation service and related activities"]
["P85","EDUCATION (Section P)"]
["Q","HUMAN HEALTH AND SOCIAL WORK ACTIVITIES (Section Q)"]
["R","ARTS, ENTERTAINMENT AND RECREATION (Section R)"]
["R90","Creative, arts and entertainment activities"]
["R91","Libraries, archives, museums and other cultural activities"]
["R92_93","Sports activities and amusement and recreation activities; gambling and betting activities"]
["O_T_U","Public administration; activities of households and of extraterritorial organisations  (Section O, T, U)"]
["S","OTHER SERVICE ACTIVITIES (Section S)"]
["S94","Activities of membership organisations"]
["S95_96","Repair of computers and personal and household goods, other services"]
["GTU","TOTAL SERVICES (Sections G to U)"]
["NAL","Unallocated"]
["PRV_RE","Priv. purchase & sales of real estate"]
["FDI_T","TOTAL"]

{"sheet":"3-INC-TOP","index":17,"n_rows":296,"n_cols":15,"rows_kept":296,"cut":false,"hidden":false,"merged":[[0,1,0,14],[1,0,1,1],[1,3,1,8],[1,9,1,14],[5,3,5,4],[5,7,5,8],[5,9,5,10],[5,13,5,14],[2,3,2,4],[2,5,2,6],[2,7,2,8],[2,9,2,10],[2,11,2,12],[2,13,2,14]]}
["                        ","SUPPLEMENTAL QUESTIONNAIRE 3-INC-TOP                                                                                                                                                                                                                                                                                                                                                                              Direct Investment income cross-classified by partner country and industry classification (ISIC4) (Directional Principle)"]
["COUNTRY:",null,{"$f":"Country","v":""},"Income on outward FDI (IO)",null,null,null,null,null,"Income on inward FDI (II)"]
["YEAR:  ",null,{"$f":"Year","v":""},"Excl. Res SPEs (ROU)\n",null,"Res SPEs (RSP)\n",null,"All Entities (ALL)\n",null,"Excl. Res SPEs (ROU)\n",null,"Res SPEs (RSP)\n",null,"All Entities (ALL)\n"]
["CURRENCY:  ",null,{"$f":"Currency","v":0}]
["UNITS:           ",null,"MILLIONS"]
["STATISTICAL UNIT:",null,{"$f":"StatUnit","v":""},"(1)",null,"(2)",null,"(3)=(1)+(2)",null,"(4)",null,"(5)",null,"(6)=(4)+(5)"]
["VALUATION:",null,{"$f":"ValuationFlows","v":""}]
["LEVEL OF COUNTERPART:",null,"Immediate"]
["ACTIVITY ALLOCATION:",null,{"$f":"CONCATENATE(\"OUT: \",EcoActOutflows,\"    / IN: \",EcoActInflows)","v":"OUT:     / IN: "},{"$f":"EcoActOutflowsCode","v":0},"cc",{"$f":"EcoActOutflowsCode","v":0},"cc",{"$f":"EcoActOutflowsCode","v":0},"cc",{"$f":"EcoActInflowsCode","v":0},"cc",{"$f":"EcoActInflowsCode","v":0},"cc",{"$f":"EcoActInflowsCode","v":0},"cc"]
["Ind_Top","Geo_TOP"]
["A","W0","AGRICULTURE, FORESTRY AND FISHING (Section A) "]
["A","E1","Europe"]
["A","F1","Africa"]
["A","A2","North America"]
["A","A5","Central America and Caribbean countries"]
["A","A7","South America"]
["A","S1","Asia"]
["A","O1","Oceania and Polar Regions"]
["A","R4","ASEAN"]
["A","B5","EU28"]
["A","R220","G20 excl. EU"]
["A","F98","MENA (Middle east and North Africa)"]
["A","P0","OECD"]
["A","R25","Total Official Develoment Assistance (ODA) recipients"]
["A","R251","ODA recipients -Europe"]
["A","R252","ODA recipients-Africa"]
["A","R253","ODA recipients-America"]
["A","R254","ODA recipients-Asia"]
["A","R255","ODA recipients-Oceania"]
["B","W0","MINING AND QUARRYING (Section B)"]
["B","E1","Europe"]
["B","F1","Africa"]
["B","A2","North America"]
["B","A5","Central America and Caribbean countries"]
["B","A7","South America"]
["B","S1","Asia"]
["B","O1","Oceania and Polar Regions"]
["B","R4","ASEAN"]
["B","B5","EU28"]
["B","R220","G20 excl. EU"]
["B","F98","MENA (Middle east and North Africa)"]
["B","P0","OECD"]
["B","R25","Total Official Develoment Assistance (ODA) recipients"]
["B","R251","ODA recipients -Europe"]
["B","R252","ODA recipients-Africa"]
["B","R253","ODA recipients-America"]
["B","R254","ODA recipients-Asia"]
["B","R255","ODA recipients-Oceania"]
["C","W0","MANUFACTURING (Section C)"]
["C","E1","Europe"]
["C","F1","Africa"]
["C","A2","North America"]
["C","A5","Central America and Caribbean countries"]
["C","A7","South America"]
["C","S1","Asia"]
["C","O1","Oceania and Polar Regions"]
["C","R4","ASEAN"]
["C","B5","EU28"]
["C","R220","G20 excl. EU"]
["C","F98","MENA (Middle east and North Africa)"]
["C","P0","OECD"]
["C","R25","Total Official Develoment Assistance (ODA) recipients"]
["C","R251","ODA recipients -Europe"]
["C","R252","ODA recipients-Africa"]
["C","R253","ODA recipients-America"]
["C","R254","ODA recipients-Asia"]
["C","R255","ODA recipients-Oceania"]
["D35","W0","ELECTRICITY, GAS, STEAM AND AIR CONDITIONING SUPPLY (Section D)"]
["D35","E1","Europe"]
["D35","F1","Africa"]
["D35","A2","North America"]
["D35","A5","Central America and Caribbean countries"]
["D35","A7","South America"]
["D35","S1","Asia"]
["D35","O1","Oceania and Polar Regions"]
["D35","R4","ASEAN"]
["D35","B5","EU28"]
["D35","R220","G20 excl. EU"]
["D35","F98","MENA (Middle east and North Africa)"]
["D35","P0","OECD"]
["D35","R25","Total Official Develoment Assistance (ODA) recipients"]
["D35","R251","ODA recipients -Europe"]
["D35","R252","ODA recipients-Africa"]
["D35","R253","ODA recipients-America"]
["D35","R254","ODA recipients-Asia"]
["D35","R255","ODA recipients-Oceania"]
["E","W0","WATER SUPPLY, SEWERAGE, WASTE MANAGEMENT AND REMEDIATION ACTIVITIES (Section E)"]
["E","E1","Europe"]
["E","F1","Africa"]
["E","A2","North America"]
["E","A5","Central America and Caribbean countries"]
["E","A7","South America"]
["E","S1","Asia"]
["E","O1","Oceania and Polar Regions"]
["E","R4","ASEAN"]
["E","B5","EU28"]
["E","R220","G20 excl. EU"]
["E","F98","MENA (Middle east and North Africa)"]
["E","P0","OECD"]
["E","R25","Total Official Develoment Assistance (ODA) recipients"]
["E","R251","ODA recipients -Europe"]
["E","R252","ODA recipients-Africa"]
["E","R253","ODA recipients-America"]
["E","R254","ODA recipients-Asia"]
["E","R255","ODA recipients-Oceania"]
["F","W0","CONSTRUCTION (Section F)"]
["F","E1","Europe"]
["F","F1","Africa"]
["F","A2","North America"]
["F","A5","Central America and Caribbean countries"]
["F","A7","South America"]
["F","S1","Asia"]
["F","O1","Oceania and Polar Regions"]
["F","R4","ASEAN"]
["F","B5","EU28"]
["F","R220","G20 excl. EU"]
["F","F98","MENA (Middle east and North Africa)"]
["F","P0","OECD"]
["F","R25","Total Official Develoment Assistance (ODA) recipients"]
["F","R251","ODA recipients -Europe"]
["F","R252","ODA recipients-Africa"]
["F","R253","ODA recipients-America"]
["F","R254","ODA recipients-Asia"]
["F","R255","ODA recipients-Oceania"]
["G","W0","WHOLESALE AND RETAILTRADE; REPAIR OF MOTOR VEHICLES AND MOTOR CYCLES (Section G)"]
["G","E1","Europe"]
["G","F1","Africa"]
["G","A2","North America"]
["G","A5","Central America and Caribbean countries"]
["G","A7","South America"]
["G","S1","Asia"]
["G","O1","Oceania and Polar Regions"]
["G","R4","ASEAN"]
["G","B5","EU28"]
["G","R220","G20 excl. EU"]
["G","F98","MENA (Middle east and North Africa)"]
["G","P0","OECD"]
["G","R25","Total Official Develoment Assistance (ODA) recipients"]
["G","R251","ODA recipients -Europe"]
["G","R252","ODA recipients-Africa"]
["G","R253","ODA recipients-America"]
["G","R254","ODA recipients-Asia"]
["G","R255","ODA recipients-Oceania"]
["H","W0","TRANSPORTATION AND STORAGE (Section H)"]
["H","E1","Europe"]
["H","F1","Africa"]
["H","A2","North America"]
["H","A5","Central America and Caribbean countries"]
["H","A7","South America"]
["H","S1","Asia"]
["H","O1","Oceania and Polar Regions"]
["H","R4","ASEAN"]
["H","B5","EU28"]
["H","R220","G20 excl. EU"]
["H","F98","MENA (Middle east and North Africa)"]
["H","P0","OECD"]
["H","R25","Total Official Develoment Assistance (ODA) recipients"]
["H","R251","ODA recipients -Europe"]
["H","R252","ODA recipients-Africa"]
["H","R253","ODA recipients-America"]
["H","R254","ODA recipients-Asia"]
["H","R255","ODA recipients-Oceania"]
["I","W0","ACCOMODATION AND FOOD SERVICE ACTIVITIES (Section I)"]
["I","E1","Europe"]
["I","F1","Africa"]
["I","A2","North America"]
["I","A5","Central America and Caribbean countries"]
["I","A7","South America"]
["I","S1","Asia"]
["I","O1","Oceania and Polar Regions"]
["I","R4","ASEAN"]
["I","B5","EU28"]
["I","R220","G20 excl. EU"]
["I","F98","MENA (Middle east and North Africa)"]
["I","P0","OECD"]
["I","R25","Total Official Develoment Assistance (ODA) recipients"]
["I","R251","ODA recipients -Europe"]
["I","R252","ODA recipients-Africa"]
["I","R253","ODA recipients-America"]
["I","R254","ODA recipients-Asia"]
["I","R255","ODA recipients-Oceania"]
["J","W0","INFORMATION AND COMMUNICATION (Section J) "]
["J","E1","Europe"]
["J","F1","Africa"]
["J","A2","North America"]
["J","A5","Central America and Caribbean countries"]
["J","A7","South America"]
["J","S1","Asia"]
["J","O1","Oceania and Polar Regions"]
["J","R4","ASEAN"]
["J","B5","EU28"]
["J","R220","G20 excl. EU"]
["J","F98","MENA (Middle east and North Africa)"]
["J","P0","OECD"]
["J","R25","Total Official Develoment Assistance (ODA) recipients"]
["J","R251","ODA recipients -Europe"]
["J","R252","ODA recipients-Africa"]
["J","R253","ODA recipients-America"]
["J","R254","ODA recipients-Asia"]
["J","R255","ODA recipients-Oceania"]
["K","W0","FINANCIAL AND INSURANCE ACTIVITIES (Section K) "]
["K","E1","Europe"]
["K","F1","Africa"]
["K","A2","North America"]
["K","A5","Central America and Caribbean countries"]
["K","A7","South America"]
["K","S1","Asia"]
["K","O1","Oceania and Polar Regions"]
["K","R4","ASEAN"]
["K","B5","EU28"]
["K","R220","G20 excl. EU"]
["K","F98","MENA (Middle east and North Africa)"]
["K","P0","OECD"]
["K","R25","Total Official Develoment Assistance (ODA) recipients"]
["K","R251","ODA recipients -Europe"]
["K","R252","ODA recipients-Africa"]
["K","R253","ODA recipients-America"]
["K","R254","ODA recipients-Asia"]
["K","R255","ODA recipients-Oceania"]
["M","W0","PROFESSIONAL, SCIENTIFIC AND TECHNICAL ACTIVITIES (Section M)"]
["M","E1","Europe"]
["M","F1","Africa"]
["M","A2","North America"]
["M","A5","Central America and Caribbean countries"]
["M","A7","South America"]
["M","S1","Asia"]
["M","O1","Oceania and Polar Regions"]
["M","R4","ASEAN"]
["M","B5","EU28"]
["M","R220","G20 excl. EU"]
["M","F98","MENA (Middle east and North Africa)"]
["M","P0","OECD"]
["M","R25","Total Official Develoment Assistance (ODA) recipients"]
["M","R251","ODA recipients -Europe"]
["M","R252","ODA recipients-Africa"]
["M","R253","ODA recipients-America"]
["M","R254","ODA recipients-Asia"]
["M","R255","ODA recipients-Oceania"]
["R","W0","ARTS, ENTERTAINMENT AND RECREATION (Section R)"]
["R","E1","Europe"]
["R","F1","Africa"]
["R","A2","North America"]
["R","A5","Central America and Caribbean countries"]
["R","A7","South America"]
["R","S1","Asia"]
["R","O1","Oceania and Polar Regions"]
["R","R4","ASEAN"]
["R","B5","EU28"]
["R","R220","G20 excl. EU"]
["R","F98","MENA (Middle east and North Africa)"]
["R","P0","OECD"]
["R","R25","Total Official Develoment Assistance (ODA) recipients"]
["R","R251","ODA recipients -Europe"]
["R","R252","ODA recipients-Africa"]
["R","R253","ODA recipients-America"]
["R","R254","ODA recipients-Asia"]
["R","R255","ODA recipients-Oceania"]
["GTU","W0","TOTAL SERVICES (Sections G to U)"]
["GTU","E1","Europe"]
["GTU","F1","Africa"]
["GTU","A2","North America"]
["GTU","A5","Central America and Caribbean countries"]
["GTU","A7","South America"]
["GTU","S1","Asia"]
["GTU","O1","Oceania and Polar Regions"]
["GTU","R4","ASEAN"]
["GTU","B5","EU28"]
["GTU","R220","G20 excl. EU"]
["GTU","F98","MENA (Middle east and North Africa)"]
["GTU","P0","OECD"]
["GTU","R25","Total Official Develoment Assistance (ODA) recipients"]
["GTU","R251","ODA recipients -Europe"]
["GTU","R252","ODA recipients-Africa"]
["GTU","R253","ODA recipients-America"]
["GTU","R254","ODA recipients-Asia"]
["GTU","R255","ODA recipients-Oceania"]
["Memo:"]
["FDI_T","W0","TOTAL"]
["FDI_T","E1","Europe"]
["FDI_T","F1","Africa"]
["FDI_T","A2","North America"]
["FDI_T","A5","Central America and Caribbean countries"]
["FDI_T","A7","South America"]
["FDI_T","S1","Asia"]
["FDI_T","O1","Oceania and Polar Regions"]
["FDI_T","R4","ASEAN"]
["FDI_T","B5","EU28"]
["FDI_T","R220","G20 excl. EU"]
["FDI_T","F98","MENA (Middle east and North Africa)"]
["FDI_T","P0","OECD"]
["FDI_T","R25","Total Official Develoment Assistance (ODA) recipients"]
["FDI_T","R251","ODA recipients -Europe"]
["FDI_T","R252","ODA recipients-Africa"]
["FDI_T","R253","ODA recipients-America"]
["FDI_T","R254","ODA recipients-Asia"]
["FDI_T","R255","ODA recipients-Oceania"]